Workbook

Sheet Prefiltro (hidden)
A2: 01-PRE-2025 | B2: LOS PORTALES S.A | C2: 20301837896 | D2: VILLA RINCONADA II | E2: (Mz2A, MZ2B,MZ 2C, MZ 2D, MZ 2E, MZ 2F, MZ 2G) | F2: VEINTISEIS DE OCTUBRE | G2: PIURA | H2: PIURA | I2: ETAPAS | J2: ETAPA 1, 93; ETAPA 2, 77 | K2: 170 | L2: 170 | M2: JR. MARISCAL LA MAR NRO. 991 (ESQ.AV. EJERCITO.SALAVERRY PISOS 5, 6, 7) LIMA - LIMA - MAGDALENA DEL MAR | N2: JUAN CARLOS CAMPANA HOLGUIN | O2: 535810.17 | P2: 9429291.29 | Q2: 01-PRE-2025 | R2: ABRIL
A3: 02-PRE-2025 | B3: ANDEN CONSTRUCCIONES S.A.C | C3: 20606998652 | D3: QUINTA AMELIA | E3: JR. FLOR DE RETAMA | F3: CATACAOS | G3: PIURA | H3: PIURA | I3: ETAPAS | J3: ETAPA ÚNICA | K3: 133 | L3: 133 | M3: CAL. MALAGA GRENET 318 -AREQUIPA | N3: LILIAN TRINIDAD CUSRRAMOS RODRIGO | O3: 540374.4695 | P3: 9421550.662 | Q3: 02-PRE-2025 | R3: ABRIL
A4: 03-PRE-2025 | B4: VIVA NEGOCIO INMOBILIARIO S.A.C. | C4: 20493040643 | D4: LOS GERANIOS 2 | E4: AV. BELAUNDE, MZ. I, LOTE 1, URB.LOS PARQUE DE COMAS | F4: COMAS | G4: LIMA | H4: LIMA | I4: EDIFICIOS | J4: 5 TORRES | K4: 814 | L4: 814 | M4: AV. PETIT THOUARS 4957, 2DO PISO, MIRAFLORES, LIMA, LIMA | N4: THERESA GALLUCCIO GALLARDO | O4: 276565.22 | P4: 8665926.29 | Q4: 03-PRE-2025 | R4: MAYO
A5: 04-PRE-2025 | B5: ENACORP SOCIEDAD ANONIMA - ENACORP S.A | C5: 20380449405 | D5: CONJUNTO RESIDENCIAL AZUL | E5: PROL. DIEGO FERRE CON PEÑA RIVERA | F5: MIRAFLORES | G5: LIMA | H5: LIMA | I5: TORRES | J5: TORRE A Y B | K5: 143 | L5: 69 | M5: AV. JOSE PARDO 231 | N5: MARCO AURELIO DEL RIO ARRIETA | O5: 276565.22 | P5: 8665926.29 | Q5: 04-PRE-2025 | R5: MAYO
A6: 05-PRE-2025 | B6: GRUPO DESARROLLADORA SAC | C6: 20612981036 | D6: PARQUE LOS ROSALES | E6: JR. DOÑA DEMIRA CON JR. DOÑA NORA MZ. C-2 LOTE 29 | F6: SANTIAGO DE SURCO | G6: LIMA | H6: LIMA | I6: EDIFICIOS | J6: EDIFICIO 1 | M6: JIRÓN REAL 195 SANTIAGO DE SURCO, LIMA, LIMA | N6: ANDREY APARICIO VENTURA | O6: 281875 | P6: 8656950 | Q6: 05-PRE-2025 | R6: MAYO
A7: 06-PRE-2025 | B7: CONSTRUCTORA CONCEPCION S.A.C | C7: 20109116051 | D7: HABILITACION URBANA LAS VILLAS DE BOUGANVILLE ICA | E7: SECTOR DE LA HUELGA | F7: ICA | G7: ICA | H7: ICA | I7: ETAPAS | J7: ETAPA ÚNICA | K7: 232 | L7: 232 | M7: JR. JUAN PARRA DEL RIEGO NRO. 367 INT. 603 CERCADO DE EL TAMBO JUNIN - HUANCAYO - EL TAMBO | N7: LUIS SALVADOR ZANELLI JONES | O7: 418966 | P7: 8441697 | Q7: 06-PRE-2025 | R7: MAYO
A8: 07-PRE-2025 | B8: LIVENZA PROMOTORA INMOBILIARIA S.A.C | C8: 20605509593 | D8: TORRICO 708 | E8: JR. JOAQUIN TORRICO | F8: SAN JUAN DE MIRAFLORES | G8: LIMA | H8: LIMA | I8: TORRES | J8: TORRE A (14,14) | K8: 14 | L8: 14 | M8: ALONSO DE MOLINA 1420, INT. 302 | N8: RONALD TINEO ARANGO | Q8: 07-PRE-2025 | R8: MAYO
A9: 08-PRE-2025 | B9: INMOBILIARIA CANEVARO S.A.C | C9: 20610130608 | D9: RESIDENCIAL SOFIA | E9: AV. CESAR CANEVARO 979 | F9: SAN JUAN DE MIRAFLORES | G9: LIMA | H9: LIMA | I9: EDIFICIOS | J9: EDIFICIO 1 | L9: 20 | M9: AV. OVALEGOYA 2017 | N9: LUIS ARMANDO ROSALES HEREDIA | O9: 286266.96 | P9: 8655674.1 | Q9: 08-PRE-2025 | R9: MAYO
A10: 09-PRE-2025 | B10: YOPLAC ASOCIADOS SAC | C10: 20516014912 | D10: RESIDENCIAL SANTA SUSANA | E10: CALLE 142, M-05 | F10: LIMA | G10: LIMA | H10: LIMA | I10: EDIFICIOS | K10: 38 | L10: 35 | M10: AV. MARIANO CORNEJO 1203 | N10: EDSON ALDAIR YOPLAC VILDOSO | O10: 274368 | P10: 8665353 | Q10: 09-PRE-2025 | R10: MAYO
A11: 10-PRE-2025 | B11: CLASEM S.A.C. | C11: 20516390060 | D11: CONJUNTO RESIDENCIAL LOMAS DE LA ALAMEDA - ETAPA 2 | E11: CALLE 19 4R, LOTE 1 _ ALAMEDA SALAVERRY | F11: MIRAFLORES | G11: AREQUIPA | H11: AREQUIPA | I11: ETAPAS | J11: ETAPA 2 | K11: 90 | L11: 90 | M11: AV. REPÚBLICA DE COLOMBIA 185 LIMA - LIMA - SAN ISIDRO | N11: EFRAIN MANUEL POLAR ONTANEDA | O11: 231835.1447 | P11: 8186150.141 | Q11: 10-PRE-2025 | R11: MAYO
A12: 11-PRE-2025 | B12: BESCO S.A.C. | C12: 20416162299 | D12: NUEVO INDEPENDENCIA CONDOMINIO ECOAMIGABLE | E12: AV. INDUSTRIAL N°3458-3436 Y AV. MARCOS FARFÁN N°3457 | F12: INDEPENDENCIA | G12: LIMA | H12: LIMA | I12: TORRES | J12: TORRE 1 - TORRE 2 | K12: 480 | L12: 480 | M12: AV. PASEO DE LA REPUBLICA NRO. 3245 - SAN ISIDRO | N12: ELISA PIEDAD RIOS NORIEGA | O12: 275915.11 | P12: 8673014.57 | Q12: 11-PRE-2025 | R12: JUNIO
A13: 12-PRE-2025 | B13: CONSTRUCTORA INARCO S.A.C. | C13: 20519219922 | D13: EDIFICIO MULTIFAMILIAR SARANTI | E13: AV. LA PAZ 124 | F13: SAN MIGUEL | G13: LIMA | H13: LIMA | I13: TORRES | J13: TORRE A | K13: 101 | L13: 98 | M13: AV. LA MOLINA 140 | N13: JAVIER ALONSO TORI GUERRERO | O13: 273091.349 | P13: 8662700.87 | Q13: 12-PRE-2025 | R13: JUNIO
A14: 13-PRE-2025 | B14: SALERNO INMOBILIARIA SOCIEDAD ANONIMA CERRADA | C14: 20611820691 | D14: CEDROS 33 | E14: AV. MARICAL OSCAR R. BENAVIDES 2200 | F14: LIMA | G14: LIMA | H14: LIMA | I14: TORRES | J14: TORRE A Y TORRE B | K14: 331 | L14: 268 | M14: CALLE MAMA OCLLO 2647 URB. RISSO | N14: FERNANDO FELIX TORATTO FERNANDEZ | O14: 274598.04 | P14: 8667186.98 | Q14: 13-PRE-2025 | R14: JUNIO
A15: 14-PRE-2025 | B15: LOS PORTALES S.A | C15: 20301837896 | D15: VILLA DE LA ALAMEDA SUR | E15: FUNDO YOLICO QUEBRADA DE PARCA Sublote N° 02 | F15: CHILCA | G15: CAÑETE | H15: LIMA | I15: ETAPAS | J15: ETAPA ÚNICA (MZ. A,MZ. B,MZ. C,MZ. D,MZ. E,MZ. F) | K15: 89 | L15: 89 | M15: JR. MARISCAL LA MAR 991, MAGDALENA DEL MAR, LIMA | N15: JUAN CARLOS CAMPANA HOLGUIN | O15: 308754 | P15: 8616119 | Q15: 14-PRE-2025 | R15: JUNIO
A16: 15-PRE-2025 | B16: CONSTRUCTORA INMOBILIARIA INKA DE AMERICA S.A.C. | C16: 20605731431 | D16: EDIFICIO MULTIFAMILIAR SEVILLA (ANTES EDIFICIO DE VIVIENDA MULTIFAMILIAR TACNA 130) | E16: AV. TACNA 130 | F16: SAN MIGUEL | G16: LIMA | H16: LIMA | I16: TORRES | J16: TORRE A | K16: 65 | L16: 61 | M16: MLC.DE LA RESERVA NRO. 775 | N16: JUAN CARLOS PERAMAS SANCHEZ | O16: 273980.477 | P16: 8662487.582 | Q16: 15-PRE-2025 | R16: JUNIO
A17: 16-PRE-2025 | B17: PROYECTOS INMOBILIARIOS LM S.A.C | C17: 20609196051 | D17: EDIFICIO RESIDENCIAL PLAZA 57 | E17: JR. TACNA 1457 - 1457 A - 1459 | F17: MAGDALENA DEL MAR | G17: LIMA | H17: LIMA | I17: EDIFICIOS | J17: EDIFICIO ÚNICO | K17: 47 | L17: 9 | M17: CALLE 2 DE MAYO N°516 (INTERIOR: 401), MIRAFLORES, LIMA, LIMA | N17: ROSA YVONNE SEIJO CHAPA | O17: 274742.318 | P17: 8663174.215 | Q17: 16-PRE-2025 | R17: JUNIO
A18: 17-PRE-2025 | B18: MCR PROYECTO 11 S.A.C. | C18: 20610460993 | D18: AKO RESIDENCIAL | E18: JR. ARICA 859 | F18: SAN MIGUEL | G18: LIMA | H18: LIMA | I18: EDIFICIOS | J18: EDIFICIO 1 | K18: 88 | L18: 80 | M18: CALLE CORONEL ANDRES REYES 550 | N18: YENNER AMANCIO LOPEZ | O18: -12.0894 | P18: -77.0831 | Q18: 17-PRE-2025 | R18: JUNIO
A19: 18-PRE-2025 | B19: PEDRA CONSTRUCTORA E INMOBILIARIA S.A.C. | C19: 20608033859 | D19: PIETRA CENTRALE | E19: JR. MANUEL DEL PINO 238-240 | F19: LIMA | G19: LIMA | H19: LIMA | I19: EDIFICIOS | J19: EDIFICIO 1 | K19: 126 | L19: 120 | M19: AV. ANGAMOS OESTE 651 INTERIOR 205 | N19: ALDO PIERO DIEZ NOBLECILLA | O19: 278508.401 | P19: 8663944.13 | Q19: 18-PRE-2025 | R19: JUNIO
A20: 19-PRE-2025 | B20: THE PISONAY COMPANY SAC | C20: 20601192404 | D20: EVOLUTION | E20: MARIANO CORNEJO | F20: LIMA | G20: LIMA | H20: LIMA | I20: TORRES | J20: TORRE ÚNICA | K20: 130 | L20: 98 | M20: AV. CAMINOS DEL INCA 1168 | N20: ERROL ALAN ROZAS ARROYO | O20: 274831 | P20: 8665134 | Q20: 19-PRE-2025 | R20: JUNIO
A21: 20-PRE-2025 | B21: CLASEM S.A.C. | C21: 20516390060 | D21: CONJUNTO RESIDENCIAL PARQUE SANTA SOFÍA | E21: CALLE VIA DE EVITAMIENTO LOTE 2 URB. EX FUNDO PATAZCA | F21: CHICLAYIO | G21: CHICLAYIO | H21: LAMBAYEQUE | I21: ETAPAS | J21: ETAPA 1,2,3,4,5 Y 6 | K21: 720 | L21: 720 | M21: AV. REPUBLICA DE COLOMBIA NRO. 185 | N21: EFRAIN MANUEL POLAR ONTANEDA | O21: 624384.3224 | P21: 9250943.271 | Q21: 20-PRE-2025 | R21: JULIO
A22: 21-PRE-2025 | B22: INMOBILIARIA DARALE S.A.C. | C22: 20609614723 | D22: VIDA VARELA | E22: JIRON GENERAL FELIPE VARELA | F22: BREÑA | G22: LIMA | H22: LIMA | I22: EDIFICIOS | J22: EDIFICIO 1 | L22: 42 | M22: CAL.PUMACURCO NRO. 187 URB. MARANGA ET. CUATRO LIMA - LIMA - SAN MIGUEL | N22: SONNY ADOLPH TORBISCO CERVANTES | O22: 276945.9 | P22: 8665679.02 | Q22: 21-PRE-2025 | R22: JULIO
A23: 22-PRE-2025 | B23: INMOBILIARIA EUREKA SAC | C23: 20508000163 | D23: VIRIDIAN | E23: CALLE LOS GERANIOS 244-248 | F23: LINCE | G23: LIMA | H23: LIMA | I23: TORRES | J23: TORRE ÚNICA | K23: 108 | L23: 42 | M23: AV. BASADRE JORGE 310 | N23: ORLANDO IGOR REQUENA GONZALES DE LA COTERA | O23: 279282.995 | P23: 8662590.468 | Q23: 22-PRE-2025 | R23: JULIO
A24: 23-PRE-2025 | B24: LOS PORTALES DEPARTAMENTOS S.A.C. | C24: 20553346178 | D24: GRAN JARDIN TICINO 2 | E24: CALLE TICINO N°167 SUB LOTE A2-1 Y SUBLOTE A2-2 , URBANIZACIÓN FUNDO INQUISIDOR Y PULIDO | F24: SANTA ANITA | G24: LIMA | H24: LIMA | I24: ETAPAS | J24: ETAPA 1 (TORRE 1 Y 2) Y ETAPA 2 (TORRE 3 Y 4) | K24: 594 | L24: 594 | M24: JR. MARISCAL LA MAR N°991, MAGDALENA DEL MAR, LIMA, LIMA | N24: DIEGO ISAAC ABARCA OTAYZA | O24: 285794 | P24: 8666761 | Q24: 23-PRE-2025 | R24: JULIO
A25: 24-PRE-2025 | B25: GRUPO INMOBILIARIO MOLINA SOCIEDAD COMERCIAL DE RESPONSABILIDAD | C25: 20613236563 | D25: RESIDENCIAL GARDENIAS | E25: JR. LAS GARDENIAS, LOTE 108-2 | F25: ABANCAY | G25: ABANCAY | H25: APURIMAC | I25: TORRES | J25: TORRE ÚNICA | K25: 38 | L25: 38 | M25: AV. ANDRES AVELINO CACERES N°729 ABANCAY, ABANCAY, APURIMAC | N25: FREDY ROLAND MOLINA VILLAR | O25: 728688.38 | P25: 8490891.59 | Q25: 24-PRE-2025 | R25: JULIO
A26: 25-PRE-2025 | B26: PROMOTORA ALBACENTRO SAC. | C26: 20610609687 | D26: EDIFICIO RESIDENCIAL OASIS | E26: AV. ANDRES ARAMBURU 860-862-864-866 | F26: SURQUILLO | G26: LIMA | H26: LIMA | I26: EDIFICIOS | J26: EDIFICIO 1 | K26: 149 | L26: 104 | M26: CALLE ENRIQUE PALACIOS N° 335 MIRAFLORES, LIMA, LIMA | N26: CARLOS EDUARDO HIDALGO PEREZ | O26: 279952.129 | P26: 8661295.514 | Q26: 25-PRE-2025 | R26: JULIO
A27: 26-PRE-2025 | B27: INMOBILARIA LOS ARCES DE CAYMA S.A.C. | C27: 20610947558 | D27: RESIDENCIAL ACCES | E27: CALLE LOS ARCES N°295 | F27: CAYMA | G27: AREQUIPA | H27: AREQUIPA | I27: SECTORES | J27: ETAPA 1 (BLOQUE A, BLOQUE B, BLOQUE C) | K27: 167 | L27: 167 | M27: AV. CAYMA B - N° 701, CAYMA, AREQUIPA, AREQUIPA | N27: LUIS ALBERTO DELGADO ARROSPIDE | O27: 227788.7317 | P27: 8186990.122 | Q27: 26-PRE-2025 | R27: JULIO
A28: 27-PRE-2025 | B28: BARRIONUEVO INMOBILIARIA S.A.C | C28: 20612302481 | D28: KURA DEL BARRIO | E28: JR. GRAU FELIPE VARELA 1594 CON JR. RESTAURACION | F28: LA VICTORIA | G28: LIMA | H28: LIMA | I28: TORRES | J28: TORRE ÚNICA | K28: 42 | L28: 42 | M28: AV. MARISCAL JOSE DE LA MAR | N28: EDGAR AUGUSTO RIOS REATEGUI | O28: 276884.5838 | P28: 8665613.622 | Q28: 27-PRE-2025 | R28: AGOSTO
A29: 28-PRE-2025 | B29: CONFORTA INMOBILIARIA SAN ISIDRO S.A.C. | C29: 20611036249 | D29: MULTIFAMILIAR INSIGH | E29: AV. JOSE GALVEZ BARRENECHEA N° 459-465 URB. CORPAC | F29: SAN ISIDRO | G29: LIMA | H29: LIMA | I29: EDIFICIOS | J29: EDIFICIO 1 | K29: 80 | L29: 49 | M29: CALLE BREA Y PARIÑAS N° 102 (INT. 302) SANTIAGO DE SURCO, LIMA, LIMA | N29: SUSAN CLAUDIA DURAN PARDES | O29: 280920.452 | P29: 8662078.415 | Q29: 28-PRE-2025 | R29: AGOSTO
A30: 29-PRE-2025 | B30: AF CONSTRUCTECNIA S.A.C. | C30: 20460366624 | D30: LARA | E30: AV. SEVILLA 230 | F30: PUEBLO LIBRE | G30: LIMA | H30: LIMA | I30: EDIFICIOS | J30: EDIFICIO 1 | K30: 26 | L30: 26 | M30: AV. DEFENSORES DEL MORRO 1395 | N30: CESAR ALEJANDRO DEXTRE CHACON | O30: 275199.14 | P30: 8665021.13 | Q30: 29-PRE-2025 | R30: AGOSTO
A31: 30-PRE-2025 | B31: DESARROLLADORA VISTA NEVADO S.A.C. | C31: 20602442439 | D31: CASAPARQ – CERRO COLORADO TORRES F, G y E | E31: PAGO CHALLAPAMPA MZ. A LOTE 01 FUNDO LA MANRIQUE | F31: CERRO COLORADO | G31: AREQUIPA | H31: AREQUIPA | I31: TORRES | J31: TORRES F,G y E | K31: 284 | L31: 154 | M31: AV. LA ENCALADA N°1010 - SANTIAGO DE SURCO-LIMA-LIMA | N31: JULIO CESAR DIAZ COSTA | O31: 227180.34 | P31: 8188126.16 | Q31: 30-PRE-2025 | R31: AGOSTO
A32: 31-PRE-2025 | B32: INMOBILIARIA AGUARICO S.A.C. | C32: 20604507911 | D32: CONJUNTO RESIDENCIAL DEL PARQUE CENTRO TORRE C | E32: JR. LORETO ESQUINA CON JR. DEAN VALDIVIA N° 1608-1610 URB. SAN GREGORIO | F32: BREÑA | G32: LIMA | H32: LIMA | I32: TORRES | J32: TORRE C | K32: 119 | L32: 119 | M32: AV. LA ENCALADA MZ12 LTE 23 URB. C.C. MONTERRICO SANTIAGO DE SURCO, LIMA, LIMA | N32: JULIO CESAR DIAZ COSTA | O32: 276408.444 | P32: 8665523.417 | Q32: 31-PRE-2025 | R32: AGOSTO
A33: 32-PRE-2025 | B33: DESARROLLO LINCE S.A.C. | C33: 20605662529 | D33: EDIFICIO MULTIFAMILIAR BOSQO | E33: JIRON LANCEROS 132-142 MZ. A LOTE 13-14 | F33: SANTIAGO DE SURCO | G33: LIMA | H33: LIMA | I33: EDIFICIOS | J33: EDIFICIO 1 | K33: 139 | L33: 80 | M33: AV. REPÚBLICA DE COLOMBIA NRO. 791 INT. 3 | N33: ERICK JARA PALOMINO | O33: 284479.48 | P33: 8663384.44 | Q33: 32-PRE-2025 | R33: AGOSTO
A34: 33-PRE-2025 | B34: VIVA NEGOCIO INMOBILIARIO S.A.C. | C34: 20493040643 | D34: LOS PARQUES DE BREÑA | E34: JR. CHAMAYA - JR MANOA N°280 -N°305 URB. CHACRA COLORADA | F34: BREÑA | G34: LIMA | H34: LIMA | I34: ETAPAS | J34: ETAPA 01 / ETAPA 02 / ETAPA 03 / ETAPA 04 / ETAPA 05 | K34: 552 | L34: 552 | M34: AV. PETIT THOUARS N°4957 MIRAFLORES, LIMA, LIMA | N34: GALLUCCIO GALLARDO THERESA | O34: 276481.94 | P34: 8666923.57 | Q34: 33-PRE-2025 | R34: AGOSTO
A35: 34-PRE-2025 | B35: JMS PROYECTOS S.A.C. | C35: 20609824418 | D35: EDIFICIO MULTIFAMILIAR MARABIERTO | E35: AV COSTANERA N°2790 URB. MIRAMAR | F35: SAN MIGUEL | G35: LIMA | H35: LIMA | I35: ETAPAS | J35: ETAPA 01 | K35: 220 | L35: 207 | M35: CALLE BOLOGNESI N°180 (OF. 701) MIRAFLORES, LIMA, LIMA | N35: ALVARO RICARDO,PUGA SANCHEZ/ PAOLO ANTONIO, VELASQUEZ OLIVARES | O35: 270479.36 | P35: 8663717.55 | Q35: 34-PRE-2025 | R35: AGOSTO
A36: 35-PRE-2025 | B36: CASAIDEAL PROYECTO 23 S.A.C. | C36: 20612934402 | D36: MULTIFAMILIAR LINK | E36: AV. B (LOS FAISANES), MZ. K, LOTE 14-B, URB. LA CAMPIÑA | F36: CHORRILLOS | G36: LIMA | H36: LIMA | I36: TORRES | J36: TORRE A / TORRE B | K36: 317 | L36: 317 | M36: AV. EL POLO N°670 SANTIAGO DE SURCO, LIMA, LIMA | N36: CARLOS ALFREDO NOVOA AREVALO | O36: 282418.9132 | P36: 8653066.925 | Q36: 35-PRE-2025 | R36: AGOSTO
A37: 36-PRE-2025 | B37: CALICANTO ASESORIA SAC | C37: 20603314361 | D37: MULTIFAMILIAR DEL HORNE | E37: CA. ENRIQUE DEL HORNE N°137 MZ. 26, LOTE 260, URB. FUNDO TEJADA | F37: BARRANCO | G37: LIMA | H37: LIMA | I37: TORRES | J37: TORRE 1 - TORRE 2 | K37: 67 | L37: 43 | M37: CALLE ENRIQUE DEL HORME N°137, URB. LA VIÑITA, BARRANCO, LIMA, LIMA | N37: ERNESTO ADOLFO ROCA DAMMERT | O37: 280324.7983 | P37: 8657353.963 | Q37: 36-PRE-2025 | R37: SETIEMBRE
A38: 37-PRE-2025 | B38: INMOBILIARIA ACTUAL FAISANES III S.A.C. | C38: 20603605285 | D38: PROYECTO MULTIFAMILIAR FAISANES III | E38: AV. LOS FAISANES N° 348 URB. LA CAMPIÑA | F38: CHORRILLOS | G38: LIMA | H38: LIMA | I38: EDIFICIOS | J38: EDIFICIO ÚNICO | K38: 288 | L38: 267 | M38: AV. JAVIER PRADO OESTE N° 757- MAGDALENA DEL MAR-LIMA | N38: GUSTAVO ADOLFO EHNI ALIAGA | O38: 282401.271 | P38: 8652946.503 | Q38: 37-PRE-2025 | R38: AGOSTO
A39: 38-PRE-2025 | B39: ALBA 37 S.A.C. | C39: 20611734213 | D39: EDIFICIO MULTIFAMILIAR PASEO PAZ | E39: AV. CUBA / JR. FRANCISCO DE LA ZELA N° 500-516-520-524 Y 986 - 990 | F39: JESUS MARIA | G39: LIMA | H39: LIMA | I39: EDIFICIOS | J39: EDIFICIO 1 | K39: 107 | L39: 79 | M39: CALLE ENRIQUE PALACIOS 335 MIRAFLORES, LIMA, LIMA | N39: CARLOS EDUARDO HIDALGO PEREZ | O39: 277851.971 | P39: 8664338.465 | Q39: 38-PRE-2025 | R39: AGOSTO
A40: 39-PRE-2025 | B40: VIVIENDAS DEL PERÚ SAC | C40: 20512691529 | D40: ATIVO | E40: AV. BOLIVIA N°538 - 544 URB. DEL FUNDO COLORADO | F40: BREÑA | G40: LIMA | H40: LIMA | I40: ETAPAS | J40: ETAPA 1 | K40: 192 | L40: 192 | M40: AV. JAVIER PRADO ESTE N° 488 SAN ISIDRO, LIMA, LIMA | N40: JAIME ALBERTO PAREDES SANCHEZ | O40: 277606.032 | P40: 8666426.979 | Q40: 39-PRE-2025 | R40: SETIEMBRE
A41: 40-PRE-2025 | B41: JPS TRES INMOBILIARIA S.A.C. | C41: 20612843628 | D41: EDIFICIO MULTIFAMILIAR LAMBAYEQUE 197 | E41: CALLE LAMBAYEQUE N° 197, URB. CAPEBCO | F41: SAN MIGUEL | G41: LIMA | H41: LIMA | I41: EDIFICIOS | J41: EDIFICIO 1 | K41: 52 | L41: 52 | M41: CALLE DOS DE MAYO N° 238, MIRAFLORES, LIMA, LIMA | N41: JOSE EMILIO PEZO BARRIO | O41: 271168.42 | P41: 8664534.418 | Q41: 40-PRE-2025 | R41: SETIEMBRE
A42: 41-PRE-2025 | B42: LA TORRE SERVICIOS INMOBILIARIOS S.A.C. | C42: 20603799942 | D42: PARQUE CHIMÚ | E42: PASAJE CHAQUIRA N°152 URB. SALAMANCA | F42: ATE | G42: LIMA | H42: LIMA | I42: EDIFICIOS | J42: EDIFICIO ÚNICO | K42: 9 | L42: 8 | M42: CALLE SAN MARCOS N°236 PUEBLO LIBRE, LIMA, LIMA | N42: JOSUE MAURICIO LA TORRE OROZCO | O42: -76.9892 | P42: -12.0749 | Q42: 41-PRE-2025 | R42: SETIEMBRE
A43: 42-PRE-2025 | B43: INMOBILIARIA CESAR LOPEZ S.A.C. | C43: 20612595047 | D43: EDIFICIO RESIDENCIAL MADISON PARK | E43: JIRON CESAR LOPEZ ROJAS N° 201 | F43: SAN MIGUEL | G43: LIMA | H43: LIMA | I43: EDIFICIOS | J43: EDIFICIO 1 | K43: 289 | L43: 287 | M43: AV. REPUBLICA DE PANAMA NRO. 3531 INT. 702 URB. LIMATAMBO, SAN ISIDRO, LIMA, LIMA | N43: MIGUEL SEGUNDO DEUSTUA TAPIA | O43: 272492.48 | P43: 8664301.1 | Q43: 42-PRE-2025 | R43: SETIEMBRE
A44: 43-PRE-2025 | B44: MG PROYECTO 22 S.A.C. | C44: 20610893679 | D44: DULANTO | E44: AV. MANUEL CIPRIANO DULANTO 209, 209-A, 211 , 211-A | F44: PUEBLO LIBRE | G44: LIMA | H44: LIMA | I44: EDIFICIOS | J44: EDIFICIO ÚNICO | K44: 241 | L44: 241 | M44: AV. JAVIER PRADO ESTE 1540-1542, SAN ISIDRO, LIMA, LIMA | N44: VICTOR MAX GUEVARA OTINIANO | O44: 275798 | P44: 8663626 | Q44: 43-PRE-2025 | R44: SETIEMBRE
A45: 44-PRE-2025 | B45: ALBIR INVERSIONES S.A.C | C45: 20606866179 | D45: SUKHA | E45: AVENIDA TOMÁS MARSANO CON CALLE CUATRO N°2293, URB. LOS SAUCES | F45: SURQUILLO | G45: LIMA | H45: LIMA | I45: TORRES | J45: TORRE 1 | K45: 76 | L45: 24 | M45: CALLE JUAN DE LA FUENTE N° 378 URB. PROLONGACIÓN BENAVIDES, MIRAFLORES, LIMA,LIMA | N45: LUIS ENRIQUE ARIAS CASTILLO | O45: 760500 | P45: 8526300 | Q45: 44-PRE-2025 | R45: SETIEMBRE
A46: 45-PRE-2025 | B46: VIVIENDAS DEL PERÚ SAC | C46: 20512691529 | D46: BILANCIA | E46: JIRON INCLÁN N° 202-206-212 URB. FUNDO ORBEA | F46: MAGDALENA DEL MAR | G46: LIMA | H46: LIMA | I46: EDIFICIOS | J46: EDIFICIO 1 | K46: 144 | L46: 85 | M46: AV. JAVIER PRADO ESTE N° 488 SAN ISIDRO, LIMA, LIMA | N46: JAIME ALBERTO PAREDES SANCHEZ | O46: 277606.032 | P46: 8666426.979 | Q46: 45-PRE-2025 | R46: SETIEMBRE
A47: 46-PRE-2025 | B47: MG PROYECTO 23 S.A.C. | C47: 20611409614 | D47: CENTRICO | E47: JR. SUB- TENIENTE ALEJANDRO TIRADO N°635-655 URB. SANTA BEATRIZ | F47: LIMA | G47: LIMA | H47: LIMA | I47: EDIFICIOS | J47: EDIFICIOS | K47: 212 | L47: 212 | M47: AV. JAVIER PRADO ESTE 1540-1542, SAN ISIDRO, LIMA, LIMA | N47: VICTOR MAX GUEVARA OTINIANO | O47: 275798 | P47: 8663626 | Q47: 46-PRE-2025 | R47: SETIEMBRE
A48: 47-PRE-2025 | B48: INVERSIONES CESIA S.A.C. | C48: 20522872602 | D48: EDIFICIO MULTIFAMILIAR RESIDENCIAL RECUAY | E48: JIRÓN RECUAY N° 273-279-277 URB. CHACRA COLORADA | F48: BREÑA | G48: LIMA | H48: LIMA | I48: TORRES | J48: TORRE A Y B | K48: 84 | L48: 84 | M48: JR. HUARAZ N°951 BREÑA, LIMA, LIMA | N48: OBED ISAI LANDA VENTURA | O48: 277037.315 | P48: 8666434.172 | Q48: 47-PRE-2025 | R48: SETIEMBRE
A49: 48-PRE-2025 | B49: MILLENNIUM MAGDALENA S.A.C. | C49: 20613998226 | D49: MILLENNIUM | E49: JR JUNIN -ESQ. JR LEONCIO PRADO N°580-582-592-594 /N° 1102-1106-1108-1110 | F49: MAGDALENA DEL MAR | G49: LIMA | H49: LIMA | I49: ETAPAS | J49: EDIFICIO 1 | K49: 74 | L49: 74 | M49: AV. ANGAMOS ESTE NRO. 1555 INT. 2 URB. CASA HUERTA (AL COSTADO DEL C.C. PLAZA HOGAR), SURQUILLO, LIMA, LIMA | N49: JAIME EDUARDO TERRONES LEON | O49: 275823 | P49: 8663426 | Q49: 48-PRE-2025 | R49: SETIEMBRE
A50: 49-PRE-2025 | B50: ANTARES CONTRATISTAS S.A | C50: 20143382339 | D50: EDIFICIO MULTIFAMILIAR SAUCES | E50: VÍA COLECTORA NORTE MZ. A, LOTE 12, URB. LOS PARQUE DEL CHIPE | F50: VEINTISEIS DE OCTUBRE | G50: PIURA | H50: PIURA | I50: TORRES | J50: EDIFICIO 1 | K50: 103 | L50: 103 | M50: JR. MONTE ROSA NRO. 255 INTR. 1002 URB. CHACARILLA DEL ESTANQUE (WONG DE CHACARILLA), SANTIAGO DE SURCO, LIMA, LIMA | N50: CARLOS MIGUEL SALINAS ROJAS | O50: 536804.505 | P50: 9428305.491 | Q50: 49-PRE-2025 | R50: OCTUBRE
A51: 50-PRE-2025 | B51: CORPORACIÓN INMOBILIARIA SAN JOSE S.A.C. | C51: 20611517549 | D51: CANNELLE | E51: AVENIDA DE LA POLICIA N° 603, MZ. B, LOTE 9 | F51: JESUS MARIA | G51: LIMA | H51: LIMA | I51: ETAPAS | J51: ETAPA ÚNICA | K51: 83 | L51: 19 | M51: CALLE TENIENTE ENRIQUE PALACIOS N°360 N°INTERIOR 105, MIRAFLORES, LIMA, LIMA | N51: AMELY BALBINA TIMANA VARGAS | O51: 276078.4 | P51: 8662881.65 | Q51: 50-PRE-2025 | R51: OCTUBRE
A52: 51-PRE-2025 | B52: BESCO S.A.C. | C52: 20416162299 | D52: ALAMEDA CENTRAL 2 (ANTES COLONIAL C) | E52: AV. COLONIAL, ANTES AV. OSCAR BENAVIDES N°1140 | F52: LIMA | G52: LIMA | H52: LIMA | I52: TORRES | J52: TORRE 1 / TORRE 2 / TORRE 3 / TORRE 4 | K52: 768 | L52: 768 | M52: AV. PASEO DE LA REPUBLICA N°3245 N°INTER.1101 SAN ISIDRO, LIMA, LIMA | N52: ELISA PIEDAD RIOS NORIEGA | P52: 8667431.026 | Q52: 51-PRE-2025 | R52: NOVIEMBRE
A53: 52-PRE-2025 | B53: MONACO PROYECTOS S.A.C. | C53: 20612749044 | D53: EDIFICIO MULTIFAMILIAR ASTRE | E53: AV. GENERAL ARENALES N° 688-698 | F53: JESUS MARIA | G53: LIMA | H53: LIMA | I53: TORRES | J53: TORRE 1 | K53: 84 | L53: 53 | M53: CAL.JUAN DE LA FUENTE NRO. 378 URB. SAN ANTONIO, MIRAFLORES, LIMA,LIMA | N53: LUIS ENRIQUE ARIAS CASTILLO | O53: 277402.4 | P53: 8662352.71 | Q53: 52-PRE-2025 | R53: OCTUBRE
A54: 53-PRE-2025 | B54: PROYEC PROYECTO 02 SAC | C54: 20612811530 | D54: EDIFICIO MULTIFAMILIAR CAPRI | E54: PASAJE CAPRI N° 120-130, URB. PALOMAR NORTE | F54: LA VICTORIA | G54: LIMA | H54: LIMA | I54: ETAPAS | J54: ETAPA 1 | K54: 120 | L54: 118 | M54: CAL.LOS ANTARES NRO. 320 INT. 602A URB. LA ALBORADA, SANTIAGO DE SURCO, LIMA,LIMA | N54: JORGE ENRIQUE OTINIANO CABRERA | O54: 280780.278 | P54: 8662887.101 | Q54: 53-PRE-2025 | R54: OCTUBRE
A55: 54-PRE-2025 | B55: GRUPO INMOBILIARIO FNV 1 SAC | C55: 20611738430 | D55: MATCH | E55: AVENIDA LOS PATRIOTAS N° 206-208-210-212 URB. MARANGA 2DA ETAPA | F55: SAN MIGUEL | G55: LIMA | H55: LIMA | I55: TORRES | J55: TORRE 1 | K55: 131 | L55: 131 | M55: CALLE ENRIQUE PALACIOS N° 335 N° INTERNO 101 MIRAFLORES, LIMA, LIMA | N55: CARLOS EDUARDO HIDALGO PEREZ | O55: 278314 | P55: 8665755 | Q55: 54-PRE-2025 | R55: OCTUBRE
A56: 55-PRE-2025 | B56: ALBA 39 SAC | C56: 20611720077 | D56: RE+ | E56: AVENIDA COLONIAL N° 1740 URB. HUERTA LAZO | F56: LIMA | G56: LIMA | H56: LIMA | I56: TORRES | J56: TORRE 1 | K56: 244 | L56: 244 | M56: CALLE ENRIQUE PALACIOS N° 335 N° INTERNO 101 MIRAFLORES, LIMA, LIMA | N56: CARLOS EDUARDO HIDALGO PEREZ | O56: 268000 | P56: 8657000 | Q56: 55-PRE-2025 | R56: OCTUBRE
A57: 56-PRE-2025 | B57: VAL D1 S.A.C. | C57: 20613244965 | D57: CONJUNTO RESIDENCIAL BONAVISTA | E57: CALLE GENERAL ORBEGOZO MZ. P, LOTE 9-10-11-12-13, URB. SAN LUIA GONZAGA -II ETAPA | F57: BREÑA | G57: LIMA | H57: LIMA | I57: SECTORES | J57: BLOQUE A Y BLOQUE B | K57: 178 | L57: 111 | M57: AV. CAMINO REAL NRO. 390 DPTO. 1401 INT. A URB. CENTRO COMERCIAL CAMINO REAL (EDIFICIO TORRE CENTRAL), SAN ISIDRO, LIMA, LIMA | N57: FREDDY SANTIAGO SALCEDO CASASOLA | O57: 276454 | P57: 8665674 | Q57: 56-PRE-2025 | R57: OCTUBRE
A58: 57-PRE-2025 | B58: URSA CONSTRUCTORA S.A.C. | C58: 20602099416 | D58: EDIFICIO FENIX | E58: AV. AFRANIO DE MELIO FRANCO N°365,369,371,375M379 URB. DEL FUNDO JESUS MARIA | F58: JESUS MARIA | G58: LIMA | H58: LIMA | I58: EDIFICIOS | J58: EDIFICIO ÚNICO | K58: 83 | L58: 61 | M58: CALLE CANTUARIAS N°160 URB. TELLO, MIRAFLORES, LIMA, LIMA | N58: PAULO ALFONSO HIGUERAS SUAREZ | O58: 276815.24 | P58: 8664229.21 | Q58: 57-PRE-2025 | R58: OCTUBRE
A59: 58-PRE-2025 | B59: CONSTRUCTORA GALILEA S.A.C. | C59: 20521119943 | D59: VALLE ALTO | E59: PREDIO ARENA VERDE SAC, VALLE MEDIO PIURA, SUBLOTE 1, URB. SECTOR EJIDOS DEL NORTE | F59: PIURA | G59: PIURA | H59: PIURA | I59: ETAPAS | J59: ETAPAS 1 AL 17 | K59: 507 | L59: 507 | M59: AV. PRIMAVERA NRO. 1796 INT. 601 URB. MONTERRICO (ESQUINA JR. TOMASAL MZ.P2 LOTE 25), SANTIAGO DE SURCO, LIMA, LIMA | N59: RENATO RIVA CANESSA | O59: 540864.2922 | P59: 9430549.86 | Q59: 58-PRE-2025 | R59: OCTUBRE
A60: 59-PRE-2025 | B60: SAN MIGUEL 14 S.A.C. | C60: 20613357557 | D60: VIVUM | E60: JIRÓN GENERAL JUAN JOSÉ SALAS N° 291.289 | F60: SAN MIGUEL | G60: LIMA | H60: LIMA | I60: TORRES | J60: TORRE 1 | K60: 34 | L60: 26 | M60: CALLE CORONEL ANDRES REYES N°550, SAN ISIDRO, LIMA, LIMA | N60: MARCELO MARTIN QUISPE REYNA | O60: 279000 | P60: 1338000 | Q60: 59-PRE-2025 | R60: OCTUBRE
A61: 60-PRE-2025 | B61: DESARROLLO BELLAVISTA SAC | C61: 20612673862 | D61: CONJUNTO RESIDENCIAL PAZEA | E61: AV. OSCAR R. BENAVIDES N°3866-4070, SUB LOTE B | F61: BELLAVISTA | G61: CALLAO | H61: CALLAO | I61: EDIFICIOS | J61: EDIFICIO 1 / EDIFICIO 2 / EDIFICIO 3 / EDIFICIO 4 / EDIFICIO 5 / EDIFICIO 6 / EDIFICIO 7 | K61: 816 | L61: 816 | M61: AV. REPUBLICA DE COLOMBIA NRO. 791 URB. CHACARILLA DE SANTA CRUZ , SAN ISIDRO, LIMA, LIMA | N61: ANA MARIA QUIJANO DOIG | O61: 271381.27 | P61: 8666355.06 | Q61: 60-PRE-2025 | R61: OCTUBRE
A62: 61-PRE-2025 | B62: MATIER S.A.C. | C62: 20392737058 | D62: CONJUNTO RESIDENCIAL GREEN LIFE | E62: AVENIDA LOS GORRIONES / JIRON PERSEO N° 490, MZ. G, LOTE 1, URB. LA CAMPIÑA | F62: CHORRILLOS | G62: LIMA | H62: LIMA | I62: TORRES | J62: TORRE A, TORRE B y TORRE C | K62: 187 | L62: 186 | M62: AV. EMILIO CAVENECIA N°225 URB. ORRANTIA DEL MAR, SAN ISIDRO, LIMA, LIMA | N62: VICTORIA PILAR AYSANOA LOPEZ DE RAMOS | O62: 281905.653 | P62: 8653054.244 | Q62: 61-PRE-2025 | R62: OCTUBRE
A63: 62-PRE-2025 | B63: ECOMARINA DESARROLLOS S.A.C. | C63: 20608895796 | D63: EDIFICIO MULTIFMALIAR VIVAPARK | E63: CALLE ALFREDO ICAZA N°185 URB. MARANGA | F63: SAN MIGUEL | G63: LIMA | H63: LIMA | I63: TORRES | J63: TORRE | K63: 24 | L63: 22 | M63: CAL.JUAN FANNING NRO. 561 URB. ARMENDARIZ, MIRAFLORES, LIMA, LIMA | N63: ALFONSO SERRANO ANSELMO | O63: 271852.808 | P63: 8664341.14 | Q63: 62-PRE-2025 | R63: NOVIEMBRE
A64: 63-PRE-2025 | B64: FREAK CONSTRUCTORES Y CONSULTORES S.R.L. | C64: 20450515010 | D64: RESIDENCIAL GRECEL | E64: CALLE LOS GERANIOS LOTE D5-4-5 URB. INGENIEROS LARAPA GRANDE | F64: SAN JERÓNIMO | G64: CUSCO | H64: CUSCO | I64: TORRES | J64: TORRE 1 | K64: 41 | L64: 34 | M64: AV. REPUBLICA DE PANAMA NRO. 3420 INT. 301 URB. LIMATAMBO, SAN ISIDRO, LIMA, LIMA | N64: DUSHIAN ENRIQUE ROSA CRUZ | O64: 185778 | P64: 8501985 | Q64: 63-PRE-2025 | R64: NOVIEMBRE
A65: 64-PRE-2025 | B65: CONSTRUCTORA CUMBRES MONUMENTAL S.A.C. | C65: 20607279161 | D65: CONJUNTO RESIDENCIAL " VILLA MONUMENTAL" - CONDOMINIO 1 | E65: AV. ARGENTINA N° 1784-1846-1882 | F65: CALLAO | G65: CALLAO | H65: CALLAO | I65: EDIFICIOS | J65: EDIFICIO 1 / EDIFICIO 2 / EDIFICIO 3 / EDIFICIO 4 | K65: 512 | L65: 512 | M65: CAL.ALFONSO COBIAN NRO. 179 URB. BARRANCO (ESPALDA DE PLAZA VEA EL CORTIJO), BARRANCO, LIMA, LIMA | N65: ENRIQUE MARTIN HERRERA MARTINEZ | O65: 268805.5693 | P65: 8666884.008 | Q65: 64-PRE-2025 | R65: NOVIEMBRE
A66: 65-PRE-2025 | B66: ASTER COSTANERA 1010 S.A.C. | C66: 20614462842 | D66: EDIFICIO MULTIFAMILIAR COSTANERA | E66: AV. COSTANERA N°1010, LOTE NRO. 4 | F66: SAN MIGUEL | G66: LIMA | H66: LIMA | I66: EDIFICIOS | J66: EDIFICIO ÚNICO | K66: 214 | L66: 122 | M66: AV. SANTA CRUZ EL ALAMO NRO. 381 INT. 10 URB. CHACARILLA, SAN BORJA, LIMA, LIMA | N66: GIANCARLO CARBAJAL GALARZA | O66: 272200.61 | P66: 8662969 | Q66: 65-PRE-2025 | R66: NOVIEMBRE
A67: 66-PRE-2025 | B67: MILAN PROYECTOS S.A.C. | C67: 20611644052 | D67: AURORA 4 | E67: AV. SERGIO BERNALES N°258, MZ. W,URB. DEL BARRIO MEDICA Y DE LA CLINICA PROPIA | F67: SURQUILLO | G67: LIMA | H67: LIMA | I67: TORRES | J67: TORRE 1 | K67: 74 | L67: 43 | M67: CAL.JUAN DE LA FUENTE NRO. 378, MIRAFLORES, LIMA,LIMA | N67: LUIS ENRIQUE ARIAS CASTILLO | O67: 280263 | P67: 8659836 | Q67: 66-PRE-2025 | R67: NOVIEMBRE
A68: 67-PRE-2025 | B68: SAN JOSE INMOBILIARIA PERÚ S.A.C | C68: 20509534838 | D68: ALTAVISTA CONDOMINIO | E68: AV. VENEZUELA, N° 2695 | F68: BELLAVISTA | G68: CALLAO | H68: CALLAO | I68: ETAPAS | J68: ETAPA 1 HASTA LA ETAPA 10 | K68: 1056 | L68: 1056 | M68: AV. SANTA CRUZ N° 120, INT. 402, URB. CHACARILLA SANTA CRUZ EL ÁLAMO, SAN ISIDRO - LIMA | N68: JUAN ANTONIO ACEDO LOPEZ | O68: 272169.8475 | P68: 8665825.94 | Q68: 67-PRE-2025 | R68: NOVIEMBRE
A69: 68-PRE-2025 | B69: INMOBILIARIA 23 S.A.C. | C69: 20609436850 | D69: OCEANIKA | E69: AV. JUAN BERTOLOTTO NEGRO N°570, URB. FUNDO SAN MIGUEL. | F69: SAN MIGUEL | G69: LIMA | H69: LIMA | I69: TORRES | J69: TORRE ÚNICA | K69: 206 | L69: 173 | M69: AV. JUAN DE ALIAGA INT 810 N° 425, MAGDALENA DEL MAR, LIMA | N69: ROMMEL EDWIN VASQUEZ SILVA | O69: 273475 | P69: 8662387 | Q69: 68-PRE-2025 | R69: NOVIEMBRE
A70: 69-PRE-2025 | B70: ECO 564 S.A.C. | C70: 20612060691 | D70: ECOAMIRA | E70: AV. LOS PATRIOTAS MZ. H-M LT. 11 URB. MARANGA 3RA ETAPA. | F70: SAN MIGUEL | G70: LIMA | H70: LIMA | I70: EDIFICIOS | J70: EDIFICIO ÚNICO | K70: 91 | L70: 91 | M70: CAL. JUANA FANING N°561 URB. ALMENDARIZ - MIRAFLORES | N70: ALFONSO SERRANO ANSELMO | O70: 271272.5316 | P70: 8664259.735 | Q70: 69-PRE-2025 | R70: NOVIEMBRE
A71: 70-PRE-2025 | B71: INMOBILIARIA LOS ALERCES S.A.C. | C71: 20600517571 | D71: EDIFICIO MULTIFAMILIAR NARA | E71: AV. AREQUIPA N° 2364 - 2370 | F71: LINCE | G71: LIMA | H71: LIMA | I71: EDIFICIOS | J71: EDIFICIO 1 | K71: 128 | L71: 74 | M71: CALLE GERMAN SCHEREIBER N°276 URB SANTA ANA SAN ISIDRO-LIMA-LIMA | N71: IAN KUNIJI KISHIMOTO RAMIREZ | O71: 278581.2 | P71: 8662919.28 | Q71: 70-PRE-2025 | R71: NOVIEMBRE
A72: 71-PRE-2025 | B72: INMOBILIARIA SAN MARTIN DE TOURS S.A.C. | C72: 20512781196 | D72: TORRE MARSANO 28 | E72: AV. ANGAMOS ESTE ESQUINA CON AVENIDA TOMAS MARSANO N° 1795, MZ B, LOTE 8-9-10, URB. EL CONDOR. | F72: SURQUILLO | G72: LIMA | H72: LIMA | I72: EDIFICIOS | J72: EDIFICIO ÚNICO | K72: 348 | L72: 348 | M72: AV. ARAMBURU N° 965, DPT. 202, DISTRITO DE SAN ISIDRO, LIMA | N72: GONZALO ENRIQUE SUITO SÁNCHEZ AIZCORBE | O72: 280923.745 | P72: 8660220.812 | Q72: 71-PRE-2025 | R72: NOVIEMBRE
A73: 72-PRE-2025 | B73: CORPORACIÓN INMOBILIARIA FERMONT S.A.C. | C73: 20600245504 | D73: AVELLANA | E73: Av. Brasil / Av. Borgoño, N° 1350-1354 / 147-149 151-153-155-157-159-161, Urb. Desamparados | F73: PUEBLO LIBRE | G73: LIMA | H73: LIMA | I73: TORRES | J73: TORRE A Y B | K73: 656 | L73: 560 | M73: CALLE ENRIQUE PALACIOS N°360 N°INTERIOR 105, MIRAFLORES, LIMA, LIMA | N73: AMELY BALBINA TIMANA VARGAS | O73: 276638.55 | P73: 8664609.01 | Q73: 72-PRE-2025 | R73: DICIEMBRE
A74: 73-PRE-2025 | B74: INMOBILIARIA LA VID S.A.C | C74: 20613240021 | D74: SAUCE ZEN | E74: Calle Carlos Gonzales Candamo / Pje. Martin Murua N°218-222-224-202-206, Mz B, Lote 4-5 , Urbanización. Centro comercial septima etapa. | F74: SAN MIGUEL | G74: LIMA | H74: LIMA | I74: ETAPAS | J74: ETAPA UNICA | K74: 263 | L74: 263 | M74: CAL.MAMA OCLLO NRO. 2647 URB. RISSO (CRUCE CON JR LUIS PASTEUR) LIMA - LIMA - LINCE | N74: FERNANDO FELIX TORATTO FERNANDEZ | O74: 272425.18 | P74: 8664262 | Q74: 73-PRE-2025 | R74: DICIEMBRE
A75: 74-PRE-2025 | B75: INVERSIONES INMOBILIARIAS DE SAN MIGUEL S.A.C. | C75: 20613545230 | D75: NOVA COLONIAL | E75: Av. Oscar Benavides N° 2078-2082, Mz A, Lote 18, Urb. la Trinidad. | F75: LIMA | G75: LIMA | H75: LIMA | I75: TORRES | J75: TORRE UNICA | K75: 199 | L75: 199 | M75: Av. EL DERBY N° 254 DPTO. 803 | N75: FREDY MARTIN LOPEZ PROANO | O75: 274809.324 | P75: 8667219.831 | Q75: 74-PRE-2025 | R75: DICIEMBRE
A76: 75-PRE-2025 | B76: MIRADOR DEL MAR S.A.C. | C76: 20611734183 | D76: MIRAMAR | E76: AV. GUARDIA PERUANA N°295, URB. PARCELA SEMI RUSTICA. | F76: CHORRILLOS | G76: LIMA | H76: LIMA | I76: TORRES | J76: TORRE 1 | K76: 107 | L76: 87 | M76: Av. EL DERBY N° 254 DPTO. 202 URB EL DERBY DE MONTERRICO SURCO-LIMA-LIMA | N76: JOSE MARTIN JIMENEZ LLOSA | O76: 283023.399 | P76: 8652545.363 | Q76: 75-PRE-2025 | R76: DICIEMBRE
A77: 76-PRE-2025 | B77: GRUPO BINOMIO S.A.C | C77: 20536803646 | D77: RESIDENCIAL DELFINA | E77: CALLE GERMÁN AMEZAGA N° 815-817, MZ V1, LOTE 12, URB. SAN JUAN. | F77: SAN JUAN DE MIRAFLORES | G77: LIMA | H77: LIMA | I77: TORRES | J77: TORRE 1 | K77: 29 | L77: 27 | M77: AV. NICOLAS ARRIOLA N°314 OFICINA D-1101 URB SANTA CATALINA VICTORIA-LIMA-LIMA | N77: ANGELA MARIA URBANO PINTO | O77: 85803.326 | P77: 54260.076 | Q77: 76-PRE-2025 | R77: DICIEMBRE
A78: 77-PRE-2025 | B78: RESIDENCIAL ALTAVISTA ARANIBAR S.A.C | C78: 20612550825 | D78: EDIFICIO RESIDENCIAL ALTAVISTA | E78: AV. AUGUSTO PÉREZ ARANÍBAR N°1560,1562,1564,1566,1568,1570 ,1572,1574,1578,1580, MZ. 17 LOTE 1, URBANIZACION SANTA MONICA | F78: SAN ISIDRO | G78: LIMA | H78: LIMA | I78: EDIFICIOS | J78: EDIFICIO 1 | K78: 170 | L78: 105 | M78: CALLE GENERAL RECAVARREN N°185, DISTRITO DE MIRAFLORES, REGION Y PROVINCIA DE LIMA. | N78: Carlos Fernando Taboada Lecaros. | O78: 276551.466 | P78: 8660688.461 | Q78: 77-PRE-2025 | R78: DICIEMBRE
A79: 01-PRE-2026 | B79: TERRA INMOBILIARIA Y CONSTRUCTORA S.A.C | C79: 20611178990 | D79: SIENNA | E79: JR. GENERAL MORALES BERMUDEZ N° 472 MZ. 03 LOTE 5 -6 URB. CIRCOLO | F79: PUEBLO LIBRE | G79: LIMA | H79: LIMA | I79: EDIFICIOS | J79: EDIFICIO 1 | K79: 81 | L79: 46 | M79: Av. De Los Ingenieros 183, Urb. Valle Hermoso de Monterrico, Santiago de Surco. | N79: Ernesto Octavio Zapata Lopez. | O79: 276320.25 | P79: 8664689.12 | Q79: 01-PRE-2026 | R79: ENERO
A80: 02-PRE-2026 | B80: CONSTRUCCIONES COMUNIDAD S.A.C | C80: 20609576589 | D80: EDIFICIO MULTIFAMILIAR LIBERTAD | E80: JR. LIBERTAD, ESQ. CA. LEONCIO PRADO N° 435, URB. MIRAMAR | F80: SAN MIGUEL | G80: LIMA | H80: LIMA | I80: EDIFICIOS | J80: EDIFICIO 1 | K80: 89 | L80: 89 | M80: AV. CIRCUNVALACION CLUB GOLF LOS INCAS, N° 202, UR. CLUB GOLF LOS INCAS, DISTRITO SANTIAGO DE SURCO, PROVINCIA Y DEPARTAMENTO DE LIMA. | N80: UIS GERARDO LOZADA CUBAS | O80: 273110 | P80: 8662862 | Q80: 02-PRE-2026 | R80: ENERO
A81: 03-PRE-2026 | B81: INMOBILIARIA ALAMEDA DEL LUCERO S.A.C. | C81: 20610924523 | D81: EDIFICIO MULTIFAMILIAR NOVO 03 | E81: AV. JOSE GALVEZ, N° 950-952-954-956, MZ 9-F, LOTE 2, URB. FUNDO SANTA BEATRIZ | F81: LIMA | G81: LIMA | H81: LIMA | I81: EDIFICIOS | J81: EDIFICIO ÚNICO | K81: 154 | L81: 93 | M81: CAL. HORACIO CACHAY DIAZ, N° 125, DPT. 301, URB. SANTA CATALINA, DISTRITO LA VICTORIA, LIMA | N81: ANGELICA BERTHA MURRUGARRA DIAZ | O81: 278921.19 | P81: 8664526.87 | Q81: 03-PRE-2026 | R81: ENERO
A82: 04-PRE-2026 | B82: AFA DESARROLLADORES INMOBILIARIOS S.A.C. | C82: 20610945822 | D82: PROYECTO MULTIFAMILIAR NOVO 04 | E82: AV. TOMAS MARSANO, N° 1024-115, URB. BARRIO MEDICO. | F82: SURQUILLO | G82: LIMA | H82: LIMA | I82: EDIFICIOS | J82: EDIFICIO ÚNICO | K82: 96 | L82: 54 | M82: CAL. HORACIO CACHAY DIAZ, N° 125, DPT. 301, URB. SANTA CATALINA, DISTRITO LA VICTORIA, LIMA | N82: ANGELICA BERTHA MURRUGARRA DIAZ | O82: 281005.3157 | P82: 8660150.364 | Q82: 04-PRE-2026 | R82: ENERO
A83: 05-PRE-2026 | B83: MARSELLA INMOBILIARIA S.A.C. | C83: 20610744801 | D83: PROYECTO MULTIFAMILIAR MÁXIMO ABRIL | E83: AV. GENERAL MÁXIMO ABRIL, N° 576-578-580-582, URBANIZACIÓN SANTA BEATRIZ | F83: JESUS MARIA | G83: LIMA | H83: LIMA | I83: TORRES | J83: TORRE UNICA | K83: 134 | L83: 134 | M83: CAL. MAMA OCLLO, N° 2647, URB. RISSO, DISTRITO, PROVINCIA Y DEPARTAMENTO DE LIMA | N83: FERNANDO FELIX TORATTO FERNANDEZ | O83: 277969.74 | P83: 8664726.84 | Q83: 05-PRE-2026 | R83: ENERO
A84: 06-PRE-2026 | B84: VILLA DE LA ALAMEDA SUR IV | C84: 20301837896 | D84: LOS PORTALES S.A. | E84: U.C. N° 11272, URB. SECTOR FUNDO EL CARMEN PREDIO SAN ANTONIO | F84: CHILCA | G84: CAÑETE | H84: LIMA | I84: ETAPAS | J84: ETAPA ÚNICA | K84: 200 | L84: 200 | M84: JR. MARISCAL LA MAR N° 991, INT. 201, DISTRITO DE MAGDALENA, LIMA | N84: JUAN CARLOS CAMPANA HOLGUIN | O84: 309824.3974 | P84: 8616751.823 | Q84: 06-PRE-2026 | R84: ENERO
A85: 07-PRE-2026 | B85: HECTOR MORAN NEGOCIOS INMOBILIARIOS S.A.C. | C85: 20603893183 | D85: VIVIENDA MULTIFAMILIAR RESIDENCIAL VILLA OBSTETRA | E85: CALLE 01, MZ. D, LOTE 1, URB. VILLA OBSTETRA | F85: TACNA | G85: TACNA | H85: TACNA | I85: TORRES | J85: TORRE 1 | K85: 26 | L85: 26 | M85: CAL. SAMUEL ALCAZAR, N° 1339, DPT. 101, P.J. PARACHICO, DISTRITO, PROVINCIA Y DEPARTAMENTO DE TACNA. | N85: HECTOR AUGUSTO MORAN GUTIERREZ | O85: 363753.7022 | P85: 8004672.655 | Q85: 07-PRE-2026 | R85: ENERO
A86: 08-PRE-2026 | B86: SM RESIDENCIAL CUATRO S.A.C. | C86: 20612709107 | D86: CONDOMINIO SOLARIS | E86: JIRÓN COMUNIDAD INDUSTRIAL N° 230 URB. PARCELACIÓN SEMIRÚSTICA VILLA | F86: CHORRILLOS | G86: LIMA | H86: LIMA | I86: ETAPAS | J86: ETAPA 1 | K86: 367 | L86: 360 | M86: AV. ALMIRANTE MIGUEL GRAU N° 713, INT. 201, URB. SAN IGNACIO, DISTRITO DE BARRANCO, LIMA | N86: KARIANNA RAMIREZ LUNA | O86: 280187.35 | P86: 8653093.46 | Q86: 08-PRE-2026 | R86: ENERO
A87: 09-PRE-2026 | B87: ROYAL PROPERTIES S.A.C. | C87: 20614124360 | D87: SANMI | E87: CALLE CACIQUE DE UMACHIRI N° 305-309, URB. SAN MIGUELITO | F87: SAN MIGUEL | G87: LIMA | H87: LIMA | I87: EDIFICIOS | J87: EDIFICIO ÚNICO | K87: 17 | L87: 16 | M87: AV. LA MAR, N° 326, DISTRITO DE MIRAFLORES, LIMA. | N87: YALI MARIO TEODORO BARRERA CANDELA. | O87: 274304.8 | P87: 8663482.37 | Q87: 09-PRE-2026 | R87: ENERO
A88: 10-PRE-2026 | B88: CONSTRUCTORA GALILEA S.A.C. | C88: 20521119943 | D88: SOL DEL PRADO | E88: INMUEBLE 3 UBIC. RUR. SANTA LUCIA, LOTE 4, URB. PUYUNTALA 3 | F88: CATACAOS | G88: PIURA | H88: PIURA | I88: ETAPAS | J88: ETAPA 1 AL 12 | K88: 337 | L88: 337 | M88: AV. PRIMAVERA N° 1796, URB. MONTERRICO, SANTIAGO DE SURCO, LIMA. | N88: RENATO RIVA CANESSA | O88: 539057.5532 | P88: 9420971.396 | Q88: 10-PRE-2026 | R88: ENERO
A89: 11-PRE-2026 | B89: INVERSIONES PARQUE CASTILLA S.A.C. | C89: 20605254102 | D89: BERNALES 442 | E89: AV. SERGIO BERNALES, MZ J, LOTE 191, N° 442, URB. BARRIO MEDICO | F89: SURQUILLO | G89: LIMA | H89: LIMA | I89: EDIFICIOS | J89: EDIFICIO ÚNICO | K89: 73 | L89: 37 | M89: AV. REPUBLICA DE PANAMA, N° 3030, INT. 11B, URB. EL PALOMAR, DISTRITO DE SAN ISIDRO, PROVINCIA Y DEPARTAMENTO DE LIMA. | N89: PAOLA MILAGRITOS MAN HIGUCHI | O89: 280797.6955 | P89: 8659585.276 | Q89: 11-PRE-2026 | R89: ENERO
A90: 12-PRE-2026 | B90: R Y R MORAN S.A.C. | C90: 20601919878 | D90: CONJUNTO RESIDENCIAL “CORONEL BUSTIOS” | E90: CALLE PACHECO CÉSPEDES, LOTE 2, N° 307-311-315, URB. PAGO HUMO | F90: TACNA | G90: TACNA | H90: TACNA | I90: TORRES | J90: TORRE 1 | K90: 44 | L90: 44 | M90: SAMUEL ALCAZAR, MZ 8, LOTE 13-B, N° 1339, INT. 101, DISTRITO DE TACNA, REGION Y PROVINCIA DE TACNA. | N90: AMPARO ELIANA LOPEZ PEÑARANDA | O90: 368479.96 | P90: 8008128.74 | Q90: 12-PRE-2026 | R90: ENERO
A91: 13-PRE-2026 | B91: ESPARTA CONSTRUCTORES S.A | C91: 20551106897 | D91: ZIRCON | E91: JJR. NAZCA N° 698-704-712, URB. SANTA BEATRIZ | F91: JESUS MARIA | G91: LIMA | H91: LIMA | I91: EDIFICIOS | J91: EDIFICIO ÚNICO | K91: 257 | L91: 186 | M91: AV. ANDRESA ARAMBURÚ N° 965 INT 401 RES. SAN ISIDRO-LIMA-LIMA | N91: PAULO ALFONSO HIGUERAS SUAREZ | O91: 277698 | P91: 8664753 | Q91: 13-PRE-2026 | R91: ENERO
A92: 14-PRE-2026 | B92: LOS PORTALES DEPARTAMENTOS S.A.C. | C92: 20553346178 | D92: GRAN PARQUE NORTE | E92: AV. INDUSTRIAL N° 3765 Y 3799 | F92: INDEPENDENCIA | G92: LIMA | H92: LIMA | I92: ETAPAS | J92: ETAPA 1 TORRE 1, ETAPA 2 TORRE 2, ETAPA 3 TORRE 3 | K92: 569 | L92: 569 | M92: JR. MARISCAL LA MAR N°991 MAGDALENA DEL MAR-LIMA-LIMA | N92: DIEGO ISAAC ABARCA OTAYZA | O92: 275687.397 | P92: 8673719.063 | Q92: 14-PRE-2026 | R92: FEBRERO
A93: 15-PRE-2026 | B93: CARPI INMOBILIARIA SAC | C93: 20612028096 | D93: CONJUNTO RESIDENCIAL AV. SAN FELIPE 1110 - JESÚS MARÍA | E93: AV. SAN FELIPE y CALLE SIN NOMBRE N°1110-1112-1114 / LOTE 14 | F93: JESUS MARIA | G93: LIMA | H93: LIMA | I93: TORRES | J93: TORRE A / TORRE B | K93: 461 | L93: 461 | M93: CAL.MAMA OCLLO NRO. 2647 URB. RISSO, LINCE, LIMA, LIMA | N93: FERNANDO FELIX TORATTO FERNANDEZ | O93: 277155.19 | P93: 8663514.45 | Q93: 15-PRE-2026 | R93: FEBRERO
A94: 16-PRE-2026 | B94: ALBA 41 S.A.C. | C94: 20612276162 | D94: BEA | E94: Jr. ENRIQUE VILLAR N° 455-463, URB. FUNDO SANTA BEATRIZ | F94: LIMA | G94: LIMA | H94: LIMA | I94: TORRES | J94: TORRE 1 | K94: 131 | L94: 126 | M94: CALLE ENRIQUE PALACIOS N° 335 INT 101 URB SURQUILLO MIRALOFRES-LIMA-LIMA | N94: CARLOS EDUARDO HIDALGO PEREZ | O94: 278675.022 | P94: 8664162.683 | Q94: 16-PRE-2026 | R94: FEBRERO
A95: 17-PRE-2026 | B95: H & C INVERSIONES INMOBILIARIAS S.A.C. | C95: 20611697806 | D95: PROYECTO MULTIFAMILIAR LAS TORRES DE ZEUS | E95: CALLE VILLA HERMOSA N° 132 SECCIÓN 1 SUBLOTE 3 PT CERRITO ÁLVAREZ | F95: CERRO COLORADO | G95: AREQUIPA | H95: AREQUIPA | I95: TORRES | J95: TORRE A / TORRE B | K95: 114 | L95: 112 | M95: AV. BOLOGNESI N°902 CAYMA-AREQUIPA-AREQUIPA | N95: JORGE SANTIAGO SARDÓN PAREDES | O95: 227294.2517 | P95: 8186311.833 | Q95: 17-PRE-2026 | R95: FEBRERO
A96: 18-PRE-2026 | B96: PROMOTORA LA MURALLA DEL SUR S.A.C. | C96: 20609275945 | D96: VIBRANT | E96: CALLE TEODOSIO PARREÑO N° 214, MZ A, LOTE 1, URB. SILVIO GABILLO | F96: BARRANCO | G96: LIMA | H96: LIMA | I96: TORRES | J96: TORRE 1 | K96: 115 | L96: 89 | M96: AV. REDUCTO N° 1225, INT 402, URB. LEURO, MIRAFLORES-LIMA-LIMA | N96: CARMEN DEL PILAR ZAPATORIOS | O96: 280298.749 | P96: 8657788.652 | Q96: 18-PRE-2026 | R96: FEBRERO
A97: 19-PRE-2026 | B97: WR S.A. | C97: 20100048702 | D97: RESIDENCIAL SEISS | E97: AV. ALAMEDAS DEL RETABLO TERCERA ETAPA, MZ. A-2, LOTE 4-5-6, URB. ALAMEDAS DEL RETABLO | F97: COMAS | G97: LIMA | H97: LIMA | I97: ETAPAS | J97: ETAPA 1 | K97: 175 | L97: 175 | M97: AV. MANUEL OLGUIN N° 501, INT 1301, SANTIAGO DE SURGO-LIMA-LIMA | N97: CARLOS ANDRES PINILLOS FERNANDEZ | O97: 8657788.652 | P97: 8679958.44 | Q97: 19-PRE-2026 | R97: FEBRERO
A98: 20-PRE-2026 | B98: MG PROYECTO 24 S.A.C. | C98: 20612273929 | D98: HUIRACOCHA | E98: JR. HUIRACOCHA, N° 2170 - 2174, URB. SAN FELIPE. | F98: JESUS MARIA | G98: LIMA | H98: LIMA | I98: EDIFICIOS | J98: EDIFICIO UNICO | K98: 111 | L98: 111 | M98: AV. JAVIER PRADO ESTE N°1540, URB CORPAC-SAN ISIDRO-LIMA-LIMA | N98: VICTOR MAX GUEVARA OTINIANO | O98: 276632.6248 | P98: 8663342.94 | Q98: 20-PRE-2026 | R98: FEBRERO
A99: 21-PRE-2026 | B99: TOP HOUSE LAS DELICIAS DE MOCHE S.A.C. | C99: 20613123700 | D99: HABILITACIÓN URBANA CON CONSTRUCCIÓN SIMULTÁNEA PARA USO RESIDENCIAL "LAS DELICIAS DE MOCHE" | E99: LOTE ACUMULADO E, SECTOR LOS MUERTOS | F99: MOCHE | G99: TRUJILLO | H99: LA LIBERTAD | I99: ETAPAS | J99: ETAPA 1 | K99: 38 | L99: 38 | M99: AV. MARISCAL LA MAR N°°750, MIRAFLORES-LIMA-LIIMA | N99: PERICLES JUAN JIMENEZ SILVA | O99: 719248.49 | P99: 9095621.15 | Q99: 21-PRE-2026 | R99: FEBRERO
A100: 22-PRE-2026 | B100: CONSTRUCTORA E INMOBILIARIA 10 DE ABRIL S.A.C. | C100: 20604774510 | D100: EDIFICIO MULTIFAMILIAR MODENA | E100: AV. OLAVEGOYA N° 1846 | F100: JESUS MARIA | G100: LIMA | H100: LIMA | I100: EDIFICIOS | J100: EDIFICIO UNICO | K100: 200 | L100: 148 | M100: CALLE CANTURIAS N° 160 INT 503 URB TELLO, MIRAFLORES-LIMA-LIMA | N100: PAULO ALFONSO HIFUERAS SUAREZ | O100: 277081.19 | P100: 8663790.64 | Q100: 22-PRE-2026 | R100: FEBRERO
A101: 23-PRE-2026 | B101: GC DULANTO S.A.C. | C101: 20612537586 | D101: VILLA ALBA | E101: AV. MANUEL CIPRIANO DULANTO N° 1095 - 1087 - 1085, URB. COLMENARES | F101: PUEBLO LIBRE | G101: LIMA | H101: LIMA | I101: TORRES | J101: TORRE A | K101: 133 | L101: 120 | M101: AV. RICARDO RIVERA NAVARRETE N°827 OF 201 URB. JARDIN, SAN ISIDRO-LIMA-LIMA | N101: DANIELA CAMILLE SILVA GONZALEZ | O101: 275071.2215 | P101: 8663881.392 | Q101: 23-PRE-2026 | R101: FEBRERO
A102: 24-PRE-2026 | B102: LIDER INGENIERIA Y CONSTRUCCION S.A. | C102: 20519431395 | D102: LIVING RESIDENCIAL CLUB | E102: AV. COLONIAL, N° 1566-1578, URB. DEL FUNDO LAZO | F102: LIMA | G102: LIMA | H102: LIMA | I102: EDIFICIOS | J102: EDIFICIO 1 | K102: 136 | L102: 136 | M102: AV. MANUEL OLGUIN N°501, DPTO 1301, URB HARAS Y TYBER, SANTIAGO DE SURCO-LIMA-LIMA | N102: MOISES EFRAIN GUERRA CÁCERES | O102: 770343 | P102: 120253 | Q102: 24-PRE-2026 | R102: FEBRERO
A103: 25-PRE-2026 | B103: CONSTRUCTORA CYGNUS SAC | C103: 20600597966 | D103: CONJUNTO RESIDENCIAL CAPADOCIA | E103: JR. LUIS N SAENZ N° 447 | F103: JESUS MARIA | G103: LIMA | H103: LIMA | I103: EDIFICIOS | J103: EDIFICIO UNICO | K103: 146 | L103: 100 | M103: CALLE CANTURIAS N° 160 INT 503 URB TELLO, MIRAFLORES-LIMA-LIMA | N103: PAULO ALFONSO HIFUERAS SUAREZ | O103: 276324.08 | P103: 8663529.7 | Q103: 25-PRE-2026 | R103: FEBRERO
A104: 26-PRE-2026 | B104: PROYEC PROYECTO 02 SAC | C104: 20612811530 | D104: EDIFICIO MULTIFAMILIAR CAPRI | E104: PASAJE CAPRI, N° 120 - 130, URB. PALOMAR NORTE | F104: LA VICTORIA | G104: LIMA | H104: LIMA | I104: ETAPAS | J104: ETAPA 1 | K104: 120 | L104: 118 | M104: CALLE LOS ANTARES N°320 INT 602A URB LA ALBORADA SANTIAGO DE SURCO-LIMA-LIMA | N104: JORGE ENRIQUE OTINIANO CABRERA | O104: 280780.278 | P104: 8662887.101 | Q104: 26-PRE-2026 | R104: MARZO
A105: 27-PRE-2026 | B105: PAZ REAL ESTATE S.A.C. | C105: 20605346716 | D105: EDIFICIO MULTIFAMILIAR MEDINA | E105: AVENIDA EDGARDO REBAGLIATI, JR. ALMIRANTE GUISE Y JR. DOMINGO CUETO N° 405-413-421, URB. DE LOS TERRENOS DE LA ESCUELA NACIONAL DE AGRICULTURA Y VETERINARIA | F105: JESUS MARIA | G105: LIMA | H105: LIMA | I105: EDIFICIOS | J105: EDIFICIO UNICO | K105: 136 | L105: 118 | M105: A. AVIACIÓN N°2540 SAN BORJA-LIMA-LIMA | N105: ÁLVARO CURZIO MANGA VALENZUELA | O105: 277970.61 | P105: 8663755.36 | Q105: 27-PRE-2026 | R105: MARZO
A106: 28-PRE-2026 | B106: GRUPO CONSTRUCTOR LIDER | C106: 20613795058 | D106: CONJUNTO RESIDENCIAL ATREO | E106: CALLE ENRIQUE BARRON, MZ 23, LOTE 24, N° 280 282-284-286, URB. TEJADA | F106: BARRANCO | G106: LIMA | H106: LIMA | I106: TORRES | J106: TORRE A -TORRE B | K106: 152 | L106: 91 | M106: EL DERBYN°055 URB LIMA POLO AND HUNT CLUB SANTIAGO DE SURCO-LIMA-LIMA | N106: ALEJANDRO ALFONSO GAMARRA MORALES | O106: 280327.133 | P106: 8657172.209 | Q106: 28-PRE-2026 | R106: MARZO
A107: 29-PRE-2026 | B107: INVERSIONES LIBERTAD 2515 S.A.C. | C107: 20613984560 | D107: CONDOMINIO LIBERTAD 2515 | E107: AV. LIBERTAD ESQ. JR. RUFINO ECHENIQUE N° 2515/275, MZ 23, LOTE A-1, URB. MIRAMAR. | F107: SAN MIGUEL | G107: LIMA | H107: LIMA | I107: EDIFICIOS | J107: EDIFICIO UNICO | K107: 162 | L107: 154 | M107: AV. LA ENCALADA N°1010 - SANTIAGO DE SURCO-LIMA-LIMA | N107: JULIO CESAR DIAZ COSTA | O107: 270876.96 | P107: 8663824.25 | Q107: 29-PRE-2026 | R107: MARZO
A108: 30-PRE-2026 | B108: INMOBILIARIA FORTEM XII S.A.C. | C108: 20611548703 | D108: NEO LLOQUE | E108: JR. LLOQUE YUPANQUI N° 1235-1241-124. | F108: JESUS MARIA | G108: LIMA | H108: LIMA | I108: EDIFICIOS | J108: EDIFICIO 1 – EDIFICIO 2 | K108: 86 | L108: 66 | M108: AV. JAVIER PRADO ESTE N°4473 URB NEPTUNO SANTIAGO DE SURCO-LIMA-LIMA | N108: MARIA BEATRIZ FERNANDEZ DE LOS RIOS | O108: 277319.21 | P108: 8664390.25 | Q108: 30-PRE-2026 | R108: MARZO
A109: 31-PRE-2026 | B109: TER EDIFICACIONES S.A.C. | C109: 20602491511 | D109: MARSANO PARK | E109: AV. TOMAS MARSANO, MZ. G, LOTE 33 - 34 - 35 - 36, N° 1817-1821-1827-1831-1837-1843-1849-1855, URB. JORGE CHÁVEZ. | F109: SURQUILLO | G109: LIMA | H109: LIMA | I109: EDIFICIOS | J109: EDIFICIO 1 | K109: 215 | L109: 215 | M109: AV. ROOSEVELT N°5790 INT 401 URB AURORA MIRAFLORES-LIMA-LIMA | N109: ENRIQUE ARTURO SAITO SILVA | O109: 281579.58 | P109: 8659400.53 | Q109: 31-PRE-2026 | R109: MARZO
A110: 32-PRE-2026 | B110: URBANIZA PERU S.A.C. | C110: 20604867046 | D110: PARQUES DE HUACACHINA 7 | E110: PARC. 24A/PARQUES DE HUACACHINA III M 17. | F110: ICA | G110: ICA | H110: ICA | I110: ETAPAS | J110: ETAPA 7 | K110: 187 | L110: 187 | M110: CALLE GERMAN SCHEREIBER N°276 URB SANTA ANA SAN ISIDRO-LIMA-LIMA | N110: ALBERTS JOHN YAÑEZ MORALES | O110: 419152.35 | P110: 8440439.76 | Q110: 32-PRE-2026 | R110: MARZO
A111: 33-PRE-2026 | B111: JMD INMOBILIARIA S.A.C. | C111: 20614139341 | D111: MALENA FAMILY APARTMENTS | E111: JR. COMANDANTE ESPINAR N° 102-104-110-112. | F111: MAGDALENA DEL MAR | G111: LIMA | H111: LIMA | I111: EDIFICIOS | J111: EDIFICIO UNICO | K111: 115 | L111: 115 | M111: AV. ANGAMOS ESTE N°1555 INT 2 SURQUILLO-LIMA-LIMA | N111: JAIME TERRONES LEON | O111: 274513.07 | P111: 8661936.23 | Q111: 33-PRE-2026 | R111: MARZO
A112: 34-PRE-2026 | B112: ALBA 43 S.A.C. | C112: 20612276111 | D112: EDIFICIO MULTIFAMILIAR AURA | E112: CALLE GERARD BLANCHERE, ESQ. CON AV. TOMAS MARSANO, N° 101-103-105-1649-1651-1653-1655-1657, URB. LAS ORQUIDEAS. | F112: SURQUILLO | G112: LIMA | H112: LIMA | I112: EDIFICIOS | J112: EDIFICIO UNICO | K112: 126 | L112: 76 | M112: CAL. ENRIQUE PALACIOS N°335 INT 101 URB SURQUILLO MIRALOFRES-LIMA-LIMA | N112: CARLOS EDUARDO HIDALGO PEREZ | O112: 281509 | P112: 8659507 | Q112: 34-PRE-2026 | R112: MARZO
A113: 35-PRE-2026 | B113: QUATRO OMEGA S.A.C. | C113: 20612959464 | D113: EDIFICIO MULTIFAMILIAR VISTA TOWER | E113: AV. NUEVA TOMÁS MARSANO N° 2611-2619-2627, LOTE 2-3, URB. EL PEDREGAL. | F113: SURQUILLO | G113: LIMA | H113: LIMA | I113: EDIFICIOS | J113: EDIFICIO 1 | K113: 134 | L113: 74 | M113: CALLE LOS ALCANFORES N°142 URB SHELL MIRAFLORES-LIMA-LIMA | N113: OSCAR RICARDO ORTIGOSA QUIMPER | O113: 282003.05 | P113: 8658776.04 | Q113: 35-PRE-2026 | R113: MARZO
A114: 36-PRE-2026 | B114: 4C GRUPO INMOBILIARIO S.A.C. | C114: 20609668149 | D114: EDIFICIO MULTIFAMILIAR "ALPAMAYO" | E114: AVENIDA B (LOS FAISANES) MZ. K LT. 14 - B URB. LA CAMPIÑA. | F114: CHORRILLOS | G114: LIMA | H114: LIMA | I114: TORRES | J114: TORRE A -TORRE B | K114: 14 | L114: 9 | M114: MZ Q, LOTE 18 URB ALPAMAYO ATE-LIMA-LIMA | N114: SANDRA PATRICIA CARLOS NERYA | O114: 289270.9216 | P114: 8665676.068 | Q114: 36-PRE-2026 | R114: MARZO
A115: 37-PRE-2026 | B115: BAHIA DE ORO INMOBILIARIA SOCIEDAD ANONIMA | C115: 20609070804 | D115: BUGAMBILIAS | E115: AV. BRASIL CON JR. GENERAL CANTERAC N°1007-1021-138 | F115: JESUS MARIA | G115: LIMA | H115: LIMA | I115: ETAPAS | J115: ETAPA 1 -ETAPA 2 | K115: 459 | L115: 303 | M115: CALLE. MAMA OCLLO N°2647 URB RISSO LINCE-LIMA-LIMA | N115: FERNANDO FELIX TORATTO FERNANDEZ | O115: 276991.95 | P115: 8664910.73 | Q115: 37-PRE-2026 | R115: MARZO
A116: 38-PRE-2026 | B116: LOS PORTALES DEPARTAMENTOS S.A.C. | C116: 20553346178 | D116: GRAN BOSQUE CIRUELOS | E116: AV. LOS CIRUELOS N°880 PARCELACIÓN SEMIRÚSTICA DEL FUNDO CANTO GRANDE - II ETAPA | F116: SAN JUAN DE LURIGANCHO | G116: LIMA | H116: LIMA | I116: EDIFICIOS | J116: EDIFICIO 1 – EDIFICIO 2 | K116: 235 | L116: 235 | M116: JR. MARISCAL LA MAR N°991 MAGDALENA DEL MAR-LIMA-LIMA | N116: DIEGO ISAAC ABARCA OTAYZA | O116: 282450.777 | P116: 8674803.12 | Q116: 38-PRE-2026 | R116: MARZO
A117: 39-PRE-2026 | B117: CASAIDEAL PROYECTO 24 S.A.C. | C117: 20612934577 | D117: MULTIFAMILIAR VÖN | E117: AV. CARLOS VILLARAN, MZ. B, LOTE 13 14 - 15, URB. EL PALOMAR NORTE. | F117: LA VICTORIA | G117: LIMA | H117: LIMA | I117: TORRES | J117: TORRE A -TORRE B | K117: 297 | L117: 220 | M117: AV. EL POLO N°670 SANTIAGO DE SURCO, LIMA, LIMA | N117: CARLOS ALFREDO NOVOA AREVALO | O117: 280333.09 | P117: 8662804.33 | Q117: 39-PRE-2026 | R117: MARZO
A118: 40-PRE-2026 | B118: CORPORACION INMOBILIARIA SANTA MARIA S.A.C. | C118: 20611605472 | D118: EDIFICIO MULTIFAMILIAR LOTO | E118: AV. LA MARINA MZ. B, LOTE 1-2-3-4-5, N° 2600-2610-2630, URB. MARANGA. | F118: SAN MIGUEL | G118: LIMA | H118: LIMA | I118: TORRES | J118: TORRE 1 | K118: 526 | L118: 390 | M118: CALLE TENIENTE ENRIQUE PALACIOS N°360 N°INTERIOR 105, MIRAFLORES, LIMA, LIMA | N118: AMELY BALBINA TIMANA VARGAS | O118: 272322.623 | P118: 8664012.626 | Q118: 40-PRE-2026 | R118: MARZO
A119: 41-PRE-2026 | B119: RESIDENCIAL SAN LUIS S.A.C. | C119: 20610493646 | D119: EDIFICIO MULTIFAMILIAR SAN LUIS | E119: ACUMULACIÓN, MZ "I", LOTE N° 21-22-23-24, URB. LAS BEGONIAS | F119: SAN BORJA | G119: LIMA | H119: LIMA | I119: EDIFICIOS | J119: EDIFICIO UNICO | K119: 445 | L119: 300 | M119: CALLE GENERAL RECAVARREN N°185 INT 101 MIRAFLORES-LIMA-LIMA | N119: LUIS ALZAMORA PONCE DE LEON | O119: 282966.985 | P119: 8660397.211 | Q119: 41-PRE-2026 | R119: MARZO
A120: 42-PRE-2026 | B120: ROYAL PROPERTIES S.A.C. | C120: 20614124360 | D120: EDIFICIO MULTIFAMILIAR BLEND | E120: JR. PEDRO BENVENUTTO MURRIETA N° 464 ESQ. CA. VENTURA CCALAMAQUI N° 106, URB. PANDO 2DA ETAPA. | F120: SAN MIGUEL | G120: LIMA | H120: LIMA | I120: EDIFICIOS | J120: EDIFICIO UNICO | K120: 21 | L120: 15 | M120: AV. LA MAR, N° 326, DISTRITO DE MIRAFLORES, LIMA. | N120: YALI MARIO TEODORO BARRERA CANDELA. | O120: 272823.1897 | P120: 8663718.533 | Q120: 42-PRE-2026 | R120: ABRIL
A121: 43-PRE-2026 | B121: URBANIZA PERU S.A.C. | C121: 20604867046 | D121: ENCANTO DE HUACACHINA | E121: PREDIO CERRO GRANDE, SECTOR LA HUELGA | F121: ICA | G121: ICA | H121: ICA | I121: ETAPAS | J121: ETAPA 1 | K121: 59 | L121: 59 | M121: CALLE GERMAN SCHEREIBER N°276 URB SANTA ANA SAN ISIDRO-LIMA-LIMA | N121: ALBERTS JOHN YAÑEZ MORALES | O121: 418973.06 | P121: 8441310.28 | Q121: 43-PRE-2026 | R121: ABRIL
A122: 44-PRE-2026 | B122: INVERSIÓN RENTABLE 5 S.A.C. | C122: 20613924079 | D122: EDIFICIO MULTIFAMILIAR TULIV APARTMENTS | E122: AV. PASEO DE LA REPUBLICA N° 2500, URB. SAN EUGENIO | F122: LINCE | G122: LIMA | H122: LIMA | I122: EDIFICIOS | J122: EDIFICIO 1 | K122: 197 | L122: 109 | M122: AV. PASEO DE LA REPUBLICA Y CALLE LOS TULIPANES N° 440 - 2500, Y CALLE LOS TULIPANES N° 440, LOTE 1, Mz. 8, URB. SAN EUGENIO, DISTRITO LINCE, PROVINCIA Y DEPARTAMENTO DE LIMA | N122: RICARDO JAVIER ARBULU SOTO | O122: 279595.11 | P122: 8662939.43 | Q122: 44-PRE-2026 | R122: ABRIL
A123: 45-PRE-2026 | B123: CLASEM S.A.C. | C123: 20516390060 | D123: CONJUNTO RESIDENCIAL LOMAS DE LA ALAMEDA | E123: CALLE N° 19, MZ 4R, LOTE 1, SECCION ETAPA 4, URB. ALAMEDA SALAVERRY | F123: MIRAFLORES | G123: LIMA | H123: LIMA | I123: ETAPAS | J123: ETAPA 4 | K123: 128 | L123: 128 | M123: AV. REPUBLICA DE COLOMBIA N° 185, DISTRITO DE SAN ISIDRO, PROVINCIA Y DEPARTAMENTO DE LIMA | N123: EFRAIN MANUEL POLAR ONTANEDA | O123: 231859 | P123: 8186127 | Q123: 45-PRE-2026 | R123: ABRIL
A124: 46-PRE-2026 | B124: CONSTRUCTORA GALILEA S.A.C. | C124: 20521119943 | D124: PUERTAS DEL SOL III | E124: UBIC. RUR. VALLE CHANCAYSECTOR CHACUPE, URB. CHACUPE | F124: LA VICTORIA | G124: CHICLAYO | H124: LAMBAYEQUE | I124: ETAPAS | J124: ETAPAS 1 AL 11 | K124: 372 | L124: 372 | M124: VALLE CHANCAY SECTOR CHACUPE. URB. CHACUPE, DISTRITO LA VICTORIA, PROVINCIA DE CHICLAYO | N124: RENATO RIVA CANESSA | O124: 629673.33 | P124: 9245982.45 | Q124: 46-PRE-2026 | R124: ABRIL
A125: 47-PRE-2026 | B125: V Y V PROYECTO 73 S.A.C. | C125: 20607330817 | D125: VILLARAN 302 | E125: AV. CARLOS VILLARAN, SUB LOTE-B-1A Y SUB LOTE-B-1B, N° 302, URB. LA VICTORIA | F125: LA VICTORIA | G125: LIMA | H125: LIMA | I125: TORRES | J125: TORRE A -TORRE B | K125: 524 | L125: 524 | M125: AV. ALFREDO BENAVIDES N° 1579, URB. SAN JORGE, DISTRITO MIRAFLORES, PROVINCIA Y DEPARTAMENTO DE LIMA | N125: JUAN MANUEL PEÑA SALGADO | O125: 279976 | P125: 8662758 | Q125: 47-PRE-2026 | R125: ABRIL
A126: 48-PRE-2026 | B126: INMOBILIARIA VEINTIUNO S.A.C. | C126: 20604441065 | D126: VIA CENTRAL | E126: CARLOS ARRIETA Y ENRIQUE VILLAR N° 602-618, URB. SANTA BEATRIZ | F126: LIMA | G126: LIMA | H126: LIMA | I126: TORRES | J126: TORRE 1 | K126: 128 | L126: 92 | M126: CAL. ENRIQUE VILLAR N° 341, URB. SANTA BEATRIZ, DISTRITO CENTRO DE LIMA, PROVINCIA Y DEPARTAMENTO DE LIMA | N126: RAUL FERNANDO SALAS CORTES | O126: 278823.41 | P126: 8664181.77 | Q126: 48-PRE-2026 | R126: ABRIL
A127: 49-PRE-2026 | B127: V Y V PROYECTO 77 S.A.C. | C127: 20610794972 | D127: TORRE GERMANIA | E127: AV. ANGAMOS ESTE N° 1867-1869-1871, URB. SURQUILLO | F127: SURQUILLO | G127: LIMA | H127: LIMA | I127: EDIFICIOS | J127: EDIFICIO UNICO | K127: 309 | L127: 281 | M127: AV. ALFREDO BENAVIDES N° 1579, URB. SAN JORGE, DISTRITO MIRAFLORES, PROVINCIA Y DEPARTAMENTO DE LIMA | N127: JUAN MANUEL PEÑA SALGADO | O127: 281198.45 | P127: 8660255.35 | Q127: 49-PRE-2026 | R127: ABRIL
A128: 50-PRE-2026 | B128: INMOBILIARIA VENTO S.A.C. | C128: 20610680624 | D128: EDIFICIO MULTIFAMILIAR FREE | E128: AV. BRASIL N°2932-2940-2948-2956, URB. PANDO 2DA ETAPA | F128: SAN MIGUEL | G128: LIMA | H128: LIMA | I128: EDIFICIOS | J128: EDIFICIO UNICO | K128: 165 | L128: 69 | M128: AV. JUAN DE ALIAGA N° 427, DISTRITO DE MAGDALENA DEL MAR-LIMA-LIMA | N128: ROMMEL EDWIN VASQUEZ SILVA | O128: 275360.369 | P128: 8663001.551 | Q128: 50-PRE-2026 | R128: MAYO
A129: 51-PRE-2026 | B129: INVERSIONES RATTI S.A.C. | C129: 20606698926 | D129: RESIDENCIAL TAHUAYCANI | E129: INSCRIPCIÓN DE SECCIÓN ESPECIAL DE PREDIOS | F129: SACHACA | G129: AREQUIPA | H129: AREQUIPA | I129: EDIFICIOS | J129: EDIFICIO A1, B1, C1 | K129: 106 | L129: 106 | M129: AV. AREQUIPA N°2447 LINCE-LIMA-LIMA | N129: LUIS ALBERTO DELGADO ARROSPIDE | O129: 226949.69 | P129: 8184224.13 | Q129: 51-PRE-2026 | R129: MAYO
A130: 52-PRE-2026 | B130: PROYECTOS INMOBILIARIOS FCM S.A.C | C130: 20609568705 | D130: EDIFICIO MULTIFAMILIAR EZENA 4 | E130: JR. MARIANO CARRANZA N° 349-367, URB. SANTA BEATRIZ. | F130: LIMA | G130: LIMA | H130: LIMA | I130: EDIFICIOS | J130: EDIFICIO UNICO | K130: 144 | L130: 141 | M130: JR. MONTERREY N°341 URB CHACARILLA DEL ESTANQUE, SANTIAGO DE SURCO-LIMA-LIMA | N130: FERNANDO CORNEJO MOHME | O130: 278568 | P130: 8664316 | Q130: 52-PRE-2026 | R130: MAYO
A131: 53-PRE-2026 | B131: PROMOTORA RENE S.A.C. | C131: 20613323733 | D131: EDIFICIO MULTIFAMILIAR BUENA VISTA | E131: AVENIDA REPÚBLICA DE PANAMÁ Y JR. N° 5110, URB. DEL FUNDO SURQUILLO | F131: SURQUILLO | G131: LIMA | H131: LIMA | I131: EDIFICIOS | J131: EDIFICIO UNICO | K131: 164 | L131: 125 | M131: CALLE GERMAN SCHEREIBER N°276 URB SANTA ANA SAN ISIDRO-LIMA-LIMA | N131: ITALO STEFANO BINDA CANALES | O131: 280308 | P131: 8659839 | Q131: 53-PRE-2026 | R131: MAYO
A132: 54-PRE-2026 | B132: CONSORCIO CISSAC SCANDER S.A.C. | C132: 20601676622 | D132: CONJUNTO RESIDENCIALLOS CIRUELOS II ETAPA | E132: AV. EL SOL, PREDIO LOS CIRUELOS U.C. 10255-A | F132: PIMENTEL | G132: CHICLAYIO | H132: LAMBAYEQUE | I132: EDIFICIOS | J132: EDIFICIO UNICO | K132: 100 | L132: 100 | M132: AV. LA ENCALADA MZ I-2 URB C.C. MONTERRICO SANTIAGO DE SURCO-LIMA-LIMA | N132: JULIO CESAR DIAZ COSTA | O132: 623481.63 | P132: 9249664.72 | Q132: 54-PRE-2026 | R132: MAYO
A133: 55-PRE-2026 | B133: CONSTRUCTORA GALILEA S.A.C. | C133: 20521119943 | D133: SOL DE LA PRADERA | E133: PREDIO LA PALMA - FUNDO EL RETIRO, SUBLOTE 2. | F133: CHINCHA BAJA | G133: CHINCHA | H133: ICA | I133: ETAPAS | J133: ETAPAS 1 AL 15 | K133: 530 | L133: 530 | M133: AV. PRIMAVERA N°1796 URB MONTERRICO-SANITAGO DE SURCO-LIMA | N133: RENATO RIVA CANESSA | O133: 374661.885 | P133: 8511903.739 | Q133: 55-PRE-2026 | R133: MAYO
A134: 56-PRE-2026 | B134: ALBA 38 S.A.C. | C134: 20611721235 | D134: MIRALBA | E134: AV. ALIPIO PONCE, MZ B-1, SUBLOTE 2D 2E, URB. LA CAMPIÑA SEXTA Y SEPTIMA ETAPA. | F134: CHORRILLOS | G134: LIMA | H134: LIMA | I134: TORRES | J134: TORRE A | K134: 209 | L134: 122 | M134: CAL. ENRIQUE PALACIOS N°335 INT 101 URB SURQUILLO MIRALOFRES-LIMA-LIMA | N134: CARLOS EDUARDO HIDALGO PEREZ | O134: 283133.169 | P134: 8653399.035 | Q134: 56-PRE-2026 | R134: MAYO
A135: 57-PRE-2026 | B135: NOVA GESTION INMOBILIARIA S.A.C. | C135: 20612441902 | D135: VIVIENDA MULTIFAMILIAR ALZARA | E135: JIRÓN CATALINO MIRANDA, N° 520 | F135: BARRANCO | G135: LIMA | H135: LIMA | I135: EDIFICIOS | J135: EDIFICIO A | K135: 25 | L135: 15 | M135: AV. JORGE CHAVEZ N° 568, URB. SURQUILLO, DISTRITO DE MIRAFLORES, PROVINCIA Y DEPARTAMENTO DE LIMA | N135: JOSE LUIS CERMEÑO CAHUACHE | O135: 280942.06 | P135: 8657119.88 | Q135: 57-PRE-2026 | R135: MAYO
A136: 58-PRE-2026 | B136: INMOBILIARIA LA COLONIAL 5115 S.A.C. | C136: 20613039504 | D136: LOS JARDINES DE COLONIAL | E136: AV. OSCAR BENAVIDES, MZ. C, LOTE 17, N° 5115-5125-5137, URB. PARQUE INTERNACIONAL DE INDUSTRIA | F136: CALLAO | G136: CALLAO | H136: CALLAO | I136: TORRES | J136: TORRE A | K136: 250 | L136: 107 | M136: AV. MARISCAL LA MAR N° 550, URB. SANTA CRUZ, DISTRITO DE MIRAFLORES, PROVINCIA Y DEPARTAMENTO DE LIMA | N136: TITO ANTONIO PIQUE ROMERO | O136: 272438 | P136: 8666875 | Q136: 58-PRE-2026 | R136: MAYO
A137: 59-PRE-2026 | B137: CORPORACIÓN INMOBILIARIA PRINCIPE DE PAZ S.A.C. | C137: 20613181297 | D137: CONJUNTO RESIDENCIAL EUCALIPTO | E137: AV. BRASIL / AV. FRANCISCO JAVIER MARIÁTEGUI, N° 1857-1859-1861-1863-1865-1865A-1865B 1865C/1740-1742 | F137: JESUS MARIA | G137: LIMA | H137: LIMA | I137: ETAPAS | J137: ETAPA 1 (Torre A) –ETAPA 2 (Torre B y C) | K137: 766 | L137: 766 | M137: CAL. MAMA OCLLO, N° 2647, URB. RISSO, DISTRITO DE LINCE, PROVINCIA Y DEPARTAMENTO DE LIMA | N137: FERNANDO FELIX TORATTO FERNANDEZ | O137: 276262.46 | P137: 8663964.86 | Q137: 59-PRE-2026 | R137: MAYO
A138: 60-PRE-2026 | B138: INVERSIONES LOTUS S.A.C. | C138: 20602434452 | D138: BONSAI | E138: AV. MANUEL C. DULANTO / AV. JOSÉ ANTONIO DE SUCRE, MZ. P, LOTE 19 / 20-21, URB. COLMENARES. | F138: PUEBLO LIBRE | G138: LIMA | H138: LIMA | I138: EDIFICIOS | J138: EDIFICIO 1 | K138: 233 | L138: 232 | M138: CAL. TNTE ENRIQUE PALACIOS N° 360, DISTRITO DE MIRAFLORES, PROVINCIA Y DEPARTAMENTO DE LIMA | N138: AMELY BALBINA TIMANA VARGAS | O138: 275142.37 | P138: 8663855.81 | Q138: 60-PRE-2026 | R138: MAYO
A139: 61-PRE-2026 | B139: TM GESTION INMOBILIARIA S.A.C. | C139: 20549790373 | D139: RESIDENCIAL JARDINES DE SANTA BEATRIZ ETAPA III | E139: JR. JOSÉ GALVEZ, N° 1210 - 1212- 1218 - 1226 - 1240 - 1252 - 1276, URB. SANTA BEATRIZ | F139: LIMA | G139: LIMA | H139: LIMA | I139: ETAPAS | J139: ETAPA 3 | K139: 228 | L139: 122 | M139: CAL. TEODORO CARDENAS N° 701, URB. SANTA BEATRIZ, DISTRITO DE LIMA, PROVINCIA Y DEPARTAMENTO DE LIMA | N139: MARIO FERNANDO CRUZ GALARZA | O139: 278964.23 | P139: 8664146.8 | Q139: 61-PRE-2026 | R139: JUNIO
A140: 62-PRE-2026 | B140: INMOBILIARIA 101810 S.A.C. | C140: 20613756435 | D140: EDIFICIO MULTIFAMILIAR NAARA | E140: AV. UNIVERSITARIA, MZ D-1-2, LOTE 1, URB. PANDO | F140: SAN MIGUEL | G140: LIMA | H140: LIMA | I140: EDIFICIOS | J140: EDIFICIO A | K140: 136 | L140: 88 | M140: CAL. CORONEL ANDRES REYES N° 550, URB. JARDIN, DISTRITO SAN ISIDRO, PROVINCIA Y DEPARTAMENTO DE LIMA | N140: MARCELO MARTIN QUISPE REYNA | O140: 273164.09 | P140: 8662967.47 | Q140: 62-PRE-2026 | R140: JUNIO
A141: 63-PRE-2026 | B141: NARESH INMOBILIARIA S.A.C. | C141: 20613474804 | D141: EDIFICIO MULTIFAMILIAR CAPULÍ | E141: AV. TOMAS MARSANO, N° 242-248 | F141: SURQUILLO | G141: LIMA | H141: LIMA | I141: EDIFICIOS | J141: EDIFICIO UNICO | K141: 327 | L141: 327 | M141: CAL. MAMA OCLLO N° 2647, URB. RISSO, DISTRITO DEL CENTRO DE LIMA, PROVINCIA Y DEPARTAMENTO DE LIMA | N141: FERNANDO FELIX TORATTO FERNANDEZ | O141: 280393.08 | P141: 8660917.08 | Q141: 63-PRE-2026 | R141: JUNIO
A142: 64-PRE-2026 | B142: EV INMOBILIARIA LOS JADES S.A.C. | C142: 20608229800 | D142: LA MARINA 3420 | E142: AV. LA MARINA, N° 3420-3428-3432, MZ "GJ", LOTE 3-4-5, URB. MARANGÁ- 4TA ETAPA | F142: SAN MIGUEL | G142: LIMA | H142: LIMA | I142: EDIFICIOS | J142: EDIFICIO UNICO | K142: 227 | L142: 227 | M142: PRO. JAVIER PRADO ESTEN° 419, URB. CLUB GOLF LOS INCAS, DISTRITO DE SANTIAGO DE SURCO, PROVINCIA Y DEPARTAMENTO DE LIMA | N142: KATLEEN GIUBELL VARGAS GONZALES | O142: 271216.21 | P142: 8664499.29 | Q142: 64-PRE-2026 | R142: JUNIO
A143: 65-PRE-2026 | B143: FLAT BELISARIO S.A.C. | C143: 20613721356 | D143: FLAT BELISARIO | E143: CALLE BELISARIO FLORES, N° 121 (121A 121B-131-141-143), URB. FUNDO LOBATÓN | F143: LINCE | G143: LIMA | H143: LIMA | I143: EDIFICIOS | J143: EDIFICIO 1 | K143: 84 | L143: 58 | M143: AV. ARENALES N° 1912, URB. FUNDO LOBATON, DISTRITO DE LINCE, PROVINCIA Y DEPARTAMENTO DE LIMA | N143: LUIS PAUL FLORES SILUPU | O143: 278336 | P143: 8663570 | Q143: 65-PRE-2026 | R143: JUNIO
A144: 66-PRE-2026 | B144: MG PROYECTO 23 S.A.C. | C144: 20611409614 | D144: LUMA | E144: AV. COSTANERA, SUB LOTE C, AV. LA PAZ CDRA. 16 SUB LOTE B, URB. MIRAMAR | F144: SAN MIGUEL | G144: LIMA | H144: LIMA | I144: ETAPAS | J144: ETAPA 1 (TORRRE A), ETAPA 2 (TORRE B), ETAPA 3 (TORRE C), ETAPA 4 (TORRE D) | K144: 883 | L144: 883 | M144: AV. JAVIER PRADO ESTE N° 1540, URB. CORPAC, DISTRITO DE SAN ISIDRO, PROVINCIA Y DEPARTAMENTO DE LIMA | N144: VICTOR MAX GUEVARA OTINIANO | O144: 271649.35 | P144: 8663283.76 | Q144: 66-PRE-2026 | R144: JUNIO
A145: 67-PRE-2026 | B145: CONSTRUCTORA GALILEA S.A.C. | C145: 20521119943 | D145: SOL DE LAS VIÑAS | E145: PREDIO FUNDO SAN ANTONIO , LOTE A, UBICADO EN EL SECTOR ARRABALES | F145: SUBTANJALLA | G145: ICA | H145: ICA | I145: ETAPAS | J145: ETAPA 1 AL 6 | K145: 229 | L145: 229 | M145: AV. PRIMAVERA N° 1796, URB. MONTERRICO, SANTIAGO DE SURCO, LIMA | N145: RENATO RIVA CANESSA | O145: 419233.9271 | P145: 8449624.11 | Q145: 67-PRE-2026 | R145: JUNIO
A146: 68-PRE-2026 | B146: INMOBILIARIA RIBOT S.A.C. | C146: 20612849294 | D146: EDIFICIO MULTIFAMILIAR “BE HAPPY” | E146: AV. AREQUIPA / JR. BARTOLOMÉ HERRERA, N° 1711 / 218 - 220, URB. FUNDO LOBATON | F146: LINCE | G146: LIMA | H146: LIMA | I146: EDIFICIOS | J146: EDIFICIO UNICO | K146: 132 | L146: 84 | M146: AV. JUAN DE ALIAGA N° 425, URB. SAN FELIPE, DISTRITO DE MAGDALENA DEL MAR, PROVINCIA Y DEPARTAMENTO DE LIMA | N146: ROMMEL EDWIN VASQUEZ SILVA | O146: 278537.1443 | P146: 8663609.044 | Q146: 68-PRE-2026 | R146: JUNIO
A147: 69-PRE-2026 | B147: INVERSIONES MAPLE S.A.C. | C147: 20602127118 | D147: PINO | E147: AVENIDA NICOLAS ARRIOLA, MZ C, LOTE 2-3-4, SUBLOTE A, N° 198-210-240-250-270, URBANIZACIÓN PALOMAR NORTE | F147: LA VICTORIA | G147: LIMA | H147: LIMA | I147: TORRES | J147: TORRE 1 | K147: 662 | L147: 662 | M147: CAL. TENIENTE ENRIQUE PALACIOS N° 360, DISTRITO DE MIRAFLORES, PROVINCIA Y DEPARTAMENTO DE LIMA | N147: MELY BALBINA TIMANA VARGAS | O147: 280488.5 | P147: 8682813.2 | Q147: 69-PRE-2026 | R147: JUNIO

Sheet Propuesta de Certificados (hidden)
A1: N° Certificado | B1: Promotor | C1: Nombre del proyecto | D1: N° Etapa | E1: Cantidad de Viviendas con Bono | F1: Grado de Bono al que postula | G1: RUC | L1: VIVIENDAS TOTALES
A2: AE.RE.092.2020 | B2: Madrid Ingenieros | C2: Sol de Santa Clara | D2: 1 | E2: 279 | F2: 3+ | G2: 20508967226 | I2: ATE | J2: LIMA | K2: LIMA | L2: 279
A3: 301/15-0502.02 | B3: CORPORACION INMOBILIARIA SUDAMERICANA S.A.C. | C3: Condominio Paseo Colonial | D3: 1 | E3: 262 | F3: 1+ | G3: 20506908061 | I3: LIMA | J3: LIMA | K3: LIMA | L3: 262
A4: AE.RE.053.2020 | B4: REDBAY DEL PERU S.A.C. | C4: Alameda las Gaviotas | D4: Etapa 3 - Torre A y B | E4: 144 | F4: 3+ | G4: 20500523540 | I4: CHORRILLOS | J4: LIMA | K4: LIMA | L4: 358
A5: AE.RE.007.2020 | B5: VIVA NEGOCIO INMOBILIARIO S.A.C. | C5: Los Parques de Comas, Los Girasoles | D5: 4 | E5: 256 | F5: 3+ | G5: 20493040643 | I5: COMAS | J5: LIMA | K5: LIMA | L5: 384
A6: AE.RE.001.2020 | B6: VIVA NEGOCIO INMOBILIARIO S.A.C. | C6: Los Parques de Comas, Los Nogales | D6: 1 | E6: 192 | F6: 3+ | G6: 20493040643 | I6: COMAS | J6: LIMA | K6: LIMA | L6: 576
A7: AE.RE.008.2020 | B7: VIVA NEGOCIO INMOBILIARIO S.A.C. | C7: Los Parques de Comas, Los Molles | D7: 1 | E7: 360 | F7: 3+ | G7: 20493040643 | I7: COMAS | J7: LIMA | K7: LIMA | L7: 720
A8: AE.RE.009.2020 | B8: VIVA NEGOCIO INMOBILIARIO S.A.C. | C8: Los Parques de Comas, Los Girasoles | D8: 6 | E8: 512 | F8: 3+ | G8: 20493040643 | I8: COMAS | J8: LIMA | K8: LIMA | L8: 512
A9: AE.RE.013.2020 | B9: VIVA NEGOCIO INMOBILIARIO S.A.C. | C9: Los Parques del Callao | D9: 2,3 y 4 | E9: 360 | F9: 3+ | G9: 20493040643 | I9: CALLAO | J9: CALLAO | K9: CALLAO | L9: 984
A10: AE.RE.002.2020 | B10: BESCO S.A.C. | C10: Altaluz Condominio | D10: Etapa 3 - Torre 3 | E10: 308 | F10: 3+ | G10: 20416162299 | I10: CALLAO | J10: CALLAO | K10: CALLAO | L10: 338
A11: AE.RE.016.2020 | B11: BESCO S.A.C. | C11: Nuevo Nogales | D11: Torres 10,11,12 | E11: 480 | F11: 3+ | G11: 20416162299 | I11: EL AGUSTINO | J11: LIMA | K11: LIMA | L11: 2120
A12: 301/17-0314.07 | B12: Inmobiliaria Ruttini | C12: Terrazas del Sol Condominio | D12: 1, 2,3 y 4 | E12: 858 | F12: 1+ | G12: 20518010329 | I12: SAN JUAN DE LURIGANCHO | J12: LIMA | K12: LIMA | L12: 858
A13: 301/17-2529 | B13: BELGICA EDIFICACIONES S.A. | C13: Precursores 4 | D13: 1 | E13: 6 | F13: 1+ | G13: 20329728022 | I13: SAN MIGUEL | J13: LIMA | K13: LIMA | L13: 57
A14: AE.RE.077.2020 | B14: LIDER INGENIERIA Y CONSTRUCCION S.A. | C14: Conjunto Residencial Kampu Conominio Santa Clara | D14: 2 (Edif. 9,10,11); 3(Edif. 5,6); 4(Edif. 12,13); 5(Edif. 14,15); 6( Edif. ,16,17) | E14: 220 | F14: 3+ | G14: 20519431395 | I14: Ate | J14: Lima | K14: Lima | L14: 220
A15: 301/17-2180 | B15: WR S.A. | C15: Condominio Alameda Buganvillas III y IV | D15: Torre C y Torre D | E15: 140 | F15: 1+ | G15: 20100048702 | I15: Comas | J15: Lima | K15: Lima | L15: 384
A16: 301/17-2528 | B16: D&D CONSTRUCTORES S.A.C. | C16: Urbanizacion Los Huarangos | D16: 3 | E16: 99 | F16: 1+ | G16: 20494649161 | I16: Ica | J16: Ica | K16: Ica | L16: 99
A17: N° 001.2018 | B17: INVERSIONES QUALIVING S.A.C. /ZEN GRUPO INMOBILIARIO | C17: Edificio Multifamiliar Arnaldo Marquez | D17: Torre unica | E17: 112 | F17: 1+ | G17: 20601622581 | I17: Jesus Maria | J17: Lima | K17: Lima | L17: 132
A18: N° 002.2018 | B18: DESARROLLO SUCRE 132 S.A.C. /COSAPI | C18: Edificio PRANA | D18: 1 | E18: 73 | F18: 1+ | G18: 20601803993 | I18: Pueblo Libre | J18: Lima | K18: Lima | L18: 79
A19: N° 003.2018 | B19: A N INMOBILIARIA S.A.C. | C19: Ciudad Horcones | D19: 8 | E19: 1025 | F19: 1+ | G19: 20563652145 | I19: Jayanca | J19: Lambayeque | K19: Lambayeque | L19: 1025
A20: AE.RE.023.2020 | B20: INVERSIONES INMOBILIARIAS DEL INDICO S.A. (IMAGINA) | C20: Alto Benavides | D20: Todo el Proyecto | E20: 647 | F20: 3+ | G20: 20514048071 | I20: Lima | J20: Lima | K20: Lima | L20: 647
A21: N° 005.2018 | B21: INVERSIONES INMOBILIARIAS DEL MANTARO S.A. (IMAGINA) | C21: Alto Venezuela | D21: 3 | E21: 447 | F21: 3+ | G21: 20517503224 | I21: San Miguel | J21: Lima | K21: Lima | L21: 687
A22: AE.RE.028.2020 | B22: MEJ INMOBILIARIA S.A.C. | C22: Grand Central | D22: 1 | E22: 148 | F22: 2+ | G22: 20602151655 | I22: Breña | J22: Lima | K22: Lima | L22: 148
A23: N° 007.2018 | B23: CONSTRUCTORA INARCO PERU S.A.C. | C23: Condominio Paseo San Martin | D23: Torre 3 | E23: 116 | F23: 1+ | G23: 20519219922 | I23: San Martin de Porres | J23: Lima | K23: Lima | L23: 456
A24: N° 008.2018 | B24: COSAPI INMOBILIARIA & GRUPO LAR DESARROLLOS INMOBILIARIOS S.A.C. | C24: Duplo | D24: Torre A | E24: 147 | F24: 1+ | G24: 20555934263 | I24: Breña | J24: Lima | K24: Lima | L24: 177
A25: AE.RE.159.2020 | B25: MY HOME ORGANIZACION INMOBILIARIA S.A.C. | C25: Edificio Millenium | D25: 1 | E25: 84 | F25: 2+ | G25: 20509748633 | I25: La Victoria | J25: Lima | K25: Lima | L25: 84
A26: N° 010.2018 | B26: INVERSIONES GRANADERO S.A.C. | C26: Altus One | D26: Torre A | E26: 112 | F26: 1+ | G26: 20506916080 | I26: San Miguel | J26: Lima | K26: Lima | L26: 112
A27: N° 012.2018 | B27: TM GESTION INMOBILIARIA S.A.C. | C27: Condominio Jardines de Santa Beatriz | D27: 1 (Torre C) | E27: 77 | F27: 1+ | G27: 20549790373 | I27: Lima | J27: Lima | K27: Lima | L27: 77
A28: AE.RE.089.2020 | B28: DESARROLLO INMOBILIARIO FT S.A.C. | C28: Hara | D28: Fase 1 y Fase 2 | E28: 160 | F28: 3+ | G28: 20601881749 | I28: La Victoria | J28: Lima | K28: Lima | L28: 170
A29: N° 012B.2018 | B29: WESTERN CONSTRUCTION S.A. (WESCON) | C29: Edificio Residencial Conecta | D29: 1 | E29: 75 | F29: 1+ | G29: 20509940666 | I29: Lima | J29: Lima | K29: Lima | L29: 75
A30: AE.RE.019.2021 | B30: AMAUTA 2272 S.A.C. (WESCON) | C30: Edificio Multifamiliar FESTIVA Etapa 2 (antes Edificio de Vivienda Multifamiliar Amauta) | D30: Etapa 2 | E30: 136 | F30: 3+ | G30: 20557848411 | I30: Lima | J30: Lima | K30: Lima | L30: 140
A31: AE.RE.113.2020 | B31: PAZ CENTENARIO S.A. | C31: Ciudad Nueva 4 | D31: 4(Torre D) | E31: 27 | F31: 1+ | G31: 20518023579 | I31: Callao | J31: Callao | K31: Callao | L31: 27
A32: N° 015.2018 | B32: PAZ CENTENARIO S.A. | C32: Ciudad Nueva 3 | D32: 3 (Torre E y F) | E32: 63 | F32: 1+ | G32: 20518023579 | I32: Callao | J32: Callao | K32: Callao | L32: 444
A33: N° 016.2018 | B33: PAZ CENTENARIO S.A. | C33: Ciudad Verde 3 | D33: 3 (Torre E y F) | E33: 45 | F33: 1+ | G33: 20518023579 | I33: Puente Piedra | J33: Lima | K33: Lima | L33: 144
A34: AE.RE.114.2020 | B34: PAZ CENTENARIO S.A. | C34: Proyectos Prados del Sol 4 | D34: 4 (Torre J,K,L) | E34: 58 | F34: 3+ | G34: 20518023579 | I34: Ate | J34: Lima | K34: Lima | L34: 120
A35: N° 018.2018 | B35: PAZ CENTENARIO S.A. | C35: Ciudad Verde | D35: 4 (Torre G) | E35: 72 | F35: 1+ | G35: 20518023579 | I35: Puente Piedra | J35: Lima | K35: Lima | L35: 72
A36: AE.RE.027.2020 | B36: DESARROLLO PLAZA GRAU S.A.C | C36: CONJUNTO RESIDENCIAL Y DE COMERCIO MIDLIMA (antes Midtown) | D36: Torres 1,2,3,4,5,6,7,8,9,10,11,12,13 | E36: 414 | F36: 3+ | G36: 20563177323 | I36: Lima | J36: Lima | K36: Lima | L36: 414
A37: N° 020.2018 | B37: LIDER INVERSIONES AREQUIPA S.A. | C37: Almira Condominio | D37: 1 Etapa, 1 Edificio | E37: 63 | F37: 1+ | G37: 20539613716 | I37: JACOBO HUNTER | J37: Arequipa | K37: Arequipa | L37: 63
A38: AE.RE.052.2020 | B38: DESARROLLADORA VISTA NEVADO S.A.C. | C38: CasaParq | D38: Torres B | E38: 63 | F38: 3+ | G38: 20602442439 | I38: Cerro Colorado | J38: Arequipa | K38: Arequipa | L38: 63
A39: AE.RE.011.2020 | B39: VIVA NEGOCIO INMOBILIARIO S.A.C. | C39: Los Parques de Comas, Villa Jacaranda | D39: 6 Edificios, 1,2,3,4,5,6 | E39: 720 | F39: 3+ | G39: 20493040643 | I39: Comas | J39: Lima | K39: Lima | L39: 720
A40: AE.RE.026.2020 | B40: DESARROLLO TANGUIS S.A.C. (ANTES GRUPO LAR DESARROLLOS INMOBILIARIOS S.A.C.) | C40: Eres | D40: Fase 1 Torre A, Fase 2 Torre B, Fase 3 Torre C | E40: 365 | F40: 3+ | G40: 20551609538 | I40: Surquillo | J40: Lima | K40: Lima | L40: 599
A41: AE.RE.021.2020 | B41: DESARROLLO PASEO DE LA REPUBLICA S.A.C. (ANTERIORMENTE GRUPO LAR DESARROLLOS INMOBILIARIOS S.A.C.) | C41: Elant | D41: Fase 1 Torre A, Fase 2 Torre B, Fase 3 Torre C | E41: 447 | F41: 3+ | G41: 20601832098 | I41: La Victoria | J41: Lima | K41: Lima | L41: 448
A42: N° 025.2018 | B42: A-ZERO INMOBILI S.A.C. | C42: Buenavista | D42: Torre unica | E42: 3 | F42: 1+ | G42: 20451658337 | I42: Santiago de Surco | J42: Lima | K42: Lima | L42: 3
A43: N° 026.2018 | B43: A-ZERO INMOBILI S.A.C. | C43: Multifamiliar Nature | D43: Torre unica | E43: 8 | F43: 1+ | G43: 20451658337 | I43: SAN JUAN DE LURIGANCHO | J43: Lima | K43: Lima | L43: 8
A44: AE.RE.116.2020 | B44: PAZ CENTENARIO S.A. | C44: Proyectos Prados del Sol 3 | D44: 3 (Torre M,N,O) | E44: 70 | F44: 3+ | G44: 20518023579 | I44: Ate | J44: Lima | K44: Lima | L44: 100
A45: AE.RE.115.2020 | B45: PAZ CENTENARIO S.A. | C45: Proyectos Prados del Sol 5 | D45: 5 (Torre H,I) | E45: 40 | F45: 3+ | G45: 20518023579 | I45: Ate | J45: Lima | K45: Lima | L45: 60
A46: N° 029.2018 | B46: INMOBILIARIA VALLE LUZ S.A.C. | C46: Edificio Motion San Miguel | D46: Torre Unica | E46: 54 | F46: 1+ | G46: 20492434052 | I46: San Miguel | J46: Lima | K46: Lima | L46: 138
A47: N° 030.2018 | B47: INMOBILIARIA NUESTRA SEÑORA DE COPACABANA S.A.C. (MAGBIS) | C47: Residencial Nuevo Lurin | D47: Torre unica | E47: 68 | F47: 1+ | G47: 20549933409 | I47: Lurin | J47: Lima | K47: Lima | L47: 68
A48: AE.RE.004.2020 | B48: VIVA NEGOCIO INMOBILIARIO S.A.C. | C48: Los Parques de Comas, Los Laureles | D48: 1 | E48: 640 | F48: 3+ | G48: 20493040643 | I48: Comas | J48: Lima | K48: Lima | L48: 640
A49: AE.RE.012.2020 | B49: VIVA NEGOCIO INMOBILIARIO S.A.C. | C49: Los Parques de Comas, Los Laureles | D49: 2 | E49: 640 | F49: 3+ | G49: 20493040643 | I49: Comas | J49: Lima | K49: Lima | L49: 640
A50: AE.RE.014.2020 | B50: VIVA NEGOCIO INMOBILIARIO S.A.C. | C50: Los Parques de Comas, Los Laureles | D50: 3 | E50: 640 | F50: 3+ | G50: 20493040643 | I50: Comas | J50: Lima | K50: Lima | L50: 640
A51: AE.RE.015.2020 | B51: VIVA NEGOCIO INMOBILIARIO S.A.C. | C51: Los Parques de Comas, Los Laureles | D51: 4 | E51: 640 | F51: 3+ | G51: 20493040643 | I51: Comas | J51: Lima | K51: Lima | L51: 640
A52: AE.RE.010.2020 | B52: VIVA NEGOCIO INMOBILIARIO S.A.C. | C52: Los Parques de Comas, Las Magnolias Club Residencial | D52: Torres 1,2,3,4,5,6 | E52: 768 | F52: 3+ | G52: 20493040643 | I52: Comas | J52: Lima | K52: Lima | L52: 768
A53: N° 036.2018 | B53: VIVA NEGOCIO INMOBILIARIO S.A.C. | C53: Los Parques de Comas, Girasoles 5 | D53: 5 | E53: 384 | F53: 1+ | G53: 20493040643 | I53: Comas | J53: Lima | K53: Lima | L53: 384
A54: AE.RE.034.2020 | B54: VIVA NEGOCIO INMOBILIARIO S.A.C. | C54: Los Parques de Piura II | D54: 2 | E54: 240 | F54: 3+ | G54: 20493040643 | I54: Piura | J54: Piura | K54: Piura | L54: 336
A55: AE.RE.074.2020 | B55: ALBAURBE PROMOTORA INMOBILIARIA S.A.C. (ALBAMAR) | C55: POINT PUEBLO LIBRE (antes EDIFICIO BOLIVAR POINT) | D55: Torre unica (del piso 5° al piso 20°) | E55: 55 | F55: 3+ | G55: 20601552249 | I55: Pueblo Libre | J55: Lima | K55: Lima | L55: 166
A56: AE.RE.111.2020 | B56: PAZ CENTENARIO S.A. | C56: Ciudad Nueva 5 | D56: 5 (Torre I,J) | E56: 128 | F56: 3+ | G56: 20518023579 | I56: Callao | J56: Callao | K56: Callao | L56: 128
A57: N° 040.2018 | B57: NEOVIDA CONSTRUCCIONES S.A.C. | C57: Residencial Santa elena | D57: Torre unica | E57: 11 | F57: 1+ | G57: 20524115213 | I57: Magdalena del Mar | J57: Lima | K57: Lima | L57: 31
A58: AE.RE.160.2020 | B58: VIVA NEGOCIO INMOBILIARIO S.A.C. | C58: Parques del Mar | D58: Torre A y Torre B | E58: 248 | F58: 2+ | G58: 20493040643 | I58: San Miguel | J58: Lima | K58: Lima | L58: 248
A59: AE.RE.105.2020 / AE.RE.095.2020 | B59: CONSORCIO DHMONT & CG&M S.A.C. | C59: Ciudad Sol de Collique | D59: Manzana E (todos los blocks) y Manzana G Lote 4 (Block N° 9 y 18) y Lote 5 (Block N° 7 y 8) | E59: 2906 | F59: 3+ | G59: 20502574109 | I59: Comas | J59: Lima | K59: Lima | L59: 4260
A60: AE.RE.096.2020 | B60: CONSORCIO DHMONT & CG&M S.A.C. | C60: Oasis de Piura | D60: 1,2,3,4 | E60: 2352 | F60: 3+ | G60: 20502574109 | I60: Piura | J60: Piura | K60: Piura | L60: 2352
A61: AE.RE.022.2020 | B61: INVERSIONES INMOBILIARIAS DE LA ATLANTIDA S.A. | C61: Conjunto residencial SMART | D61: Torre A y Torre B | E61: 178 | F61: 3+ | G61: 20515544187 | I61: Surquillo | J61: Lima | K61: Lima | L61: 306
A62: N° 045.2018 | B62: PAZ CENTENARIO S.A. | C62: Vista Azul Etapa 1 | D62: Torre A | E62: 123 | F62: 1+ | G62: 20518023579 | I62: San Miguel | J62: Lima | K62: Lima | L62: 123
A63: N° 046.2018 | B63: PAZ CENTENARIO S.A. | C63: Icono | D63: Torre unica | E63: 75 | F63: 1+ | G63: 20518023579 | I63: Breña | J63: Lima | K63: Lima | L63: 255
A64: AE.RE.055.2020 | B64: CONSORCIO CISS.A.C. SCANDER S.A.C. | C64: Edificio Del Parque 1° Etapa | D64: Edificio 1-Modulo 2 | E64: 120 | F64: 3+ | G64: 20601676622 | I64: Pimentel | J64: Chiclayo | K64: Lambayeque | L64: 120
A65: N° 048.2018 | B65: VILLA CLUB S.A.C. | C65: Villa Club Ica Sub Etapa 2 | D65: 2 | E65: 31 | F65: 1+ | G65: 20492390098 | I65: LA TINGUIÑA | J65: Ica | K65: Ica | L65: 59
A66: N° 049.2018 | B66: VILLA CLUB S.A.C. | C66: Villa Club Ica Sub Etapa 3 | D66: 3 | E66: 68 | F66: 1+ | G66: 20492390098 | I66: LA TINGUIÑA | J66: Ica | K66: Ica | L66: 68
A67: N° 050.2018 | B67: CONSTRUCTORA E INMOBILIARIA PALCER S.A.C. | C67: Condominio Residencial Los Huertos | D67: II-2 | E67: 70 | F67: 1+ | G67: 20505196865 | I67: San Martin de Porres | J67: Lima | K67: Lima | L67: 70
A68: AE.RE.059.2020 | B68: BUENAS INVERSIONES S.A.C. (SENDA) | C68: Vivienda - Comercio MET | D68: Torre unica | E68: 256 | F68: 3+ | G68: 20600930258 | I68: La Victoria | J68: Lima | K68: Lima | L68: 381
A69: N° 052.2018 | B69: LAPPSA ORGANIZACION INMOBILIARIA S.A. | C69: Edificio Santa Sofia | D69: Torre A,B y C | E69: 99 | F69: 1+ | G69: 20507908943 | I69: Chorrillos | J69: Lima | K69: Lima | L69: 116
A70: AE.RE.030.2020 | B70: DESARROLLO OLGUIN S.A.C. | C70: Epiqe | D70: 3 | E70: 143 | F70: 3+ | G70: 20603106521 | I70: Santiago de Surco | J70: Lima | K70: Lima | L70: 204
A71: AE.RE.090.2020 | B71: SAN JOSE INMOBILIARIA PERU S.A.C. | C71: Nuevavista Condominio | D71: Edificio 2,3,4, 5, 6, 7, 8, 9, 10 | E71: 1032 | F71: 3+ | G71: 20509534838 | I71: Bellavista | J71: Callao | K71: Callao | L71: 1104
A72: AE.RE.016.2021 | B72: A&A GRUPO INMOBILIARIO S.A.C. (ANTES INVERSIONES CH & M S.A.C.) | C72: Habilitacion Urbana Prados del Este | D72: 1 y 2 | E72: 199 | F72: 1+ | G72: 20603898126 | I72: Subtanjalla | J72: Ica | K72: Ica | L72: 322
A73: AE.RE.038.2020 | B73: CONSTRUCTORA CUMBRES VILLANOVA S.A.C. | C73: Conjunto Residencial Villanova 2 | D73: Etapa 2 | E73: 96 | F73: 3+ | G73: 20602704891 | I73: Callao | J73: Callao | K73: Callao | L73: 538
A74: AE.RE.102.2020 | B74: INSURCO PROYECTOS S.A.C. (INVENT) | C74: Invent San Felipe | D74: Torre 1 | E74: 38 | F74: 2+ | G74: 20602544461 | I74: Jesus Maria | J74: Lima | K74: Lima | L74: 72
A75: AE.RE.018.2020 | B75: BESCO S.A.C. | C75: Las Palmas (Ex Proyecto Chorrillos) | D75: Edif. A, B, C, D, E | E75: 313 | F75: 3+ | G75: 20416162299 | I75: Chorrillos | J75: Lima | K75: Lima | L75: 313
A76: N° 059.2018 | B76: VILLA CLUB S.A.C. | C76: Proyecto Villa Club Carabayllo -etapa 4 | D76: 4 | E76: 58 | F76: 1+ | G76: 20492390098 | I76: Carabayllo | J76: Lima | K76: Lima | L76: 600
A77: N° 060.2018 | B77: VILLA CLUB S.A.C. | C77: Proyecto Villa Club Carabayllo -etapa 5 | D77: 5 | E77: 68 | F77: 1+ | G77: 20492390098 | I77: Carabayllo | J77: Lima | K77: Lima | L77: 655
A78: AE.RE.043.2020 | B78: AIP 15 S.A.C. (ARTECO) | C78: Depa+Club Lince | D78: Etapa 1 y 2, Torre única | E78: 172 | F78: 3+ | G78: 20600327411 | I78: Lince | J78: Lima | K78: Lima | L78: 177
A79: N° 062.2018 | B79: CORPORACION INMOBILIARIA NERIDA MARIA S.A.C. (ABRIL INMOBILIARIA) | C79: Edificio Los Robles | D79: Torres A, B, C | E79: 282 | F79: 1+ | G79: 20518128249 | I79: Surquillo | J79: Lima | K79: Lima | L79: 301
A80: N° 063.2018 | B80: GRECO INMOBILIARIA S.A.C. | C80: Edificio Ficus | D80: Torre 1 | E80: 264 | F80: 1+ | G80: 20552897863 | I80: Jesus Maria | J80: Lima | K80: Lima | L80: 264
A81: N° 064.2018 | B81: AMAUTA 2272 S.A.C. (WESCON) | C81: Edificio Amauta - Etapa 1 | D81: Etapa 1 | E81: 36 | F81: 1+ | G81: 20557848411 | I81: Lima | J81: Lima | K81: Lima | L81: 36
A82: AE.RE.071.2020 | B82: INMOBILIARIA CAPIENTE S.A.C. (URBANA) | C82: Tempo Etapa 1 Etapa 2 | D82: 2 Sectores/ Etapa 1 | E82: 320 | F82: 3+ | G82: 20602336850 | I82: La Victoria | J82: Lima | K82: Lima | L82: 396
A83: AE.RE.049.2020 | B83: QUATRO PROYECTOS S.A.C. | C83: FAMILY TOWER | D83: Torre unica | E83: 172 | F83: 2+ | G83: 20555726075 | I83: Breña | J83: Lima | K83: Lima | L83: 173
A84: N° 067.2018 | B84: MY HOME ORGANIZACION INMOBILIARIA S.A.C. | C84: Edificio Voce | D84: Torre 1 | E84: 19 | F84: 1+ | G84: 20509748633 | I84: La Victoria | J84: Lima | K84: Lima | L84: 39
A85: N° 068.2018 | B85: BARQUEROS GRUPO CONSTRUCTOR S.A.C. | C85: Residencial Medis | D85: 1 | E85: 36 | F85: 1+ | G85: 20601148481 | I85: Pueblo Libre | J85: Lima | K85: Lima | L85: 63
A86: N° 069.2018 | B86: Z Y V INVERSIONES S.A.C. | C86: Edificio Multifmailiar Ingarden | D86: 1 | E86: 32 | F86: 1+ | G86: 20537924137 | I86: El Tambo | J86: Huancayo | K86: Junin | L86: 32
A87: N° 070.2018 | B87: LA VENTUROSA S.A. | C87: Condominio Bella Flora | D87: 3 | E87: 133 | F87: 1+ | G87: 20383731705 | I87: Santiago de Surco | J87: Lima | K87: Lima | L87: 215
A88: N° 071.2018 | B88: URBANIZACION LOS JARDINES DEL EDEN S.A.C. | C88: Los Jardines del Eden Etapa 2 | D88: 2 | E88: 178 | F88: 1+ | G88: 20602187145 | I88: Ica | J88: Ica | K88: Ica | L88: 178
A89: N° 072.2018 | B89: P&G GROUP S.A.C. | C89: Residencial las Orquideas II | D89: Torre Interior y exterior | E89: 60 | F89: 1+ | G89: 20482628487 | I89: TRUJILLO | J89: TRUJILLO | K89: LA LIBERTAD | L89: 60
A90: N° 073.2018 | B90: CIUDARIS CONSULTORES INMOBILIARIOS S.A. | C90: Residencial Shine | D90: 1 | E90: 100 | F90: 1+ | G90: 20432280056 | I90: San Miguel | J90: Lima | K90: Lima | L90: 139
A91: N° 074.2018 | B91: A-ZERO INMOBILI S.A.C. | C91: Edificio Multifamiliar Golf de Huampani | D91: Torre unica | E91: 8 | F91: 1+ | G91: 20451658337 | I91: San Juan de Lurigancho | J91: Lima | K91: Lima | L91: 8
A92: N° 075.2018 | B92: CONSTRUCTORA E INMOBILIARIA OHOSO S.A.C. (ARMAS DOOMO) | C92: Alto Lima | D92: 1 | E92: 280 | F92: 1+ | G92: 20548363331 | I92: LA VICTORIA | J92: Lima | K92: Lima | L92: 444
A93: AE.RE.031.2020 | B93: AIP 14 S.A.C. (ARTECO) | C93: Depas+Club La Breña | D93: 1 | E93: 119 | F93: 3+ | G93: 20556280925 | I93: Breña | J93: Lima | K93: Lima | L93: 119
A94: AE.RE.020.2020 | B94: INVERSIONES INMOBILIARIAS DE LAS CONDES S.A. (IMAGINA) | C94: Proyecto Concepto "Magic Ocean" | D94: 1 y 2 | E94: 136 | F94: 3+ | G94: 20537745631 | I94: San Miguel | J94: Lima | K94: Lima | L94: 368
A95: N° 078.2018 | B95: VIVIENDAS DEL PERU S.A.C. | C95: Bonavi 2 | D95: Proyecto Integral | E95: 56 | F95: 1+ | G95: 20512691529 | I95: Pueblo Libre | J95: Lima | K95: Lima | L95: 75
A96: N° 079.2018 | B96: PROEDCO S.A.C. | C96: Edificio Yanacoto | D96: 1 | E96: 16 | F96: 1+ | G96: 20602414630 | I96: San Miguel | J96: Lima | K96: Lima | L96: 16
A97: AE.RE.060.2020 | B97: INMOBILIARIA NARANJUELO S.A.C. | C97: Condominio Paseo La Arboleda | D97: Edificios D, E, F, G, H, I, J, K, L, M, N,O | E97: 480 | F97: 3+ | G97: 20537115026 | I97: Santiago de Surco | J97: Lima | K97: Lima | L97: 480
A98: (081-C-2018) anterior AE.RE.107.2020 | B98: VIVIENDAS DEL PERU S.A.C. | C98: Allegro | D98: Torre A y B (4 Y 5) | E98: 132 | F98: 2+ | G98: 20512691529 | I98: San Miguel | J98: Lima | K98: Lima | L98: 180
A99: N° 082.2018 | B99: PC SANTA CLARA SRL (Caral) | C99: Conjunto Residencial La Ribera de Santa Clara | D99: Torres 1,2,3,4,5,6,7,8,9,12 | E99: 684 | F99: 1+ | G99: 20544419081 | I99: Ate | J99: Lima | K99: Lima | L99: 812
A100: N° 083.2018 | B100: INMOBILIARIA SUANCES S.A.C. (Cantabria) | C100: Edificio Look Lince | D100: Torre unica | E100: 89 | F100: 1+ | G100: 20601101221 | I100: Lince | J100: Lima | K100: Lima | L100: 147
A101: N° 084.2018 | B101: INMOBILIARIA Y EDIFICACIONES DOMUS S.A.C. | C101: Residencial Madalengoitia | D101: Torre unica | E101: 27 | F101: 1+ | G101: 20602501028 | I101: Chorrillos | J101: Lima | K101: Lima | L101: 27
A102: N° 085.2018 | B102: INVERSIONES ESTRATEGICAS INTEGRALES S.A.C. | C102: Residencial del Carmen | D102: Torre unica | E102: 43 | F102: 1+ | G102: 20503680174 | I102: TRUJILLO | J102: TRUJILLO | K102: LA LIBERTAD | L102: 43
A103: AE.RE.086.2020 | B103: CONSTRUCTORA GALILEA S.A.C. | C103: Sol de Pimentel | D103: De la etapa 20 a la etapa 36, etapa 44 (lote 11), etapa 45 (lote 3) y etapa 46 | E103: 429 | F103: 3+ | G103: 20521119943 | I103: Pimentel | J103: Chiclayo | K103: Lambayeque | L103: 1139
A104: N° 087.2018 | B104: GERENCIA Y CONSTRUCCION EDIFICA S.A.C. | C104: Garden 360 | D104: Torres 1,2,3,4,5,6,7,8 | E104: 145 | F104: 1+ | G104: 20521800748 | I104: Piura | J104: Piura | K104: Piura | L104: 360
A105: AE.RE.142.2020 | B105: CIUDARIS CONSULTORES INMOBILIARIOS S.A. | C105: Residencial Serk Barranco Club 2 - 2da etapa | D105: 2 | E105: 127 | F105: 3+ | G105: 20432280056 | I105: Barranco | J105: Lima | K105: Lima | L105: 329
A106: N° 089.2018 | B106: HM INVERSIONISTAS S.A.C. | C106: TORRE LOS CIPRESES | D106: Torre unica | E106: 26 | F106: 1+ | G106: 20108664640 | I106: Lima | J106: Lima | K106: Lima | L106: 88
A107: N° 091.2018 | B107: MG HOGAR S.A.C. | C107: Edificio Multifamiliar Aranibar | D107: Torre unica | E107: 54 | F107: 1+ | G107: 20601420121 | I107: Lima | J107: Lima | K107: Lima | L107: 54
A108: AE.RE.084.2020 | B108: CONSTRUCTORA GALILEA S.A.C. | C108: Vista Alegre | D108: 9 hasta la 31 | E108: 741 | F108: 3+ | G108: 20521119943 | I108: Chiclayo | J108: Chiclayo | K108: Lambayeque | L108: 1029
A109: AE.RE.036.2020 | B109: COSAPI INMOBILIARIA & GRUPO LAR DESARROLLOS INMOBILIARIOS S.A.C. | C109: SENTE (antes Centenario) | D109: 2 | E109: 192 | F109: 3+ | G109: 20555934263 | I109: Breña | J109: Lima | K109: Lima | L109: 204
A110: AE.RE.035.2020 | B110: AIP 10 S.A.C. (ARTECO) | C110: Paseo la Campiña V | D110: Torre C | E110: 32 | F110: 3+ | G110: 20548906301 | I110: Chorrillos | J110: Lima | K110: Lima | L110: 185
A111: AE.RE.073.2020 | B111: LOS PORTALES DEPARTAMENTOS S.A.C. | C111: Conjunto Residencial Mirador del Golf I | D111: Torres 1,2,3,4 y 5 | E111: 127 | F111: 3+ | G111: 20553346178 | I111: SAN JUAN DE LURIGANCHO | J111: Lima | K111: Lima | L111: 320
A112: N° 096.2018 | B112: LOS PORTALES DEPARTAMENTOS S.A.C. | C112: Edificio Multifamiliar y comercial Gran Colonial | D112: Torre A y B | E112: 95 | F112: 1+ | G112: 20553346178 | I112: Lima | J112: Lima | K112: Lima | L112: 210
A113: N° 097.2018 | B113: BESCO S.A.C. | C113: Alameda Santa Ana I - 2° Etapa | D113: Edificio 2 y Edificio 4 | E113: 144 | F113: 1+ | G113: 20416162299 | I113: Piura | J113: Piura | K113: Piura | L113: 144
A114: AE.RE.006.2022 | B114: PC COSTANERA SAN MIGUEL SRL (CARAL) | C114: CONJUNTO RESIDENCIAL VERAH | D114: TORRE 4,5,6,7,8,9,10,11 | E114: 288 | F114: 3+ | G114: 20600610652 | I114: SANTIAGO DE SURCO | J114: LIMA | K114: LIMA | L114: 288
A115: AE.RE.143.2020 | B115: PORTAL SANTA CLARA S.R.L. | C115: Uptown 2 | D115: 2 | E115: 127 | F115: 2+ | G115: 20544155831 | I115: San Miguel | J115: Lima | K115: Lima | L115: 287
A116: N° 100.2019 | B116: INMOBILIARIA CONSTRUCTORA WASI S.A.C. | C116: Condominio Club San Pedro de Latarce | D116: Torre B1a, B2a, B1b, B2b | E116: 200 | F116: 1+ | G116: 20532672032 | I116: Tacna | J116: Tacna | K116: Tacna | L116: 200
A117: AE.RE.024.2020 | B117: INVERSIONES INMOBILIARIAS DEL MOCHE S.A. (IMAGINA) | C117: Conjunto Residencial Urban (Etapa II) | D117: 2 | E117: 18 | F117: 3+ | G117: 20519159920 | I117: Lince | J117: Lima | K117: Lima | L117: 111
A118: AE.RE.041.2020 | B118: CONSTRUCTORA CUMBRES VILLANOVA S.A.C. | C118: Conjunto Residencial " Condominio Villanova 3" | D118: 3 | E118: 484 | F118: 3+ | G118: 20602704891 | I118: Callao | J118: Callao | K118: Callao | L118: 484
A119: AE.RE.123.2020 | B119: HM INVERSIONISTAS S.A.C. | C119: JOCKEY RESIDENCIAL | D119: Lote 3 Block A-B-C-D-D'; Lote 10 Block AB-AC-AD-AE-AF | E119: 240 | F119: 3+ | G119: 20108664640 | I119: LA VICTORIA | J119: CHICLAYO | K119: LAMBAYEQUE | L119: 240
A120: AE.RE.163.2020 | B120: TER EDIFICACIONES S.A.C. | C120: Marsano 2175 | D120: Torre unica | E120: 68 | F120: 3+ | G120: 20602491511 | I120: Surquillo | J120: Lima | K120: Lima | L120: 114
A121: AE.RE.056.2020 | B121: INVERSIONES INMOBILIARIAS CUBA S.A.C. (SENDA) | C121: Side | D121: 1 | E121: 176 | F121: 3+ | G121: 20603012110 | I121: Jesus Maria | J121: Lima | K121: Lima | L121: 176
A122: AE.RE.101.2020 | B122: INJAVIER PRADO PROYECTOS S.A.C. (INVENT) | C122: Invent Javier Prado | D122: Torre 1 | E122: 17 | F122: 2+ | G122: 20602909965 | I122: Magdalena del Mar | J122: Lima | K122: Lima | L122: 53
A123: AE.RE.054.2020 | B123: CORPORACION INMOBILIARIA SUDAMERICANA SELVA S.A.C. (CISS.A.C.) | C123: Condominio Del Parque Tarapoto | D123: 1 | E123: 100 | F123: 3+ | G123: 20602187889 | I123: LA BANDA DE SHILCAYO | J123: San Martin | K123: San Martin | L123: 140
A124: N° 108.2018 | B124: D&D CONSTRUCTORES S.A.C. | C124: Urbanizacion Los Huarangos 4 Etapa | D124: 4 ( Mzs L,M,N,O,P,Q,R,S,T) | E124: 159 | F124: 1+ | G124: 20494649161 | I124: Ica | J124: Ica | K124: Ica | L124: 159
A125: N° 109.2018 | B125: INVERSIONES NUEVO PACIFICO S.A.C. | C125: Multifamiliar Liverpool | D125: Dos unicas torres ( del piso 1° al 8°) | E125: 64 | F125: 1+ | G125: 20481775575 | I125: Trujillo | J125: Trujillo | K125: LA LIBERTAD | L125: 64
A126: N° 110.2018 | B126: CONSORCIO DHMONT & CG&M S.A.C. | C126: Ciudad Sol de Collique | D126: Manzana G, Lote 5 (Block N° 6), Lote 6 (Block N° 4 y 5), Lote 7 (Block N° 3,19 y 20) | E126: 127 | F126: 1+ | G126: 20502574109 | I126: Comas | J126: Lima | K126: Lima | L126: 690
A127: AE.RE.125.2020 | B127: CONSORCIO DHMONT & CG&M S.A.C. | C127: SAN ANDRES HOUSE | D127: 3 Etapas (IA, IB,IC, ID) | E127: 92 | F127: 3+ | G127: 20502574109 | I127: San Andres | J127: Pisco | K127: Ica | L127: 114
A128: AE.RE.033.2020 | B128: AIP 5 SA (ARTECO) | C128: Depas y Club Huachipa | D128: Etapa 1, torres (A,B,G,H,J,K,L), Etapa 2, torres (C,D,E,F,I,M,N,O) | E128: 61 | F128: 3+ | G128: 20537263998 | I128: Ate | J128: Lima | K128: Lima | L128: 396
A129: N° 113.2018 | B129: CONSTRUCTORA GALILEA S.A.C. | C129: Torres de Quevedo | D129: Torre 13 y 14 | E129: 40 | F129: 1+ | G129: 20521119943 | I129: Trujillo | J129: Trujillo | K129: LA LIBERTAD | L129: 280
A130: AE.RE.087.2020 | B130: CONSTRUCTORA GALILEA S.A.C. | C130: Alto Chimbote | D130: Etapa 6 (2 lotes), 3, 4, 5, 7 | E130: 121 | F130: 3+ | G130: 20521119943 | I130: Chimbote | J130: Santa | K130: Ancash | L130: 560
A131: N° 115.2018 | B131: DESARROLLOS INMOBILIARIOS COMAR S.A.C. | C131: Edificio Multifamiliar Centric | D131: torre unica | E131: 80 | F131: 1+ | G131: 20537802457 | I131: Lince | J131: Lima | K131: Lima | L131: 80
A132: AE.RE.058.2020 | B132: PROMSAL S.A.C. | C132: Hey Catalina | D132: torre unica | E132: 92 | F132: 3+ | G132: 20515876937 | I132: La Victoria | J132: Lima | K132: Lima | L132: 112
A133: AE.RE.108.2020 | B133: INVERSIONES ROCAZUL S.A.C. | C133: Vista Mar | D133: Torre A | E133: 80 | F133: 3+ | G133: 20507322311 | I133: San Miguel | J133: Lima | K133: Lima | L133: 80
A134: N° 118.2018 | B134: CONSTRUCTORA E INMOBILIARIA OPTIMUS S.A.C. | C134: Edificio Lugo | D134: Torre unica | E134: 36 | F134: 1+ | G134: 20547778333 | I134: Magdalena del Mar | J134: Lima | K134: Lima | L134: 38
A135: AE.RE.122.2020 | B135: PI JORGE CHAVEZ S.A.C. (FLESAN) | C135: BUENAVISTA | D135: 1 | E135: 5 | F135: 2+ | G135: 20600833317 | I135: Lima | J135: Lima | K135: Lima | L135: 49
A136: AE.RE.121.2020 | B136: PI PRADO 1 S.A.C. (FLESAN) | C136: VITTORIA | D136: 1 | E136: 54 | F136: 2+ | G136: 20603240163 | I136: Lince | J136: LIMA | K136: LIMA | L136: 128
A137: N° 121.2018 | B137: PROMORE INMOBILIARIA S.A.C. | C137: Edificio Victoria | D137: Torre unica | E137: 20 | F137: 1+ | G137: 20524800862 | I137: Huacho | J137: HUAURA | K137: LIMA | L137: 20
A138: N° 122.2018 | B138: GRUPO ARIATZA S.A.C. | C138: Mirador Palatino Casa Club | D138: Torre unica | E138: 55 | F138: 1+ | G138: 20600134729 | I138: Magdalena del Mar | J138: Lima | K138: Lima | L138: 97
A139: N° 123.2018 | B139: EDIFICACIONES INMOBILIARIAS S.A.C. | C139: Edificio Multifamiliar Avida | D139: Etapa 2 (Torre A y B) | E139: 127 | F139: 2+ | G139: 20511988757 | I139: San Miguel | J139: Lima | K139: Lima | L139: 166
A140: AE.RE.098.2020 | B140: CONSTRUCTORA CUMBRES CHALLAPAMPA S.A.C. | C140: Conjunto Residencial “Condominio Villa Verde 2” | D140: C Y D | E140: 160 | F140: 3+ | G140: 20602699537 | I140: Cerro Colorado | J140: Arequipa | K140: Arequipa | L140: 288
A141: AE.RE.097.2020 | B141: CONSTRUCTORA CUMBRES CHALLAPAMPA S.A.C. | C141: Conjunto Residencial " Condominio Valle Blanco Reserva" | D141: 4 | E141: 160 | F141: 3+ | G141: 20602699537 | I141: Cerro Colorado | J141: Arequipa | K141: Arequipa | L141: 640
A142: N° 001.2019 | B142: PROYEC CONTRATISTAS GENERALES S.A. | C142: Varela 2 | D142: torre unica | E142: 58 | F142: 1+ | G142: 20333686237 | I142: Breña | J142: Lima | K142: Lima | L142: 58
A143: N° 002.2019 | B143: PROYEC CONTRATISTAS GENERALES S.A. | C143: Varela 879 | D143: torre unica | E143: 23 | F143: 1+ | G143: 20333686237 | I143: Breña | J143: Lima | K143: Lima | L143: 23
A144: AE.RE.029.2020 | B144: DESARROLLO SALAVERRY 475 S.A.C. (COSAPI Y GRUPO LAR) | C144: Nesta | D144: Fase 3 , 4 y 5 | E144: 115 | F144: 3+ | G144: 20566143381 | I144: Jesus Maria | J144: Lima | K144: Lima | L144: 290
A145: N° 003.2019 | B145: EMPRESA PROMOTORA BRAVO DE RUEDA S.A.C. (MAGVIS) | C145: Los Jardines del Rimac II | D145: Torre unica | E145: 17 | F145: 1+ | G145: 20602081797 | I145: Rimac | J145: Lima | K145: Lima | L145: 23
A146: N° 004.2019 | B146: NEOVIDA CONSTRUCCIONES S.A.C. | C146: Edificio Multifamiliar " Residencial El Rio" | D146: 1 | E146: 25 | F146: 1+ | G146: 20524115213 | I146: Pueblo Libre | J146: Lima | K146: Lima | L146: 30
A147: N° 005.2019 | B147: A&C CONSTRUCTORA E INMOBILIARIA S.A.C. | C147: Edificio Santa Rosa | D147: 1 | E147: 20 | F147: 1+ | G147: 20486530147 | I147: Huancayo | J147: Huancayo | K147: Junin | L147: 20
A148: AE.RE.103.2020 | B148: ALEMAN CONSTRUCTORES CO S.A.C. | C148: Las Cumbres del Mirador | D148: Etapa 1 (Torres I, II), Etapa 2 (Torres III, IV) | E148: 116 | F148: 3+ | G148: 20566072182 | I148: Cerro Colorado | J148: Arequipa | K148: Arequipa | L148: 116
A149: AE.RE.076.2020 | B149: INVERSIONES INMOBILIARIAS MAGDALENA S.A.C. | C149: Juan de Aliaga | D149: 1 y 2 | E149: 175 | F149: 3+ | G149: 20547173261 | I149: Magdalena del Mar | J149: Lima | K149: Lima | L149: 297
A150: N° 014.2019 | B150: MINISTERIO DE TRANSPORTES Y COMUNICACIONES | C150: Condominio Villa Atletas | D150: Torres 1,2,3,4,5,6 y 7 | E150: 1096 | F150: 1+ | G150: 20131379944 | I150: Villa El Salvador | J150: Lima | K150: Lima | L150: 1096
A151: N° 009.2019 | B151: ANTARES CONTRATISTAS S.A. | C151: Edificio Multifamiliar I Los Parques del Chipe | D151: 2 | E151: 60 | F151: 1+ | G151: 20143382339 | I151: VEINTISEIS DE OCTUBRE | J151: Piura | K151: Piura | L151: 60
A152: AE.RE.078.2020 | B152: GLJ CONSTRUCTORES E INMOBILIARIOS S.A.C. | C152: La Gloria IV | D152: 1 | E152: 41 | F152: 3+ | G152: 20547261551 | I152: Magdalena del Mar | J152: Lima | K152: Lima | L152: 48
A153: N° 010.2019 | B153: IMMO NAUTIC S.A.C. (NUVO) | C153: Smart San Felipe | D153: Torre unica | E153: 98 | F153: 1+ | G153: 20553227080 | I153: Jesus Maria | J153: Lima | K153: Lima | L153: 138
A154: AE.RE.006.2020 | B154: MIRANDA CONSTRUCTORES S.A. | C154: Praderas del Rimac | D154: Condominio del 1 al 6 ( 3 torres c/u) | E154: 2880 | F154: 3+ | G154: 20392504894 | I154: Rimac | J154: Lima | K154: Lima | L154: 2880
A155: AE.RE.005.2020 | B155: MIRANDA CONSTRUCTORES S.A. | C155: Altos del Rimac | D155: Condominios: 1 (3 torres), 2 (3 torres),3(3 torres),4 (3 torres), 5 (4 torres) | E155: 2304 | F155: 3+ | G155: 20392504894 | I155: Rimac | J155: Lima | K155: Lima | L155: 2304
A156: AE.RE.093.2020 | B156: INMOBILIARIA RUTURI S.A.C. (ALTOZANO) | C156: Solar de la Alameda - Prime Torre A y B | D156: Torre A y Torre B | E156: 149 | F156: 2+ | G156: 20551234542 | I156: Miraflores | J156: Arequipa | K156: Arequipa | L156: 149
A157: N° 015.2019 | B157: REPRESENTACIONES DACA S.A.C. | C157: Residencial Los Jazmines | D157: 1 | E157: 17 | F157: 1+ | G157: 20477373977 | I157: Trujillo | J157: Trujillo | K157: La Libertad | L157: 18
A158: AE.RE.080.2020 | B158: INVERSIONES INMOBILIARIAS ALCANFORES S.A.C. (QUATRO INMOBILIARIA) | C158: Urban Tower 2 | D158: 1 | E158: 98 | F158: 3+ | G158: 20602816851 | I158: Lima | J158: Lima | K158: Lima | L158: 98
A159: AE.RE.047.2020 | B159: INVERSIONES INMOBILIARIAS VERANO S.A.C. | C159: Edificio Multifamiliar CYPRES | D159: 1 | E159: 72 | F159: 3+ | G159: 20553608041 | I159: Surquillo | J159: Lima | K159: Lima | L159: 72
A160: AE.RE.154.2020 | B160: MENORCA INVERSIONES S.A.C. | C160: Proyecto Villa SARAJA | D160: 1 | E160: 50 | F160: 2+ | G160: 20173223626 | I160: Ica | J160: Ica | K160: Ica | L160: 147
A161: AE.RE.106.2020 | B161: GRUPO ORE PARIONA S.A.C. | C161: Proyecto Camino Real - 1era Etapa | D161: 1 | E161: 51 | F161: 2+ | G161: 20502668421 | I161: Ica | J161: Ica | K161: Ica | L161: 51
A162: AE.RE.136.2020 | B162: BUEN VIVIR S.A.C. | C162: Proyecto Edificio Libertad | D162: Torre unica | E162: 23 | F162: 2+ | G162: 20554638911 | I162: San Miguel | J162: LIMA | K162: LIMA | L162: 23
A163: N° 021.2019 | B163: LINEA 21 S.A.C. | C163: Edificio Multifamiliar Los Andes | D163: 1 | E163: 29 | F163: 1+ | G163: 20563050331 | I163: Magdalena del Mar | J163: Lima | K163: Lima | L163: 29
A164: N° 022.2019 | B164: CONSTRUCTORA BETANIA S.A.C. | C164: PASEO CASTILLA (antes Edificio Multifamiliar Alameda) | D164: Torre A | E164: 94 | F164: 1+ | G164: 20503685567 | I164: San Miguel | J164: LIMA | K164: LIMA | L164: 94
A165: N° 023.2019 | B165: CONSTRUCTORA BETANIA S.A.C. | C165: Edificio Multifamiliar Aereo Home | D165: Torre A | E165: 60 | F165: 1+ | G165: 20503685567 | I165: Breña | J165: Lima | K165: Lima | L165: 60
A166: AE.RE.003.2020 | B166: BESCO S.A.C. | C166: Proyecto Centrika Condominio | D166: Edificios 1,2 y 3 | E166: 436 | F166: 3+ | G166: 20416162299 | I166: Piura | J166: Piura | K166: Piura | L166: 436
A167: N° 025.2019 | B167: GRUPO DU BOIS S.A.C. | C167: Proyecto Residencial DUBOIS III | D167: TORRE UNICA | E167: 26 | F167: 1+ | G167: 20546518567 | I167: Surquillo | J167: Lima | K167: Lima | L167: 26
A168: N° 026.2019 | B168: BECA INVERSIONES Y PROYECTOS S.A.C. | C168: Edificio Granada 274 | D168: Torre única | E168: 11 | F168: 1+ | G168: 20603503326 | I168: Pueblo Libre | J168: Lima | K168: Lima | L168: 18
A169: N° 027.2019 | B169: INVERSIONES TIERRA BLANCA S.A.C. | C169: Edificio Granada 135 | D169: Torre unica | E169: 12 | F169: 1+ | G169: 20518883322 | I169: Pueblo Libre | J169: Lima | K169: Lima | L169: 18
A170: AE.RE.127.2020 | B170: CASAIDEAL PROYECTO BRASIL 3 S.A.C. | C170: Edificio Multifamiliar NOU | D170: Torre unica | E170: 137 | F170: 2+ | G170: 20602736483 | I170: Pueblo Libre | J170: Lima | K170: Lima | L170: 137
A171: N° 029.2019 | B171: LIMACOR INMOBILIARIA S.A.C. | C171: Residencial Castilla II – Eco House | D171: Torre A y B | E171: 84 | F171: 1+ | G171: 20563374404 | I171: Magdalena del Mar | J171: Lima | K171: Lima | L171: 84
A172: AE.RE.088.2020 | B172: CONSTRUCTORA GALILEA S.A.C. | C172: Conjunto Habitacional Monte Verde II - Etapa 8 - Etapa 29 | D172: Etapa 8 - etapa 29 | E172: 688 | F172: 3+ | G172: 20521119943 | I172: Castilla | J172: Piura | K172: Piura | L172: 886
A173: N° 031.2019 | B173: J & F PERU GROUP S.A.C. | C173: Residencial Primavera | D173: Torre unica | E173: 16 | F173: 1+ | G173: 20539995490 | I173: Trujillo | J173: Trujillo | K173: LA LIBERTAD | L173: 20
A174: AE.RE.129.2020 | B174: MATIER S.A.C. | C174: Edificio Los Gorriones (Modificación de nombre en certificación: Bravo Condominio) | D174: Torre unica | E174: 167 | F174: 2+ | G174: 20392737058 | I174: Chorrillos | J174: Lima | K174: Lima | L174: 167
A175: AE.RE.016.2020 | B175: BESCO S.A.C. | C175: Nuevo Nogales Condominio Club Torre 14 | D175: Torre 14 | E175: 200 | F175: 3+ | G175: 20416162299 | I175: El Agustino | J175: Lima | K175: Lima | L175: 2120
A176: AE.RE.016.2020 | B176: BESCO S.A.C. | C176: Nuevo Nogales Condominio Club Torre 13 | D176: Torre 13 | E176: 200 | F176: 3+ | G176: 20416162299 | I176: El Agustino | J176: Lima | K176: Lima | L176: 2120
A177: AE.RE.057.2020 | B177: BELGICA EDIFICACIONES S.A. | C177: Precursores 5 | D177: Torre unica | E177: 56 | F177: 3+ | G177: 20329728022 | I177: San Miguel | J177: Lima | K177: Lima | L177: 56
A178: AE.RE.015.2021 | B178: INMOBILIARIA IPR S.A.C. (ANTES VERTICALIA S.A.C. (NUVO)) | C178: Conjunto Residencial Vive 500 | D178: Torres 1,2 y 3 | E178: 240 | F178: 2+ | G178: 20603264208 | I178: Cerro Colorado | J178: Arequipa | K178: Arequipa | L178: 240
A179: N° 037.2019 | B179: CONSTRUCTORA E INMOBILIARIA EL REFUGIO S.A.C. | C179: Edificio Parque de La Justicia | D179: Torre unica | E179: 9 | F179: 1+ | G179: 20536777891 | I179: Los Olivos | J179: Lima | K179: Lima | L179: 11
A180: N° 038.2019 | B180: GRUPO INMOBILIARIO COMUNIDAD S.A.C. | C180: Edificio C 943 | D180: 1 | E180: 41 | F180: 1+ | G180: 20538605671 | I180: JESUS MARIA | J180: Lima | K180: Lima | L180: 77
A181: AE.RE.133.2020 | B181: ACTIVA MARIATEGUI S.A.C. (ANTES ORION INMOBILIARIA E INVERSIONES S.A.C.) | C181: RE EVOLUCION (antes Conjunto Residencial Mariategui) | D181: Torre 01 | E181: 19 | F181: 2+ | G181: 20606580551 | I181: JESUS MARIA | J181: Lima | K181: Lima | L181: 92
A182: N° 040.2019 | B182: SER CASA S.A.C. | C182: Edificio La Peña | D182: Torre 1 y 2 | E182: 10 | F182: 1+ | G182: 20603670362 | I182: SACHACA | J182: Arequipa | K182: Arequipa | L182: 10
A183: AE.RE.010.2021 | B183: S&P DESARROLLADORES INMOBILIARIOS S.A.C | C183: Gorriones 4 | D183: Torres A,B y C | E183: 131 | F183: 2+ | G183: 20600690028 | I183: Chorrillos | J183: Lima | K183: Lima | L183: 132
A184: AE.RE.048.2020 | B184: CORPORACION INMOBILIARIA FERMONT S.A.C. | C184: Abedul | D184: Torre 1 | E184: 59 | F184: 3+ | G184: 20600245504 | I184: Magdalena del Mar | J184: Lima | K184: Lima | L184: 228
A185: AE.RE.135.2020 | B185: BUEN VIVIR S.A.C. | C185: Universitaria | D185: 1 | E185: 104 | F185: 2+ | G185: 20554638911 | I185: San Miguel | J185: Lima | K185: Lima | L185: 104
A186: N° 044.2019 | B186: LIDER INVERSIONES AREQUIPA S.A. | C186: Condominio A_Etapa 2 | D186: Etapa 02 (Torre 01) | E186: 150 | F186: 1+ | G186: 20539613716 | I186: JOSE LUIS BUSTAMANTE Y RIVERO | J186: Arequipa | K186: Arequipa | L186: 150
A187: N° 045.2019 | B187: CONSTRUCTORA E INMOBILIARIA CDR S.A.C. | C187: Edificio Multifamiliar Vista Club Callao | D187: Torre A y B | E187: 247 | F187: 1+ | G187: 20509746428 | I187: Bellavista | J187: Callao | K187: CALLAO | L187: 247
A188: N° 046.2019 | B188: GRINSA S.A.C. | C188: Urbanizacion Residencial Valle Hermoso | D188: 1,2 y 3 | E188: 136 | F188: 1+ | G188: 20440209123 | I188: La Victoria | J188: Chiclayo | K188: Lambayeque | L188: 384
A189: N° 047.2019 | B189: GRINSA S.A.C. | C189: Los Rosales de Miraflores | D189: 1,2 y 3 | E189: 126 | F189: 1+ | G189: 20440209123 | I189: Castilla | J189: Piura | K189: Piura | L189: 178
A190: AE.RE.120.2020 | B190: LA PAZ DESARROLLO INMOBILIARIO S.A.C. | C190: AMARI ( antes Ambar) | D190: Torre unica | E190: 99 | F190: 3+ | G190: 20556482471 | I190: San Miguel | J190: Lima | K190: Lima | L190: 99
A191: AE.RE.100.2020 | B191: GRUPO D Y M CONSTRUCTORA E INMOBILIARIA S.A.C. | C191: Residencial Prado | D191: 1 | E191: 21 | F191: 2+ | G191: 20550506352 | I191: Ate | J191: Lima | K191: Lima | L191: 24
A192: AE.RE.138.2020 | B192: PROYECTOS Y CONSTRUCCIONES LUGANO S.A.C. | C192: Green Park | D192: Torre unica | E192: 17 | F192: 2+ | G192: 20507028986 | I192: Jesus Maria | J192: Lima | K192: Lima | L192: 151
A193: N° 051.2019 | B193: LUIS FERNANDO LINARES MORANTE | C193: Eco Residencial TAHUAYCANI | D193: Torre A | E193: 4 | F193: 1+ | G193: 10292204774 | I193: SACHACA | J193: Arequipa | K193: Arequipa | L193: 4
A194: N° 052.2019 | B194: INMOBILIARIA EUROEDIFICACIONES S.A.C. | C194: Condominio Parque San Antonio | D194: Torre 01 y 02 | E194: 183 | F194: 1+ | G194: 20486852420 | I194: Huancayo | J194: Huancayo | K194: Junin | L194: 188
A195: N° 053.2019 | B195: INMOBILIARIA LOPEZ S.A.C. | C195: Proyecto Edificio START | D195: Torre unica | E195: 12 | F195: 1+ | G195: 20505927231 | I195: Surquillo | J195: Lima | K195: Lima | L195: 43
A196: N° 054.2019 | B196: REAL EDIFICACIONES S.A.C. | C196: TORRE REAL 6 | D196: 1 | E196: 45 | F196: 1+ | G196: 20562827936 | I196: Surquillo | J196: Lima | K196: Lima | L196: 59
A197: AE.RE.072.2020 | B197: PROYECTOS GCF S.A.C. | C197: VILLA DULANTO (antes Cipriano Dulanto) | D197: 1 | E197: 80 | F197: 3+ | G197: 20603961715 | I197: Pueblo Libre | J197: Lima | K197: Lima | L197: 102
A198: AE.RE.006.2021 | B198: TOLEMAN S.A.C. (Altozano) | C198: La Arboleda | D198: Etapa 1 ( Edificios 1,2,3 y 4) | E198: 528 | F198: 2+ | G198: 20603841086 | I198: Cerro Colorado | J198: Arequipa | K198: Arequipa | L198: 528
A199: N° 057.2019 | B199: CONSTRUCTORES CUMBRES TRUJILLO S.A.C. | C199: Condominio de Viviendas Andalucia | D199: 3 | E199: 80 | F199: 1+ | G199: 20600029674 | I199: Huanchaco | J199: Trujillo | K199: La Libertad | L199: 840
A200: AE.RE.166.2020 | B200: BERTOLOTTO INVESTMENTS S.A.C. | C200: PACIFIK OCEAN TOWER | D200: Torre A | E200: 76 | F200: 2+ | G200: 20601935458 | I200: San Miguel | J200: Lima | K200: Lima | L200: 190
... 555 more rows

Sheet Formato 1
A1: Formatos
A2: a. Formato N° 1: “Solicitud de prefiltro para el descarte del problema de ubicación del proyecto a Certificar
A3: Código: F1293 / PR-N3-3-2-7
A4: DATOS DE LA EMPRESA DESARROLLADORA
A5: Nombre de la Empresa (según ficha Ruc) | I5: RUC | O5: Número de partida SUNARP | P5: Oficina Registral SUNARP | S5: Fecha de creación SUNARP
A7: NOMBRE COMERCIAL | P7: Número Autogenerado FMV
A9: Avenida / Calle / Jirón / Pasaje Empresa | C9: Manzana | G9: Lote | I9: Numeración | M9: Interior | O9: Región | P9: Provincia | S9: Distrito
A11: Apellidos Representante Legal | C11: Nombres Representante Legal | M11: Tipo de doc. | O11: Número de documento | P11: Número de Partida (Poder) | Q11: Oficina Registral SUNARP (Poder) | T11: Fecha de emisión (Poder)
A13: Condición del Domicilio Fiscal Empresa | C13: Estado del contribuyente | I13: Correo electrónico 1 (Ficha RUC) | O13: Teléfono móvil 1 (Ficha RUC) | P13: Actividad Económica Principal
A15: Accionistas, Socios o Asociados, Representantes Legales que tengan directa o indirectamente más del 25% del capital social, aporte o participación de la persona jurídica:
A16: Apellidos / Nombre comercial | C16: Nombres completos / Nombre de la empresa | J16: Tipo Doc. | L16: Número | O16: Cargo | P16: % | Q16: Teléfonos de contacto | S16: Correo electrónico
A26: Coordinador / Tramitador de la Certificación
A27: Apellidos | C27: Nombres completos | L27: Tipo Doc. | O27: Número | P27: Correo Electrónico | S27: Teléfonos de contacto
A29: CERTIFICADOS ANTERIORES DE AENOR - ANTECEDENTES DE ESTE PROYECTO
A30: Código de certificado anterior AENOR | C30: Razón social de la empresa | L30: RUC | O30: Nombre del proyecto | R30: Nº de etapa | S30: Grado | T30: Nº de viviendas sostenibles
C31: =IFERROR(VLOOKUP(A31,'Propuesta de Certificados'!$A$2:$G$1002,2,FALSE),"") ->  | L31: =IFERROR(VLOOKUP(A31,'Propuesta de Certificados'!$A$2:$G$1002,7,FALSE),"") ->  | O31: =IFERROR(VLOOKUP(A31,'Propuesta de Certificados'!$A$2:$G$1002,3,FALSE),"") ->  | R31: =IFERROR(VLOOKUP(A31,'Propuesta de Certificados'!$A$2:$G$1002,4,FALSE),"") ->  | S31: =IFERROR(VLOOKUP(A31,'Propuesta de Certificados'!$A$2:$G$1002,6,FALSE),"") ->  | T31: =IFERROR(VLOOKUP(A31,'Propuesta de Certificados'!$A$2:$G$1002,5,FALSE),"") -> 
C32: =IFERROR(VLOOKUP(A32,'Propuesta de Certificados'!$A$2:$G$1002,2,FALSE),"") ->  | L32: =IFERROR(VLOOKUP(A32,'Propuesta de Certificados'!$A$2:$G$1002,7,FALSE),"") ->  | O32: =IFERROR(VLOOKUP(A32,'Propuesta de Certificados'!$A$2:$G$1002,3,FALSE),"") ->  | R32: =IFERROR(VLOOKUP(A32,'Propuesta de Certificados'!$A$2:$G$1002,4,FALSE),"") ->  | S32: =IFERROR(VLOOKUP(A32,'Propuesta de Certificados'!$A$2:$G$1002,6,FALSE),"") ->  | T32: =IFERROR(VLOOKUP(A32,'Propuesta de Certificados'!$A$2:$G$1002,5,FALSE),"") -> 
C33: =IFERROR(VLOOKUP(A33,'Propuesta de Certificados'!$A$2:$G$1002,2,FALSE),"") ->  | L33: =IFERROR(VLOOKUP(A33,'Propuesta de Certificados'!$A$2:$G$1002,7,FALSE),"") ->  | O33: =IFERROR(VLOOKUP(A33,'Propuesta de Certificados'!$A$2:$G$1002,3,FALSE),"") ->  | R33: =IFERROR(VLOOKUP(A33,'Propuesta de Certificados'!$A$2:$G$1002,4,FALSE),"") ->  | S33: =IFERROR(VLOOKUP(A33,'Propuesta de Certificados'!$A$2:$G$1002,6,FALSE),"") ->  | T33: =IFERROR(VLOOKUP(A33,'Propuesta de Certificados'!$A$2:$G$1002,5,FALSE),"") -> 
C34: =IFERROR(VLOOKUP(A34,'Propuesta de Certificados'!$A$2:$G$1002,2,FALSE),"") ->  | L34: =IFERROR(VLOOKUP(A34,'Propuesta de Certificados'!$A$2:$G$1002,7,FALSE),"") ->  | O34: =IFERROR(VLOOKUP(A34,'Propuesta de Certificados'!$A$2:$G$1002,3,FALSE),"") ->  | R34: =IFERROR(VLOOKUP(A34,'Propuesta de Certificados'!$A$2:$G$1002,4,FALSE),"") ->  | S34: =IFERROR(VLOOKUP(A34,'Propuesta de Certificados'!$A$2:$G$1002,6,FALSE),"") ->  | T34: =IFERROR(VLOOKUP(A34,'Propuesta de Certificados'!$A$2:$G$1002,5,FALSE),"") -> 
C35: =IFERROR(VLOOKUP(A35,'Propuesta de Certificados'!$A$2:$G$1002,2,FALSE),"") ->  | L35: =IFERROR(VLOOKUP(A35,'Propuesta de Certificados'!$A$2:$G$1002,7,FALSE),"") ->  | O35: =IFERROR(VLOOKUP(A35,'Propuesta de Certificados'!$A$2:$G$1002,3,FALSE),"") ->  | R35: =IFERROR(VLOOKUP(A35,'Propuesta de Certificados'!$A$2:$G$1002,4,FALSE),"") ->  | S35: =IFERROR(VLOOKUP(A35,'Propuesta de Certificados'!$A$2:$G$1002,6,FALSE),"") ->  | T35: =IFERROR(VLOOKUP(A35,'Propuesta de Certificados'!$A$2:$G$1002,5,FALSE),"") -> 
C36: =IFERROR(VLOOKUP(A36,'Propuesta de Certificados'!$A$2:$G$1002,2,FALSE),"") ->  | L36: =IFERROR(VLOOKUP(A36,'Propuesta de Certificados'!$A$2:$G$1002,7,FALSE),"") ->  | O36: =IFERROR(VLOOKUP(A36,'Propuesta de Certificados'!$A$2:$G$1002,3,FALSE),"") ->  | R36: =IFERROR(VLOOKUP(A36,'Propuesta de Certificados'!$A$2:$G$1002,4,FALSE),"") ->  | S36: =IFERROR(VLOOKUP(A36,'Propuesta de Certificados'!$A$2:$G$1002,6,FALSE),"") ->  | T36: =IFERROR(VLOOKUP(A36,'Propuesta de Certificados'!$A$2:$G$1002,5,FALSE),"") -> 
C37: =IFERROR(VLOOKUP(A37,'Propuesta de Certificados'!$A$2:$G$1002,2,FALSE),"") ->  | L37: =IFERROR(VLOOKUP(A37,'Propuesta de Certificados'!$A$2:$G$1002,7,FALSE),"") ->  | O37: =IFERROR(VLOOKUP(A37,'Propuesta de Certificados'!$A$2:$G$1002,3,FALSE),"") ->  | R37: =IFERROR(VLOOKUP(A37,'Propuesta de Certificados'!$A$2:$G$1002,4,FALSE),"") ->  | S37: =IFERROR(VLOOKUP(A37,'Propuesta de Certificados'!$A$2:$G$1002,6,FALSE),"") ->  | T37: =IFERROR(VLOOKUP(A37,'Propuesta de Certificados'!$A$2:$G$1002,5,FALSE),"") -> 
C38: =IFERROR(VLOOKUP(A38,'Propuesta de Certificados'!$A$2:$G$1002,2,FALSE),"") ->  | L38: =IFERROR(VLOOKUP(A38,'Propuesta de Certificados'!$A$2:$G$1002,7,FALSE),"") ->  | O38: =IFERROR(VLOOKUP(A38,'Propuesta de Certificados'!$A$2:$G$1002,3,FALSE),"") ->  | R38: =IFERROR(VLOOKUP(A38,'Propuesta de Certificados'!$A$2:$G$1002,4,FALSE),"") ->  | S38: =IFERROR(VLOOKUP(A38,'Propuesta de Certificados'!$A$2:$G$1002,6,FALSE),"") ->  | T38: =IFERROR(VLOOKUP(A38,'Propuesta de Certificados'!$A$2:$G$1002,5,FALSE),"") -> 
C39: =IFERROR(VLOOKUP(A39,'Propuesta de Certificados'!$A$2:$G$1002,2,FALSE),"") ->  | L39: =IFERROR(VLOOKUP(A39,'Propuesta de Certificados'!$A$2:$G$1002,7,FALSE),"") ->  | O39: =IFERROR(VLOOKUP(A39,'Propuesta de Certificados'!$A$2:$G$1002,3,FALSE),"") ->  | R39: =IFERROR(VLOOKUP(A39,'Propuesta de Certificados'!$A$2:$G$1002,4,FALSE),"") ->  | S39: =IFERROR(VLOOKUP(A39,'Propuesta de Certificados'!$A$2:$G$1002,6,FALSE),"") ->  | T39: =IFERROR(VLOOKUP(A39,'Propuesta de Certificados'!$A$2:$G$1002,5,FALSE),"") -> 
C40: =IFERROR(VLOOKUP(A40,'Propuesta de Certificados'!$A$2:$G$1002,2,FALSE),"") ->  | L40: =IFERROR(VLOOKUP(A40,'Propuesta de Certificados'!$A$2:$G$1002,7,FALSE),"") ->  | O40: =IFERROR(VLOOKUP(A40,'Propuesta de Certificados'!$A$2:$G$1002,3,FALSE),"") ->  | R40: =IFERROR(VLOOKUP(A40,'Propuesta de Certificados'!$A$2:$G$1002,4,FALSE),"") ->  | S40: =IFERROR(VLOOKUP(A40,'Propuesta de Certificados'!$A$2:$G$1002,6,FALSE),"") ->  | T40: =IFERROR(VLOOKUP(A40,'Propuesta de Certificados'!$A$2:$G$1002,5,FALSE),"") -> 
C41: =IFERROR(VLOOKUP(A41,'Propuesta de Certificados'!$A$2:$G$1002,2,FALSE),"") ->  | L41: =IFERROR(VLOOKUP(A41,'Propuesta de Certificados'!$A$2:$G$1002,7,FALSE),"") ->  | O41: =IFERROR(VLOOKUP(A41,'Propuesta de Certificados'!$A$2:$G$1002,3,FALSE),"") ->  | R41: =IFERROR(VLOOKUP(A41,'Propuesta de Certificados'!$A$2:$G$1002,4,FALSE),"") ->  | S41: =IFERROR(VLOOKUP(A41,'Propuesta de Certificados'!$A$2:$G$1002,6,FALSE),"") ->  | T41: =IFERROR(VLOOKUP(A41,'Propuesta de Certificados'!$A$2:$G$1002,5,FALSE),"") -> 
C42: =IFERROR(VLOOKUP(A42,'Propuesta de Certificados'!$A$2:$G$1002,2,FALSE),"") ->  | L42: =IFERROR(VLOOKUP(A42,'Propuesta de Certificados'!$A$2:$G$1002,7,FALSE),"") ->  | O42: =IFERROR(VLOOKUP(A42,'Propuesta de Certificados'!$A$2:$G$1002,3,FALSE),"") ->  | R42: =IFERROR(VLOOKUP(A42,'Propuesta de Certificados'!$A$2:$G$1002,4,FALSE),"") ->  | S42: =IFERROR(VLOOKUP(A42,'Propuesta de Certificados'!$A$2:$G$1002,6,FALSE),"") ->  | T42: =IFERROR(VLOOKUP(A42,'Propuesta de Certificados'!$A$2:$G$1002,5,FALSE),"") -> 
C43: =IFERROR(VLOOKUP(A43,'Propuesta de Certificados'!$A$2:$G$1002,2,FALSE),"") ->  | L43: =IFERROR(VLOOKUP(A43,'Propuesta de Certificados'!$A$2:$G$1002,7,FALSE),"") ->  | O43: =IFERROR(VLOOKUP(A43,'Propuesta de Certificados'!$A$2:$G$1002,3,FALSE),"") ->  | R43: =IFERROR(VLOOKUP(A43,'Propuesta de Certificados'!$A$2:$G$1002,4,FALSE),"") ->  | S43: =IFERROR(VLOOKUP(A43,'Propuesta de Certificados'!$A$2:$G$1002,6,FALSE),"") ->  | T43: =IFERROR(VLOOKUP(A43,'Propuesta de Certificados'!$A$2:$G$1002,5,FALSE),"") -> 
C44: =IFERROR(VLOOKUP(A44,'Propuesta de Certificados'!$A$2:$G$1002,2,FALSE),"") ->  | L44: =IFERROR(VLOOKUP(A44,'Propuesta de Certificados'!$A$2:$G$1002,7,FALSE),"") ->  | O44: =IFERROR(VLOOKUP(A44,'Propuesta de Certificados'!$A$2:$G$1002,3,FALSE),"") ->  | R44: =IFERROR(VLOOKUP(A44,'Propuesta de Certificados'!$A$2:$G$1002,4,FALSE),"") ->  | S44: =IFERROR(VLOOKUP(A44,'Propuesta de Certificados'!$A$2:$G$1002,6,FALSE),"") ->  | T44: =IFERROR(VLOOKUP(A44,'Propuesta de Certificados'!$A$2:$G$1002,5,FALSE),"") -> 
C45: =IFERROR(VLOOKUP(A45,'Propuesta de Certificados'!$A$2:$G$1002,2,FALSE),"") ->  | L45: =IFERROR(VLOOKUP(A45,'Propuesta de Certificados'!$A$2:$G$1002,7,FALSE),"") ->  | O45: =IFERROR(VLOOKUP(A45,'Propuesta de Certificados'!$A$2:$G$1002,3,FALSE),"") ->  | R45: =IFERROR(VLOOKUP(A45,'Propuesta de Certificados'!$A$2:$G$1002,4,FALSE),"") ->  | S45: =IFERROR(VLOOKUP(A45,'Propuesta de Certificados'!$A$2:$G$1002,6,FALSE),"") ->  | T45: =IFERROR(VLOOKUP(A45,'Propuesta de Certificados'!$A$2:$G$1002,5,FALSE),"") -> 
C46: =IFERROR(VLOOKUP(A46,'Propuesta de Certificados'!$A$2:$G$1002,2,FALSE),"") ->  | L46: =IFERROR(VLOOKUP(A46,'Propuesta de Certificados'!$A$2:$G$1002,7,FALSE),"") ->  | O46: =IFERROR(VLOOKUP(A46,'Propuesta de Certificados'!$A$2:$G$1002,3,FALSE),"") ->  | R46: =IFERROR(VLOOKUP(A46,'Propuesta de Certificados'!$A$2:$G$1002,4,FALSE),"") ->  | S46: =IFERROR(VLOOKUP(A46,'Propuesta de Certificados'!$A$2:$G$1002,6,FALSE),"") ->  | T46: =IFERROR(VLOOKUP(A46,'Propuesta de Certificados'!$A$2:$G$1002,5,FALSE),"") -> 
C47: =IFERROR(VLOOKUP(A47,'Propuesta de Certificados'!$A$2:$G$1002,2,FALSE),"") ->  | L47: =IFERROR(VLOOKUP(A47,'Propuesta de Certificados'!$A$2:$G$1002,7,FALSE),"") ->  | O47: =IFERROR(VLOOKUP(A47,'Propuesta de Certificados'!$A$2:$G$1002,3,FALSE),"") ->  | R47: =IFERROR(VLOOKUP(A47,'Propuesta de Certificados'!$A$2:$G$1002,4,FALSE),"") ->  | S47: =IFERROR(VLOOKUP(A47,'Propuesta de Certificados'!$A$2:$G$1002,6,FALSE),"") ->  | T47: =IFERROR(VLOOKUP(A47,'Propuesta de Certificados'!$A$2:$G$1002,5,FALSE),"") -> 
C48: =IFERROR(VLOOKUP(A48,'Propuesta de Certificados'!$A$2:$G$1002,2,FALSE),"") ->  | L48: =IFERROR(VLOOKUP(A48,'Propuesta de Certificados'!$A$2:$G$1002,7,FALSE),"") ->  | O48: =IFERROR(VLOOKUP(A48,'Propuesta de Certificados'!$A$2:$G$1002,3,FALSE),"") ->  | R48: =IFERROR(VLOOKUP(A48,'Propuesta de Certificados'!$A$2:$G$1002,4,FALSE),"") ->  | S48: =IFERROR(VLOOKUP(A48,'Propuesta de Certificados'!$A$2:$G$1002,6,FALSE),"") ->  | T48: =IFERROR(VLOOKUP(A48,'Propuesta de Certificados'!$A$2:$G$1002,5,FALSE),"") -> 
C49: =IFERROR(VLOOKUP(A49,'Propuesta de Certificados'!$A$2:$G$1002,2,FALSE),"") ->  | L49: =IFERROR(VLOOKUP(A49,'Propuesta de Certificados'!$A$2:$G$1002,7,FALSE),"") ->  | O49: =IFERROR(VLOOKUP(A49,'Propuesta de Certificados'!$A$2:$G$1002,3,FALSE),"") ->  | R49: =IFERROR(VLOOKUP(A49,'Propuesta de Certificados'!$A$2:$G$1002,4,FALSE),"") ->  | S49: =IFERROR(VLOOKUP(A49,'Propuesta de Certificados'!$A$2:$G$1002,6,FALSE),"") ->  | T49: =IFERROR(VLOOKUP(A49,'Propuesta de Certificados'!$A$2:$G$1002,5,FALSE),"") -> 
C50: =IFERROR(VLOOKUP(A50,'Propuesta de Certificados'!$A$2:$G$1002,2,FALSE),"") ->  | L50: =IFERROR(VLOOKUP(A50,'Propuesta de Certificados'!$A$2:$G$1002,7,FALSE),"") ->  | O50: =IFERROR(VLOOKUP(A50,'Propuesta de Certificados'!$A$2:$G$1002,3,FALSE),"") ->  | R50: =IFERROR(VLOOKUP(A50,'Propuesta de Certificados'!$A$2:$G$1002,4,FALSE),"") ->  | S50: =IFERROR(VLOOKUP(A50,'Propuesta de Certificados'!$A$2:$G$1002,6,FALSE),"") ->  | T50: =IFERROR(VLOOKUP(A50,'Propuesta de Certificados'!$A$2:$G$1002,5,FALSE),"") -> 
C51: =IFERROR(VLOOKUP(A51,'Propuesta de Certificados'!$A$2:$G$1002,2,FALSE),"") ->  | L51: =IFERROR(VLOOKUP(A51,'Propuesta de Certificados'!$A$2:$G$1002,7,FALSE),"") ->  | O51: =IFERROR(VLOOKUP(A51,'Propuesta de Certificados'!$A$2:$G$1002,3,FALSE),"") ->  | R51: =IFERROR(VLOOKUP(A51,'Propuesta de Certificados'!$A$2:$G$1002,4,FALSE),"") ->  | S51: =IFERROR(VLOOKUP(A51,'Propuesta de Certificados'!$A$2:$G$1002,6,FALSE),"") ->  | T51: =IFERROR(VLOOKUP(A51,'Propuesta de Certificados'!$A$2:$G$1002,5,FALSE),"") -> 
C52: =IFERROR(VLOOKUP(A52,'Propuesta de Certificados'!$A$2:$G$1002,2,FALSE),"") ->  | L52: =IFERROR(VLOOKUP(A52,'Propuesta de Certificados'!$A$2:$G$1002,7,FALSE),"") ->  | O52: =IFERROR(VLOOKUP(A52,'Propuesta de Certificados'!$A$2:$G$1002,3,FALSE),"") ->  | R52: =IFERROR(VLOOKUP(A52,'Propuesta de Certificados'!$A$2:$G$1002,4,FALSE),"") ->  | S52: =IFERROR(VLOOKUP(A52,'Propuesta de Certificados'!$A$2:$G$1002,6,FALSE),"") ->  | T52: =IFERROR(VLOOKUP(A52,'Propuesta de Certificados'!$A$2:$G$1002,5,FALSE),"") -> 
C53: =IFERROR(VLOOKUP(A53,'Propuesta de Certificados'!$A$2:$G$1002,2,FALSE),"") ->  | L53: =IFERROR(VLOOKUP(A53,'Propuesta de Certificados'!$A$2:$G$1002,7,FALSE),"") ->  | O53: =IFERROR(VLOOKUP(A53,'Propuesta de Certificados'!$A$2:$G$1002,3,FALSE),"") ->  | R53: =IFERROR(VLOOKUP(A53,'Propuesta de Certificados'!$A$2:$G$1002,4,FALSE),"") ->  | S53: =IFERROR(VLOOKUP(A53,'Propuesta de Certificados'!$A$2:$G$1002,6,FALSE),"") ->  | T53: =IFERROR(VLOOKUP(A53,'Propuesta de Certificados'!$A$2:$G$1002,5,FALSE),"") -> 
C54: =IFERROR(VLOOKUP(A54,'Propuesta de Certificados'!$A$2:$G$1002,2,FALSE),"") ->  | L54: =IFERROR(VLOOKUP(A54,'Propuesta de Certificados'!$A$2:$G$1002,7,FALSE),"") ->  | O54: =IFERROR(VLOOKUP(A54,'Propuesta de Certificados'!$A$2:$G$1002,3,FALSE),"") ->  | R54: =IFERROR(VLOOKUP(A54,'Propuesta de Certificados'!$A$2:$G$1002,4,FALSE),"") ->  | S54: =IFERROR(VLOOKUP(A54,'Propuesta de Certificados'!$A$2:$G$1002,6,FALSE),"") ->  | T54: =IFERROR(VLOOKUP(A54,'Propuesta de Certificados'!$A$2:$G$1002,5,FALSE),"") -> 
C55: =IFERROR(VLOOKUP(A55,'Propuesta de Certificados'!$A$2:$G$1002,2,FALSE),"") ->  | L55: =IFERROR(VLOOKUP(A55,'Propuesta de Certificados'!$A$2:$G$1002,7,FALSE),"") ->  | O55: =IFERROR(VLOOKUP(A55,'Propuesta de Certificados'!$A$2:$G$1002,3,FALSE),"") ->  | R55: =IFERROR(VLOOKUP(A55,'Propuesta de Certificados'!$A$2:$G$1002,4,FALSE),"") ->  | S55: =IFERROR(VLOOKUP(A55,'Propuesta de Certificados'!$A$2:$G$1002,6,FALSE),"") ->  | T55: =IFERROR(VLOOKUP(A55,'Propuesta de Certificados'!$A$2:$G$1002,5,FALSE),"") -> 
C56: =IFERROR(VLOOKUP(A56,'Propuesta de Certificados'!$A$2:$G$1002,2,FALSE),"") ->  | L56: =IFERROR(VLOOKUP(A56,'Propuesta de Certificados'!$A$2:$G$1002,7,FALSE),"") ->  | O56: =IFERROR(VLOOKUP(A56,'Propuesta de Certificados'!$A$2:$G$1002,3,FALSE),"") ->  | R56: =IFERROR(VLOOKUP(A56,'Propuesta de Certificados'!$A$2:$G$1002,4,FALSE),"") ->  | S56: =IFERROR(VLOOKUP(A56,'Propuesta de Certificados'!$A$2:$G$1002,6,FALSE),"") ->  | T56: =IFERROR(VLOOKUP(A56,'Propuesta de Certificados'!$A$2:$G$1002,5,FALSE),"") -> 
C57: =IFERROR(VLOOKUP(A57,'Propuesta de Certificados'!$A$2:$G$1002,2,FALSE),"") ->  | L57: =IFERROR(VLOOKUP(A57,'Propuesta de Certificados'!$A$2:$G$1002,7,FALSE),"") ->  | O57: =IFERROR(VLOOKUP(A57,'Propuesta de Certificados'!$A$2:$G$1002,3,FALSE),"") ->  | R57: =IFERROR(VLOOKUP(A57,'Propuesta de Certificados'!$A$2:$G$1002,4,FALSE),"") ->  | S57: =IFERROR(VLOOKUP(A57,'Propuesta de Certificados'!$A$2:$G$1002,6,FALSE),"") ->  | T57: =IFERROR(VLOOKUP(A57,'Propuesta de Certificados'!$A$2:$G$1002,5,FALSE),"") -> 
A58: DATOS DEL PROYECTO
A59: Nombre del Proyecto | N59: Numeración de proyecto | Q59: Grado del BBP Verde al que postula
A61: Etapas/Sectores / Torres/ Edificios a Certificar | B61: Nombre de los elementos con la cantidad de viviendas sostenibles totales y sostenibles (Ej.: Torre A, 100, 50; Torre B, 250,249 ; Torre C, 200,200,; etc), separados por punto y coma NO USAR OTRO CONECTOR | Q61: =IF(A62="Torres","Cantidad de Torres a certificar",IF(A62="Etapas","Cantidad de Etapas a certificar",IF(A62="Sectores","Cantidad de Sectores a certificar",IF(A62="Edificios","Cantidad de Edificios a certificar","Especifique")))) -> Especifique | S61: Cantidad de viviendas sostenibles | T61: Cantidad total de unidades de vivienda
Q62: =IF(B62="","",LEN(B62) - LEN(SUBSTITUTE(B62,";",""))+1) -> 
A63: Avenida / Calle / Jirón / Pasaje | C63: Manzana | I63: Lote / Sublote | O63: Numeración | Q63: Urbanización / Centro poblado | T63: UBIGEO (INEI)
T64: =IFERROR(VLOOKUP(I67,U!L6:Q1898,6,FALSE),"") -> 
A65: Región | C65: Provincia | I65: Distrito | N65: Área verde por habitante (m2/hab) | O65: COORDENADAS UTM (WGS84) - CENTROIDE | T65: Altitud (CENTROIDE) msnm
O66: ESTE (X) | P66: NORTE (Y) | Q66: ZONA | S66: BANDA
N67: =IFERROR(VLOOKUP(I67,U!L6:N1898,3,FALSE),"") -> 
A68: =IF(A67="LIMA","Ciudad siguiente más cercana con más de 100000 hab","Ciudad siguiente más cercana con más de 50000 hab") -> Ciudad siguiente más cercana con más de 50000 hab | C68: =_xlfn.CONCAT("Población de ",A69," (hab)") -> Población de (hab) | I68: Distancia a la ciudad citada (kms) | O68: Condición de elegible según población y distancia | P68: Zona Climática según clasificación Wieser (ampliada) | S68: Zona Climática según clasificación CTCS2021
A69: =IF(AND(A67="LIMA",U!H1914=""),"",IF(AND(A67<>"LIMA",U!G1915=""),"",IF(A67="LIMA",U!H1914,IF(A67<>"LIMA",U!G1915,"")))) ->  | C69: =IFERROR(VLOOKUP(A69,U!E6:K1898,6,FALSE),"") ->  | I69: =IF(A69="","",U!K1902) ->  | O69: =IF(A69="","NO ES ELEGIBLE","ES ELEGIBLE") -> NO ES ELEGIBLE | P69: =IFERROR(VLOOKUP(IFERROR(VLOOKUP(I67,U!$L$6:$O$1898,4,FALSE),""),T!$N$4:$O$17,2,FALSE),"") ->  | S69: =IFERROR(VLOOKUP(IFERROR(VLOOKUP(I67,U!L6:P1898,5,FALSE),""),T!N19:O27,2,FALSE),"") -> 
A71: DATOS DEL PREDIO
A72: Nº de Ficha de Partida o FIcha Registral del terreno | I72: Tomo | N72: Folio | P72: Oficina Registral
A73: Área del Terreno (m²) | I73: Longitud del Perímetro | P73: Terreno en copropiedad
A74: Enlace de la Ubicación en Google Maps | N74: Enlace a la ubicación del archivo kmz del perímetro (Google Drive)
A78: =IF(AND(R81=S81,S81=T81),"","Se sugiere revisar la ciudad, o los datos") -> Se sugiere revisar la ciudad, o los datos
R80: Distrito | S80: DISTRITO SEGÚN CENTROIDE | T80: DISTRITO SEGÚN UBIGEO
R81: =I67 -> 0 | S81: =U!I1901 -> TENIENTE MANUEL CLAVERO | T81: =IFERROR(VLOOKUP(T64,U!B6:L1898,11,FALSE),"") -> 
A673: 7. Formatos

Sheet Formato 2
A1: b. Formato N° 2: “Check-List para Descartar Problemas de Ubicación – Zonas Rurales o de Expansión Urbana
G2: Código: F1294/PR-N3-3-2-7
A3: Check-List para Descartar Problemas de Ubicación – Zonas Rurales o de Expansión Urbana
A4: Formato 2 se listan los Criterios de Exclusión para descartar problemas de ubicación, aplicables solo a proyectos en zonas rurales o de expansión urbana (terrenos rústicos). Debe ser respondida por el Desarrollador Inmobiliario como declaración jurada. -Se deberá marcar con un (x), se adjuntarán los documentos necesarios para sustentar la exclusión de problemas de ubicación. El Proyecto Inmobiliario será excluido de la "Certificación de los Proyectos MIVIVIENDA Sostenible" no cumple alguna de las condiciones listadas..
A5: N° | B5: Criterios de Exclusión | C5: Marcar con (X) | E5: Presentación de Documentos y Medios para la Verificación de información | G5: Marcar (X) si Anexa
C6: Si | D6: No
A7: 1 | B7: El terreno cuenta con el acceso a infraestructura de servicios públicos (excepto zonas rurales) | E7: 1.1 | F7: Factibilidad de Servicios por el concesionario del servicio de agua potable y alcantarillado.
E8: 1.2 | F8: Factibilidad de Servicios emitido por el concesionario del servicio de electricidad.
A9: 2 | B9: ¿Incompatibilidad de la zonificación de uso y ocupación del suelo? | E9: 2.1 | F9: Anteproyecto Arquitectónico Aprobado.
E10: 2.2 | F10: Licencia de Edificación emitido por la Municipalidad.
A11: 3 | B11: ¿El terreno se inserta en un terreno no legalmente saneado? | E11: 3.1 | F11: Partida Registral del inmueble a nombre del desarrollador inmobiliario.
A12: 4 | B12: ¿El terreno se inserta en un territorio de Comunidades Campesinas con título inscrito en RRPP? | E12: 4.1 | F12: Consulta a la base de datos del Sistema de información sobre comunidades campesinas del Perú. Página Principal: https://ibcperu.org/servicios/siccam-informacion-sobre-comunidades-campesinas/ Página de Búsqueda de la ubicación: https://ibcperu.maps.arcgis.com/apps/webappviewer/index.html?id=ffb473dc2294415abad2b46299320dd8
E13: 4.2 | F13: Partida o Certificado Registral de los RRPP.
A14: 5 | B14: ¿El terreno se inserta en Territorio de Comunidades Indígenas con título inscrito en RRPP? | E14: 5.1 | F14: Consulta a la base de datos de pueblos indígenas u originarios. Página Principal: https://bdpi.cultura.gob.pe/que-es-la-bdpi Página de Búsqueda de la ubicación: https://bdpi.cultura.gob.pe/mapa-interactivo
E15: 5.2 | F15: Partida o Certificado Registral de los RRPP.
A16: 6 | B16: ¿El terreno se inserta en Áreas Nacionales Protegidas ( ANP) y/o zonas de amortiguación. | E16: 6.1 | F16: Consulta del Servicio Nacional de Áreas Naturales Protegidas por el Estado. Página de Búsqueda de la ubicación: https://geo.sernanp.gob.pe/visorsernanp/
A17: 7 | B17: ¿El terreno se inserta en un Key Biodiversity Area (KBA)? | E17: 7.1 | F17: Consulta a la base de datos de la Asociación KBA. https://www.keybiodiversityareas.org/kba-data
A18: 8 | B18: ¿El terreno se inserta en un Hábitat Natural? | E18: 8.1 | F18: Evidencia fotográfica o con imágenes satelitales recientes.
A19: 9 | B19: ¿El terreno se inserta en Zonas de la Alianza para la Extensión Cero (AZE)? | E19: 9.1 | F19: Consulta al sitio web de la Alianza para la extinción Cero. Página Principal: https://zeroextinction.org/ Página de Búsqueda de la ubicación: https://zeroextinction.org/site-identification/2023-global-aze-map/
A20: 10 | B20: Se encuentra en una Zona de Protección Arqueológica (ZPA) | E20: 10.1 | F20: Consulta al sistema de información Geográfica de Arqueología del Ministerio de Cultura del Perú. https://sigda.cultura.gob.pe/
A21: 11 | B21: Patrimonio Mundial Natural y Mixto de la UNESCO | E21: 11.1 | F21: Consulta a la base de datos de la lista del Patrimonio Mundial. Página Principal: https://whc.unesco.org/en/list/ Página de Búsqueda de la ubicación: https://whc.unesco.org/en/wh-gis/
A26: ________________________________
A27: =_xlfn.CONCAT("Firma del Representante de"," ",'Formato 1 '!A6:H6) -> Firma del Representante de
B28: Nombre Completo: | F28: =_xlfn.CONCAT('Formato 1 '!C12," ",'Formato 1 '!A12) -> 
A29: =_xlfn.CONCAT('Formato 1 '!M12,":") -> : | F29: ='Formato 1 '!O12 -> 0
A30: Cargo:

Sheet Formato 3
A1: c. Formato N° 3: Check-List para Descartar Problemas de Alto Riesgo en Zonas Urbanas Consolidadas
H2: Código: F1295/PR-N3-3-2-7
A3: Check-List para Descartar Proyectos de Alto Riesgo – Zonas Urbanas Consolidadas y Zonas Rurales
A4: N° | B4: Criterios de Exclusión | C4: Marcar con (X) | E4: Presentación de Documentos y Medios para la Verificación de información | H4: Marcar (X) si Anexa
C5: Si | D5: No
A6: Se considera a la Tabla 2 abajo se indican los Criterios de Categorización de Riesgo Alto que son aplicables a todas las tipologías de proyectos, tanto de ámbito urbano como rural, siendo que algunos requisitos son aplicables solo en el caso de proyectos rurales (señalados con *). -Se deberá marcar (X) por cada criterio, se adjuntarán los documentos necesarios para sustentar la exclusión de problemas de ubicación. El Proyecto Inmobiliario será excluido de la "Certificación de los Proyectos MIVIVIENDA Sostenible" si se aplica alguna de las condiciones listadas.
C7: Aplicabilidad (marcar con una X) | H7: Marcar (X) si anexa
A8: N° | B8: Criterios de Categorización de Riesgo Alto | C8: Si | D8: No | E8: Presentación de Documentos y Medios para la Verificación de información
A9: 1 | B9: Reasentamiento físico significativo de población (más de 10 viviendas o familias) y/o población vulnerable) | E9: 1.1 | F9: Copia de Partida Registral, donde se muestre antecedentes de la tenencia y uso del terreno.
E10: 1.2 | F10: Declaraciones juradas del desarrollador inmobiliario
F11: a | G11: Uso actual del área la presencia de edificaciones / casas afectadas por la huella de carbono
F12: b | G12: Forma de adquisición del inmueble (compraventa, prescripción adquisitiva)
F13: c | G13: DJ que no hubo desalojo de personas
E14: 1.3 | F14: Documento legal sobre Derecho Posesorio reconocido
E15: 1.4 | F15: Copia del mandato judicial de desalojo ( si aplica)
E16: 1.5 | F16: Indicar el tipo de persona jurídica fue comprado el terreno
A17: 2 | B17: Desbroce de vegetación nativa | E17: 2.1 | F17: Evidencia fotográfica o con imágenes satelitales recientes.
A19: 3 | B19: Patrimonio Mundial Natural y Mixto de la UNESCO | E19: 3.1 | F19: Consulta a la base de datos de la Lista del Patrimonio Mundial. Página Principal: https://whc.unesco.org/en/list/ Página de Búsqueda de la ubicación: https://whc.unesco.org/en/wh-gis/
A20: 4 | B20: Zona de Protección Arqueológica (ZPA) | E20: 4.1 | F20: Consulta al sistema de información Geográfica de arqueología del Ministerio de Cultura de Perú. https://sigda.cultura.gob.pe/
A22: 5 | B22: Zonas de riesgo de huaicos o inundación | E22: 5.1 | F22: Certificado de Parámetros urbanísticos Edificatorios
A23: 6 | B23: Ubicación en terreno con un uso industrial pretérito, incluyendo zonas de disposición irregular de residuos con riesgos de pasivos ambientales / suelo contaminado | E23: 6.1 | F23: Partida Registral donde se visualice antecedente de uso del inmueble. En caso tenga antecedentes de uso industrial generador de pasivos ambientales.
F25: Informe sobre la evaluación de calidad de suelo y se opine al respecto de la eliminación o mitigación de pasivos ambientales elaborado por el especialista.
A27: 7 | B27: Ubicación en zona de conflictos sociales por la tierra | E27: 7.1 | F27: Partida Registral ( Se verificará si no cuenta con cargas por demandas de posesión, juicios y/o otras fuentes generadoras de conflicto.
E28: 7.2 | F28: No figure en el registro de Conflictos sociales de la Defensoría del pueblo. https://www.defensoria.gob.pe/categorias_de_documentos/reportes/
E29: 7.3 | F29: No figure en el reporte Willaqniki sobre conflictos sociales emitido por la Presidencia del Consejo de ministros. https://www.gob.pe/institucion/pcm/colecciones/12-reporte-willaqniki
E30: 7.4 | F30: Partida Registral donde visualice la titularidad del inmueble a nombre del desarrollador inmobiliario.
A31: 8 | B31: Zonas de riesgo de huaicos o inundación | E31: 8.1 | F31: Certificado de Parámetros urbanísticos Edificatorios
A32: 9 | B32: Terreno sin saneamiento legal concluido | E32: 9.1 | F32: Licencia de Edificación
E33: 9.2 | F33: Certificado de Parámetros Urbanísticos Edificatorios
A39: _________________________________________
A40: =_xlfn.CONCAT("Firma del Representante de"," ",'Formato 1 '!A6:H6) -> Firma del Representante de
A41: Nombre Completo: | G41: =_xlfn.CONCAT('Formato 1 '!C12," ",'Formato 1 '!A12) -> 
A42: =_xlfn.CONCAT('Formato 1 '!M12,":") -> : | G42: ='Formato 1 '!O12 -> 0
A43: Cargo:

Sheet U (hidden)
I3: =AG1921 -> 85.52278123 | J3: =AH1921 -> -93.25794899 | K3: ='Formato 1 '!T67 -> 0
A6: 1 | B6: 10202 | C6: AMAZONAS | D6: BAGUA | E6: ARAMANGO | F6: 809 | G6: 502 | H6: -5.4164 | I6: -78.4378 | J6: 9770 | K6: =SQRT(POWER((H6-$I$3)*111.321,2)+POWER((I6-$J$3)*111.321,2)) -> 10256.99123 | L6: ARAMANGO | M6: =ABS($I6-(IFERROR(VLOOKUP((INDEX($AC$6:$AC$850,MATCH(MIN(ABS($AC$6:$AC$850-$H6)),ABS($AC$6:$AC$850-$H6),0))),$AC$6:$AD$850,2,FALSE),"")))*111.32 -> 282.44667 | N6: 2.047082907 | O6: 34 | P6: 43 | Q6: 10202 | U6: AMAZONAS | X6: AMAZONAS | Y6: BAGUA | AC6: -3.38225 | AD6: -80.31448333
A7: =+A6+1 -> 2 | B7: 10201 | C7: AMAZONAS | D7: BAGUA | E7: BAGUA | F7: 151 | G7: 408 | H7: -5.6389 | I7: -78.5311 | J7: 30652 | K7: =SQRT(POWER((H7-$I$3)*111.321,2)+POWER((I7-$J$3)*111.321,2)) -> 10279.77692 | L7: BAGUA | M7: =ABS($I7-(IFERROR(VLOOKUP((INDEX($AC$6:$AC$850,MATCH(MIN(ABS($AC$6:$AC$850-$H7)),ABS($AC$6:$AC$850-$H7),0))),$AC$6:$AD$850,2,FALSE),"")))*111.32 -> 258.4034053 | N7: 0.1970507634 | O7: 34 | P7: 43 | Q7: 10201 | U7: ANCASH | X7: AMAZONAS | Y7: BONGARA | AC7: -3.4524 | AD7: -80.3445
A8: =+A7+1 -> 3 | B8: 10203 | C8: AMAZONAS | D8: BAGUA | E8: COPALLIN | F8: 99 | G8: 693 | H8: -5.675 | I8: -78.4231 | J8: 4334 | K8: 10285.66766 | L8: COPALLIN | M8: =ABS($I8-(IFERROR(VLOOKUP((INDEX($AC$6:$AC$850,MATCH(MIN(ABS($AC$6:$AC$850-$H8)),ABS($AC$6:$AC$850-$H8),0))),$AC$6:$AD$850,2,FALSE),"")))*111.32 -> 270.045622 | O8: 34 | P8: 43 | Q8: 10203 | U8: APURIMAC | X8: AMAZONAS | Y8: CHACHAPOYAS | AC8: -3.477316667 | AD8: -80.38468333
A9: 4 | B9: 10204 | C9: AMAZONAS | D9: BAGUA | E9: EL PARCO | F9: 18 | G9: 626 | H9: -5.625 | I9: -78.4753 | J9: 1262 | K9: 10279.24198 | L9: EL PARCO | M9: =ABS($I9-(IFERROR(VLOOKUP((INDEX($AC$6:$AC$850,MATCH(MIN(ABS($AC$6:$AC$850-$H9)),ABS($AC$6:$AC$850-$H9),0))),$AC$6:$AD$850,2,FALSE),"")))*111.32 -> 264.6150613 | N9: 0.7923930269 | O9: 34 | P9: 43 | Q9: 10204 | U9: AREQUIPA | X9: AMAZONAS | Y9: CHACHAPOYAS | AC9: -3.484283333 | AD9: -80.43316667
A10: 5 | B10: 10205 | C10: AMAZONAS | D10: BAGUA | E10: IMAZA | F10: 4431 | G10: 317 | H10: -5.1636 | I10: -78.2889 | J10: 33812 | K10: 10231.90315 | L10: IMAZA | M10: =ABS($I10-(IFERROR(VLOOKUP((INDEX($AC$6:$AC$850,MATCH(MIN(ABS($AC$6:$AC$850-$H10)),ABS($AC$6:$AC$850-$H10),0))),$AC$6:$AD$850,2,FALSE),"")))*111.32 -> 320.6721027 | N10: 0.004693599905 | O10: 34 | P10: 43 | Q10: 10205 | U10: AYACUCHO | X10: AMAZONAS | Y10: CONDORCANQUI | AC10: -3.489266667 | AD10: -80.469
A11: 6 | B11: 10206 | C11: AMAZONAS | D11: BAGUA | E11: LA PECA | F11: 144 | G11: 892 | H11: -5.6119 | I11: -78.4369 | J11: 6299 | K11: 10278.48779 | L11: LA PECA | M11: =ABS($I11-(IFERROR(VLOOKUP((INDEX($AC$6:$AC$850,MATCH(MIN(ABS($AC$6:$AC$850-$H11)),ABS($AC$6:$AC$850-$H11),0))),$AC$6:$AD$850,2,FALSE),"")))*111.32 -> 269.8916293 | N11: 0.1190665185 | O11: 33 | P11: 43 | Q11: 10206 | U11: CAJAMARCA | X11: AMAZONAS | Y11: LUYA | AC11: -3.51205 | AD11: -80.5113
A12: 7 | B12: 10302 | C12: AMAZONAS | D12: BONGARA | E12: CHISQUILLA | F12: 175 | G12: 2057 | H12: -5.8975 | I12: -77.7861 | J12: 310 | K12: 10321.71165 | L12: CHISQUILLA | M12: =ABS($I12-(IFERROR(VLOOKUP((INDEX($AC$6:$AC$850,MATCH(MIN(ABS($AC$6:$AC$850-$H12)),ABS($AC$6:$AC$850-$H12),0))),$AC$6:$AD$850,2,FALSE),"")))*111.32 -> 374.4489393 | N12: 9.35483871 | O12: 31 | P12: 41 | Q12: 10302 | U12: CUSCO | X12: AMAZONAS | Y12: RODRIGUEZ DE MENDOZA | AC12: -3.584316667 | AD12: -80.54453333
A13: 8 | B13: 10303 | C13: AMAZONAS | D13: BONGARA | E13: CHURUJA | F13: 33 | G13: 1399 | H13: -6.0194 | I13: -77.9519 | J13: 295 | K13: 10332.03184 | L13: CHURUJA | M13: =ABS($I13-(IFERROR(VLOOKUP((INDEX($AC$6:$AC$850,MATCH(MIN(ABS($AC$6:$AC$850-$H13)),ABS($AC$6:$AC$850-$H13),0))),$AC$6:$AD$850,2,FALSE),"")))*111.32 -> 354.0625367 | N13: 2.966101695 | O13: 33 | P13: 41 | Q13: 10303 | U13: HUANCAVELICA | X13: AMAZONAS | Y13: UTCUBAMBA | AC13: -3.626083333 | AD13: -80.56901667
A14: 9 | B14: 10304 | C14: AMAZONAS | D14: BONGARA | E14: COROSHA | F14: 46 | G14: 2297 | H14: -5.8433 | I14: -77.8225 | J14: 842 | K14: 10315.08693 | L14: COROSHA | M14: =ABS($I14-(IFERROR(VLOOKUP((INDEX($AC$6:$AC$850,MATCH(MIN(ABS($AC$6:$AC$850-$H14)),ABS($AC$6:$AC$850-$H14),0))),$AC$6:$AD$850,2,FALSE),"")))*111.32 -> 365.2947247 | N14: 8.313539192 | O14: 31 | P14: 41 | Q14: 10304 | U14: HUANUCO | X14: ANCASH | Y14: AIJA | AC14: -3.6386 | AD14: -80.58916667
A15: 10 | B15: 10305 | C15: AMAZONAS | D15: BONGARA | E15: CUISPES | F15: 111 | G15: 1912 | H15: -5.9283 | I15: -77.9461 | J15: 650 | K15: 10322.13609 | L15: CUISPES | M15: =ABS($I15-(IFERROR(VLOOKUP((INDEX($AC$6:$AC$850,MATCH(MIN(ABS($AC$6:$AC$850-$H15)),ABS($AC$6:$AC$850-$H15),0))),$AC$6:$AD$850,2,FALSE),"")))*111.32 -> 356.3612947 | N15: 0.3076923077 | O15: 30 | P15: 41 | Q15: 10305 | U15: ICA | X15: ANCASH | Y15: ANTONIO RAYMONDI | AC15: -3.6364 | AD15: -80.60816667
A16: 11 | B16: 10306 | C16: AMAZONAS | D16: BONGARA | E16: FLORIDA | F16: 203 | G16: 2251 | H16: -5.8261 | I16: -77.9694 | J16: 6321 | K16: 10310.48698 | L16: FLORIDA | M16: =ABS($I16-(IFERROR(VLOOKUP((INDEX($AC$6:$AC$850,MATCH(MIN(ABS($AC$6:$AC$850-$H16)),ABS($AC$6:$AC$850-$H16),0))),$AC$6:$AD$850,2,FALSE),"")))*111.32 -> 340.349768 | N16: 0.7356430944 | O16: 31 | P16: 41 | Q16: 10306 | U16: JUNIN | X16: ANCASH | Y16: ASUNCION | AC16: -3.666683333 | AD16: -80.62626667
A17: 12 | B17: 10307 | C17: AMAZONAS | D17: BONGARA | E17: JAZAN | F17: 89 | G17: 1342 | H17: -5.9414 | I17: -77.9772 | J17: 7683 | K17: 10323.00331 | L17: JAZAN | M17: =ABS($I17-(IFERROR(VLOOKUP((INDEX($AC$6:$AC$850,MATCH(MIN(ABS($AC$6:$AC$850-$H17)),ABS($AC$6:$AC$850-$H17),0))),$AC$6:$AD$850,2,FALSE),"")))*111.32 -> 352.7767907 | O17: 33 | P17: 41 | Q17: 10307 | U17: LA LIBERTAD | X17: ANCASH | Y17: BOLOGNESI | AC17: -3.666566667 | AD17: -80.65056667
A18: 13 | B18: 10301 | C18: AMAZONAS | D18: BONGARA | E18: JUMBILLA | F18: 154 | G18: 2081 | H18: -5.9044 | I18: -77.7978 | J18: 1258 | K18: 10322.25176 | L18: JUMBILLA | M18: =ABS($I18-(IFERROR(VLOOKUP((INDEX($AC$6:$AC$850,MATCH(MIN(ABS($AC$6:$AC$850-$H18)),ABS($AC$6:$AC$850-$H18),0))),$AC$6:$AD$850,2,FALSE),"")))*111.32 -> 373.1464953 | N18: 0.7949125596 | O18: 31 | P18: 41 | Q18: 10301 | U18: LAMBAYEQUE | X18: ANCASH | Y18: CARHUAZ | AC18: -3.66965 | AD18: -80.66221667
A19: 14 | B19: 10308 | C19: AMAZONAS | D19: BONGARA | E19: RECTA | F19: 25 | G19: 2166 | H19: -5.9178 | I19: -77.7889 | J19: 213 | K19: 10323.8878 | L19: RECTA | M19: =ABS($I19-(IFERROR(VLOOKUP((INDEX($AC$6:$AC$850,MATCH(MIN(ABS($AC$6:$AC$850-$H19)),ABS($AC$6:$AC$850-$H19),0))),$AC$6:$AD$850,2,FALSE),"")))*111.32 -> 373.8607987 | N19: 1.088262911 | O19: 31 | P19: 41 | Q19: 10308 | U19: LIMA | X19: ANCASH | Y19: CARLOS FERMIN FITZCARRALD | AC19: -3.676933333 | AD19: -80.66986667
A20: 15 | B20: 10309 | C20: AMAZONAS | D20: BONGARA | E20: SAN CARLOS | F20: 101 | G20: 1942 | H20: -5.9661 | I20: -77.9453 | J20: 592 | K20: 10326.30098 | L20: SAN CARLOS | M20: =ABS($I20-(IFERROR(VLOOKUP((INDEX($AC$6:$AC$850,MATCH(MIN(ABS($AC$6:$AC$850-$H20)),ABS($AC$6:$AC$850-$H20),0))),$AC$6:$AD$850,2,FALSE),"")))*111.32 -> 356.3668607 | O20: 30 | P20: 41 | Q20: 10309 | U20: LORETO | X20: ANCASH | Y20: CASMA | AC20: -3.677866667 | AD20: -80.68493333
A21: 16 | B21: 10310 | C21: AMAZONAS | D21: BONGARA | E21: SHIPASBAMBA | F21: 127 | G21: 1668 | H21: -5.9106 | I21: -77.9806 | J21: 1730 | K21: 10319.55913 | L21: SHIPASBAMBA | M21: =ABS($I21-(IFERROR(VLOOKUP((INDEX($AC$6:$AC$850,MATCH(MIN(ABS($AC$6:$AC$850-$H21)),ABS($AC$6:$AC$850-$H21),0))),$AC$6:$AD$850,2,FALSE),"")))*111.32 -> 352.5207547 | O21: 30 | P21: 41 | Q21: 10310 | U21: MADRE DE DIOS | X21: ANCASH | Y21: CORONGO | AC21: -3.707083333 | AD21: -80.72201667
A22: 17 | B22: 10311 | C22: AMAZONAS | D22: BONGARA | E22: VALERA | F22: 90 | G22: 1928 | H22: -6.0428 | I22: -77.9192 | J22: 745 | K22: 10335.20188 | L22: VALERA | M22: =ABS($I22-(IFERROR(VLOOKUP((INDEX($AC$6:$AC$850,MATCH(MIN(ABS($AC$6:$AC$850-$H22)),ABS($AC$6:$AC$850-$H22),0))),$AC$6:$AD$850,2,FALSE),"")))*111.32 -> 357.7027007 | N22: 1.342281879 | O22: 30 | P22: 41 | Q22: 10311 | U22: MOQUEGUA | X22: ANCASH | Y22: HUARAZ | AC22: -3.717233333 | AD22: -80.74648333
A23: 18 | B23: 10312 | C23: AMAZONAS | D23: BONGARA | E23: YAMBRASBAMBA | F23: 1716 | G23: 1887 | H23: -5.7353 | I23: -77.925 | J23: 5581 | K23: 10301.33564 | L23: YAMBRASBAMBA | M23: =ABS($I23-(IFERROR(VLOOKUP((INDEX($AC$6:$AC$850,MATCH(MIN(ABS($AC$6:$AC$850-$H23)),ABS($AC$6:$AC$850-$H23),0))),$AC$6:$AD$850,2,FALSE),"")))*111.32 -> 326.2714987 | N23: 0.09872782655 | O23: 30 | P23: 41 | Q23: 10312 | U23: PASCO | X23: ANCASH | Y23: HUARI | AC23: -3.71875 | AD23: -80.75483333
A24: 19 | B24: 10102 | C24: AMAZONAS | D24: CHACHAPOYAS | E24: ASUNCION | F24: 26 | G24: 2823 | H24: -6.0325 | I24: -77.7108 | J24: 273 | K24: 10337.92964 | L24: ASUNCION | M24: =ABS($I24-(IFERROR(VLOOKUP((INDEX($AC$6:$AC$850,MATCH(MIN(ABS($AC$6:$AC$850-$H24)),ABS($AC$6:$AC$850-$H24),0))),$AC$6:$AD$850,2,FALSE),"")))*111.32 -> 380.9017887 | O24: 31 | P24: 41 | Q24: 10102 | U24: PIURA | X24: ANCASH | Y24: HUARMEY | AC24: -3.734183333 | AD24: -80.76846667
A25: 20 | B25: 10103 | C25: AMAZONAS | D25: CHACHAPOYAS | E25: BALSAS | F25: 357 | G25: 859 | H25: -6.8358 | I25: -78.0197 | J25: 1147 | K25: 10420.44941 | L25: BALSAS | M25: =ABS($I25-(IFERROR(VLOOKUP((INDEX($AC$6:$AC$850,MATCH(MIN(ABS($AC$6:$AC$850-$H25)),ABS($AC$6:$AC$850-$H25),0))),$AC$6:$AD$850,2,FALSE),"")))*111.32 -> 213.4820747 | O25: 33 | P25: 43 | Q25: 10103 | U25: PUNO | X25: ANCASH | Y25: HUAYLAS | AC25: -3.7501 | AD25: -80.78886667
A26: 21 | B26: 10101 | C26: AMAZONAS | D26: CHACHAPOYAS | E26: CHACHAPOYAS | F26: 154 | G26: 2338 | H26: -6.2294 | I26: -77.8728 | J26: 40817 | K26: 10356.54244 | L26: CHACHAPOYAS | M26: =ABS($I26-(IFERROR(VLOOKUP((INDEX($AC$6:$AC$850,MATCH(MIN(ABS($AC$6:$AC$850-$H26)),ABS($AC$6:$AC$850-$H26),0))),$AC$6:$AD$850,2,FALSE),"")))*111.32 -> 330.87087 | O26: 31 | P26: 41 | Q26: 10101 | U26: SAN MARTIN | X26: ANCASH | Y26: MARISCAL LUZURIAGA | AC26: -3.782 | AD26: -80.80288333
A27: 22 | B27: 10104 | C27: AMAZONAS | D27: CHACHAPOYAS | E27: CHETO | F27: 57 | G27: 2143 | H27: -6.2556 | I27: -77.7008 | J27: 710 | K27: 10362.60165 | L27: CHETO | M27: =ABS($I27-(IFERROR(VLOOKUP((INDEX($AC$6:$AC$850,MATCH(MIN(ABS($AC$6:$AC$850-$H27)),ABS($AC$6:$AC$850-$H27),0))),$AC$6:$AD$850,2,FALSE),"")))*111.32 -> 350.01791 | N27: 1.126760563 | O27: 31 | P27: 41 | Q27: 10104 | U27: TACNA | X27: ANCASH | Y27: OCROS | AC27: -3.802933333 | AD27: -80.81325
A28: 23 | B28: 10105 | C28: AMAZONAS | D28: CHACHAPOYAS | E28: CHILIQUIN | F28: 143 | G28: 2677 | H28: -6.0783 | I28: -77.7375 | J28: 568 | K28: 10342.45927 | L28: CHILIQUIN | M28: =ABS($I28-(IFERROR(VLOOKUP((INDEX($AC$6:$AC$850,MATCH(MIN(ABS($AC$6:$AC$850-$H28)),ABS($AC$6:$AC$850-$H28),0))),$AC$6:$AD$850,2,FALSE),"")))*111.32 -> 372.521248 | O28: 31 | P28: 41 | Q28: 10105 | U28: TUMBES | X28: ANCASH | Y28: PALLASCA | AC28: -3.832666667 | AD28: -80.82436667
A29: 24 | B29: 10106 | C29: AMAZONAS | D29: CHACHAPOYAS | E29: CHUQUIBAMBA | F29: 279 | G29: 2803 | H29: -6.935 | I29: -77.8542 | J29: 1898 | K29: 10434.35717 | L29: CHUQUIBAMBA | M29: =ABS($I29-(IFERROR(VLOOKUP((INDEX($AC$6:$AC$850,MATCH(MIN(ABS($AC$6:$AC$850-$H29)),ABS($AC$6:$AC$850-$H29),0))),$AC$6:$AD$850,2,FALSE),"")))*111.32 -> 224.025934 | O29: 31 | P29: 41 | Q29: 10106 | U29: UCAYALI | X29: ANCASH | Y29: POMABAMBA | AC29: -3.85565 | AD29: -80.83201667
A30: 25 | B30: 10107 | C30: AMAZONAS | D30: CHACHAPOYAS | E30: GRANADA | F30: 181 | G30: 3041 | H30: -6.1064 | I30: -77.6286 | J30: 546 | K30: 10347.57492 | L30: GRANADA | M30: =ABS($I30-(IFERROR(VLOOKUP((INDEX($AC$6:$AC$850,MATCH(MIN(ABS($AC$6:$AC$850-$H30)),ABS($AC$6:$AC$850-$H30),0))),$AC$6:$AD$850,2,FALSE),"")))*111.32 -> 380.8387073 | N30: 1.007326007 | O30: 31 | P30: 41 | Q30: 10107 | X30: ANCASH | Y30: RECUAY | AC30: -3.868533333 | AD30: -80.83281667
A31: 26 | B31: 10108 | C31: AMAZONAS | D31: CHACHAPOYAS | E31: HUANCAS | F31: 49 | G31: 2591 | H31: -6.1736 | I31: -77.8644 | J31: 1515 | K31: 10350.57108 | L31: HUANCAS | M31: =ABS($I31-(IFERROR(VLOOKUP((INDEX($AC$6:$AC$850,MATCH(MIN(ABS($AC$6:$AC$850-$H31)),ABS($AC$6:$AC$850-$H31),0))),$AC$6:$AD$850,2,FALSE),"")))*111.32 -> 345.6133487 | O31: 31 | P31: 41 | Q31: 10108 | X31: ANCASH | Y31: SANTA | AC31: -3.882666667 | AD31: -80.84583333
A32: 27 | B32: 10109 | C32: AMAZONAS | D32: CHACHAPOYAS | E32: LA JALCA | F32: 380 | G32: 2869 | H32: -6.4847 | I32: -77.815 | J32: 3558 | K32: 10385.63557 | L32: LA JALCA | M32: =ABS($I32-(IFERROR(VLOOKUP((INDEX($AC$6:$AC$850,MATCH(MIN(ABS($AC$6:$AC$850-$H32)),ABS($AC$6:$AC$850-$H32),0))),$AC$6:$AD$850,2,FALSE),"")))*111.32 -> 287.867954 | N32: 0.01489600899 | O32: 31 | P32: 41 | Q32: 10109 | X32: ANCASH | Y32: SIHUAS | AC32: -3.89815 | AD32: -80.85886667
A33: 28 | B33: 10110 | C33: AMAZONAS | D33: CHACHAPOYAS | E33: LEIMEBAMBA | F33: 373 | G33: 2226 | H33: -6.7075 | I33: -77.8039 | J33: 3759 | K33: 10410.30068 | L33: LEIMEBAMBA | M33: =ABS($I33-(IFERROR(VLOOKUP((INDEX($AC$6:$AC$850,MATCH(MIN(ABS($AC$6:$AC$850-$H33)),ABS($AC$6:$AC$850-$H33),0))),$AC$6:$AD$850,2,FALSE),"")))*111.32 -> 247.5997993 | N33: 0.03724394786 | O33: 31 | P33: 41 | Q33: 10110 | X33: ANCASH | Y33: YUNGAY | AC33: -3.904783333 | AD33: -80.87591667
A34: 29 | B34: 10111 | C34: AMAZONAS | D34: CHACHAPOYAS | E34: LEVANTO | F34: 78 | G34: 2681 | H34: -6.3078 | I34: -77.8992 | J34: 781 | K34: 10364.66473 | L34: LEVANTO | M34: =ABS($I34-(IFERROR(VLOOKUP((INDEX($AC$6:$AC$850,MATCH(MIN(ABS($AC$6:$AC$850-$H34)),ABS($AC$6:$AC$850-$H34),0))),$AC$6:$AD$850,2,FALSE),"")))*111.32 -> 321.7741707 | N34: 1.472471191 | O34: 31 | P34: 41 | Q34: 10111 | X34: APURIMAC | Y34: ABANCAY | AC34: -3.91755 | AD34: -80.8903
A35: 30 | B35: 10112 | C35: AMAZONAS | D35: CHACHAPOYAS | E35: MAGDALENA | F35: 135 | G35: 1892 | H35: -6.3731 | I35: -77.9017 | J35: 903 | K35: 10371.7886 | L35: MAGDALENA | M35: =ABS($I35-(IFERROR(VLOOKUP((INDEX($AC$6:$AC$850,MATCH(MIN(ABS($AC$6:$AC$850-$H35)),ABS($AC$6:$AC$850-$H35),0))),$AC$6:$AD$850,2,FALSE),"")))*111.32 -> 302.7662807 | N35: 0.2604651163 | O35: 30 | P35: 41 | Q35: 10112 | X35: APURIMAC | Y35: ANDAHUAYLAS | AC35: -3.944283333 | AD35: -80.9354
A36: 31 | B36: 10113 | C36: AMAZONAS | D36: CHACHAPOYAS | E36: MARISCAL CASTILLA | F36: 84 | G36: 2210 | H36: -6.5944 | I36: -77.8086 | J36: 1609 | K36: 10397.79703 | L36: MARISCAL CASTILLA | M36: =ABS($I36-(IFERROR(VLOOKUP((INDEX($AC$6:$AC$850,MATCH(MIN(ABS($AC$6:$AC$850-$H36)),ABS($AC$6:$AC$850-$H36),0))),$AC$6:$AD$850,2,FALSE),"")))*111.32 -> 266.884134 | N36: 0.5593536358 | O36: 31 | P36: 41 | Q36: 10113 | X36: APURIMAC | Y36: ANTABAMBA | AC36: -3.958333333 | AD36: -80.9621
A37: 32 | B37: 10114 | C37: AMAZONAS | D37: CHACHAPOYAS | E37: MOLINOPAMPA | F37: 334 | G37: 2405 | H37: -6.2092 | I37: -77.6692 | J37: 2218 | K37: 10358.09781 | L37: MOLINOPAMPA | M37: =ABS($I37-(IFERROR(VLOOKUP((INDEX($AC$6:$AC$850,MATCH(MIN(ABS($AC$6:$AC$850-$H37)),ABS($AC$6:$AC$850-$H37),0))),$AC$6:$AD$850,2,FALSE),"")))*111.32 -> 358.2240493 | O37: 31 | P37: 41 | Q37: 10114 | X37: APURIMAC | Y37: AYMARAES | AC37: -3.970483333 | AD37: -80.969
A38: 33 | B38: 10115 | C38: AMAZONAS | D38: CHACHAPOYAS | E38: MONTEVIDEO | F38: 119 | G38: 2421 | H38: -6.6181 | I38: -77.8022 | J38: 465 | K38: 10400.51685 | L38: MONTEVIDEO | M38: =ABS($I38-(IFERROR(VLOOKUP((INDEX($AC$6:$AC$850,MATCH(MIN(ABS($AC$6:$AC$850-$H38)),ABS($AC$6:$AC$850-$H38),0))),$AC$6:$AD$850,2,FALSE),"")))*111.32 -> 261.390492 | N38: 0.8602150538 | O38: 31 | P38: 41 | Q38: 10115 | X38: APURIMAC | Y38: CHINCHEROS | AC38: -3.98525 | AD38: -80.98886667
A39: 34 | B39: 10116 | C39: AMAZONAS | D39: CHACHAPOYAS | E39: OLLEROS | F39: 125 | G39: 3053 | H39: -6.0239 | I39: -77.6764 | J39: 444 | K39: 10337.62764 | L39: OLLEROS | M39: =ABS($I39-(IFERROR(VLOOKUP((INDEX($AC$6:$AC$850,MATCH(MIN(ABS($AC$6:$AC$850-$H39)),ABS($AC$6:$AC$850-$H39),0))),$AC$6:$AD$850,2,FALSE),"")))*111.32 -> 384.7311967 | N39: 0.4504504505 | O39: 31 | P39: 41 | Q39: 10116 | X39: APURIMAC | Y39: COTABAMBAS | AC39: -4.04275 | AD39: -81.01118333
A40: 35 | B40: 10117 | C40: AMAZONAS | D40: CHACHAPOYAS | E40: QUINJALCA | F40: 92 | G40: 3151 | H40: -6.0914 | I40: -77.6786 | J40: 770 | K40: 10344.9943 | L40: QUINJALCA | M40: =ABS($I40-(IFERROR(VLOOKUP((INDEX($AC$6:$AC$850,MATCH(MIN(ABS($AC$6:$AC$850-$H40)),ABS($AC$6:$AC$850-$H40),0))),$AC$6:$AD$850,2,FALSE),"")))*111.32 -> 379.077996 | N40: 3.896103896 | O40: 31 | P40: 41 | Q40: 10117 | X40: APURIMAC | Y40: GRAU | AC40: -4.0954 | AD40: -81.0498
A41: 36 | B41: 10118 | C41: AMAZONAS | D41: CHACHAPOYAS | E41: SAN FRANCISCO DE DAGUAS | F41: 47 | G41: 2254 | H41: -6.2292 | I41: -77.74 | J41: 329 | K41: 10358.97552 | L41: SAN FRANCISCO DE DAGUAS | M41: =ABS($I41-(IFERROR(VLOOKUP((INDEX($AC$6:$AC$850,MATCH(MIN(ABS($AC$6:$AC$850-$H41)),ABS($AC$6:$AC$850-$H41),0))),$AC$6:$AD$850,2,FALSE),"")))*111.32 -> 345.654166 | N41: 0.1519756839 | O41: 31 | P41: 41 | Q41: 10118 | X41: AREQUIPA | Y41: AREQUIPA | AC41: -4.120183333 | AD41: -81.0895
A42: 37 | B42: 10119 | C42: AMAZONAS | D42: CHACHAPOYAS | E42: SAN ISIDRO DE MAINO | F42: 102 | G42: 2339 | H42: -6.3372 | I42: -77.8806 | J42: 576 | K42: 10368.2344 | L42: SAN ISIDRO DE MAINO | M42: =ABS($I42-(IFERROR(VLOOKUP((INDEX($AC$6:$AC$850,MATCH(MIN(ABS($AC$6:$AC$850-$H42)),ABS($AC$6:$AC$850-$H42),0))),$AC$6:$AD$850,2,FALSE),"")))*111.32 -> 313.5197927 | N42: 0.8680555556 | O42: 31 | P42: 41 | Q42: 10119 | X42: AREQUIPA | Y42: CAMANA | AC42: -4.145216667 | AD42: -81.11028333
A43: 38 | B43: 10120 | C43: AMAZONAS | D43: CHACHAPOYAS | E43: SOLOCO | F43: 84 | G43: 2387 | H43: -6.2606 | I43: -77.7442 | J43: 1234 | K43: 10362.34414 | L43: SOLOCO | M43: =ABS($I43-(IFERROR(VLOOKUP((INDEX($AC$6:$AC$850,MATCH(MIN(ABS($AC$6:$AC$850-$H43)),ABS($AC$6:$AC$850-$H43),0))),$AC$6:$AD$850,2,FALSE),"")))*111.32 -> 341.9601973 | O43: 31 | P43: 41 | Q43: 10120 | X43: AREQUIPA | Y43: CARAVELI | AC43: -4.178466667 | AD43: -81.1312
A44: 39 | B44: 10121 | C44: AMAZONAS | D44: CHACHAPOYAS | E44: SONCHE | F44: 113 | G44: 2089 | H44: -6.2189 | I44: -77.7753 | J44: 283 | K44: 10357.19031 | L44: SONCHE | M44: =ABS($I44-(IFERROR(VLOOKUP((INDEX($AC$6:$AC$850,MATCH(MIN(ABS($AC$6:$AC$850-$H44)),ABS($AC$6:$AC$850-$H44),0))),$AC$6:$AD$850,2,FALSE),"")))*111.32 -> 346.4129973 | N44: 7.067137809 | O44: 31 | P44: 41 | Q44: 10121 | X44: AREQUIPA | Y44: CASTILLA | AC44: -4.179066667 | AD44: -81.14558333
A45: 40 | B45: 10402 | C45: AMAZONAS | D45: CONDORCANQUI | E45: EL CENEPA | F45: 5458 | G45: 253 | H45: -4.4556 | I45: -78.1589 | J45: 13358 | K45: 10156.53319 | L45: EL CENEPA | M45: =ABS($I45-(IFERROR(VLOOKUP((INDEX($AC$6:$AC$850,MATCH(MIN(ABS($AC$6:$AC$850-$H45)),ABS($AC$6:$AC$850-$H45),0))),$AC$6:$AD$850,2,FALSE),"")))*111.32 -> 349.8973133 | N45: 0.1122922593 | O45: 34 | P45: 43 | Q45: 10402 | X45: AREQUIPA | Y45: CAYLLOMA | AC45: -4.210583333 | AD45: -81.17181667
A46: 41 | B46: 10401 | C46: AMAZONAS | D46: CONDORCANQUI | E46: NIEVA | F46: 4482 | G46: 189 | H46: -4.5922 | I46: -77.8644 | J46: 19939 | K46: 10176.99918 | L46: NIEVA | M46: =ABS($I46-(IFERROR(VLOOKUP((INDEX($AC$6:$AC$850,MATCH(MIN(ABS($AC$6:$AC$850-$H46)),ABS($AC$6:$AC$850-$H46),0))),$AC$6:$AD$850,2,FALSE),"")))*111.32 -> 381.1800887 | N46: 0.1103365264 | O46: 34 | P46: 43 | Q46: 10401 | X46: AREQUIPA | Y46: CONDESUYOS | AC46: -4.220383333 | AD46: -81.18086667
A47: 42 | B47: 10403 | C47: AMAZONAS | D47: CONDORCANQUI | E47: RIO SANTIAGO | F47: 8035 | G47: 190 | H47: -4.0158 | I47: -77.7608 | J47: 18978 | K47: 10115.71615 | L47: RIO SANTIAGO | M47: =ABS($I47-(IFERROR(VLOOKUP((INDEX($AC$6:$AC$850,MATCH(MIN(ABS($AC$6:$AC$850-$H47)),ABS($AC$6:$AC$850-$H47),0))),$AC$6:$AD$850,2,FALSE),"")))*111.32 -> 361.8326727 | N47: 0.002107703657 | O47: 34 | P47: 43 | Q47: 10403 | X47: AREQUIPA | Y47: ISLAY | AC47: -4.22655 | AD47: -81.19451667
A48: 43 | B48: 10502 | C48: AMAZONAS | D48: LUYA | E48: CAMPORREDONDO | F48: 376 | G48: 1748 | H48: -6.2133 | I48: -78.32 | J48: 7688 | K48: 10346.65722 | L48: CAMPORREDONDO | M48: =ABS($I48-(IFERROR(VLOOKUP((INDEX($AC$6:$AC$850,MATCH(MIN(ABS($AC$6:$AC$850-$H48)),ABS($AC$6:$AC$850-$H48),0))),$AC$6:$AD$850,2,FALSE),"")))*111.32 -> 285.7769933 | N48: 0.1703954214 | O48: 30 | P48: 41 | Q48: 10502 | X48: AREQUIPA | Y48: LA UNION | AC48: -4.231816667 | AD48: -81.20813333
A49: 44 | B49: 10503 | C49: AMAZONAS | D49: LUYA | E49: COCABAMBA | F49: 356 | G49: 2273 | H49: -6.6142 | I49: -78.005 | J49: 1948 | K49: 10396.37765 | L49: COCABAMBA | M49: =ABS($I49-(IFERROR(VLOOKUP((INDEX($AC$6:$AC$850,MATCH(MIN(ABS($AC$6:$AC$850-$H49)),ABS($AC$6:$AC$850-$H49),0))),$AC$6:$AD$850,2,FALSE),"")))*111.32 -> 238.814796 | N49: 0.1283367556 | O49: 31 | P49: 41 | Q49: 10503 | X49: AYACUCHO | Y49: CANGALLO | AC49: -4.240716667 | AD49: -81.21816667
A50: 45 | B50: 10504 | C50: AMAZONAS | D50: LUYA | E50: COLCAMAR | F50: 107 | G50: 2355 | H50: -6.2994 | I50: -77.9731 | J50: 1789 | K50: 10362.38844 | L50: COLCAMAR | M50: =ABS($I50-(IFERROR(VLOOKUP((INDEX($AC$6:$AC$850,MATCH(MIN(ABS($AC$6:$AC$850-$H50)),ABS($AC$6:$AC$850-$H50),0))),$AC$6:$AD$850,2,FALSE),"")))*111.32 -> 313.5476227 | O50: 31 | P50: 41 | Q50: 10504 | X50: AYACUCHO | Y50: HUAMANGA | AC50: -4.249616667 | AD50: -81.22731667
A51: 46 | B51: 10505 | C51: AMAZONAS | D51: LUYA | E51: CONILA | F51: 256 | G51: 2767 | H51: -6.1592 | I51: -78.1419 | J51: 1847 | K51: 10343.9199 | L51: CONILA | M51: =ABS($I51-(IFERROR(VLOOKUP((INDEX($AC$6:$AC$850,MATCH(MIN(ABS($AC$6:$AC$850-$H51)),ABS($AC$6:$AC$850-$H51),0))),$AC$6:$AD$850,2,FALSE),"")))*111.32 -> 314.7220487 | N51: 0.6468327017 | O51: 31 | P51: 41 | Q51: 10505 | X51: AYACUCHO | Y51: HUANCA SANCOS | AC51: -4.25135 | AD51: -81.23643333
A52: 47 | B52: 10506 | C52: AMAZONAS | D52: LUYA | E52: INGUILPATA | F52: 118 | G52: 2380 | H52: -6.2394 | I52: -77.9539 | J52: 434 | K52: 10356.1513 | L52: INGUILPATA | M52: =ABS($I52-(IFERROR(VLOOKUP((INDEX($AC$6:$AC$850,MATCH(MIN(ABS($AC$6:$AC$850-$H52)),ABS($AC$6:$AC$850-$H52),0))),$AC$6:$AD$850,2,FALSE),"")))*111.32 -> 321.842818 | N52: 1.497695853 | O52: 31 | P52: 41 | Q52: 10506 | X52: AYACUCHO | Y52: HUANTA | AC52: -4.267433333 | AD52: -81.24835
A53: 48 | B53: 10501 | C53: AMAZONAS | D53: LUYA | E53: LAMUD | F53: 69 | G53: 2328 | H53: -6.1392 | I53: -77.9522 | J53: 2326 | K53: 10345.18023 | L53: LAMUD | M53: =ABS($I53-(IFERROR(VLOOKUP((INDEX($AC$6:$AC$850,MATCH(MIN(ABS($AC$6:$AC$850-$H53)),ABS($AC$6:$AC$850-$H53),0))),$AC$6:$AD$850,2,FALSE),"")))*111.32 -> 340.6967153 | N53: 0.2411435942 | O53: 31 | P53: 41 | Q53: 10501 | X53: AYACUCHO | Y53: LA MAR | AC53: -4.287133333 | AD53: -81.25478333
A54: 49 | B54: 10507 | C54: AMAZONAS | D54: LUYA | E54: LONGUITA | F54: 58 | G54: 2799 | H54: -6.4136 | I54: -77.9683 | J54: 847 | K54: 10375.0166 | L54: LONGUITA | M54: =ABS($I54-(IFERROR(VLOOKUP((INDEX($AC$6:$AC$850,MATCH(MIN(ABS($AC$6:$AC$850-$H54)),ABS($AC$6:$AC$850-$H54),0))),$AC$6:$AD$850,2,FALSE),"")))*111.32 -> 287.3373287 | N54: 2.644628099 | O54: 31 | P54: 41 | Q54: 10507 | X54: AYACUCHO | Y54: LUCANAS | AC54: -4.303266667 | AD54: -81.25945
A55: 50 | B55: 10508 | C55: AMAZONAS | D55: LUYA | E55: LONYA CHICO | F55: 84 | G55: 2329 | H55: -6.2297 | I55: -77.955 | J55: 796 | K55: 10355.06605 | L55: LONYA CHICO | M55: =ABS($I55-(IFERROR(VLOOKUP((INDEX($AC$6:$AC$850,MATCH(MIN(ABS($AC$6:$AC$850-$H55)),ABS($AC$6:$AC$850-$H55),0))),$AC$6:$AD$850,2,FALSE),"")))*111.32 -> 321.720366 | N55: 0.08417085427 | O55: 31 | P55: 41 | Q55: 10508 | X55: AYACUCHO | Y55: PARINACOCHAS | AC55: -4.320416667 | AD55: -81.257
A56: 51 | B56: 10509 | C56: AMAZONAS | D56: LUYA | E56: LUYA | F56: 91 | G56: 2359 | H56: -6.1642 | I56: -77.9442 | J56: 4004 | K56: 10348.07194 | L56: LUYA | M56: =ABS($I56-(IFERROR(VLOOKUP((INDEX($AC$6:$AC$850,MATCH(MIN(ABS($AC$6:$AC$850-$H56)),ABS($AC$6:$AC$850-$H56),0))),$AC$6:$AD$850,2,FALSE),"")))*111.32 -> 336.7300127 | N56: 0.09490509491 | O56: 31 | P56: 41 | Q56: 10509 | X56: AYACUCHO | Y56: PAUCAR DEL SARA SARA | AC56: -4.34115 | AD56: -81.25271667
A57: 52 | B57: 10510 | C57: AMAZONAS | D57: LUYA | E57: LUYA VIEJO | F57: 74 | G57: 2924 | H57: -6.1275 | I57: -78.085 | J57: 394 | K57: 10341.47071 | L57: LUYA VIEJO | M57: =ABS($I57-(IFERROR(VLOOKUP((INDEX($AC$6:$AC$850,MATCH(MIN(ABS($AC$6:$AC$850-$H57)),ABS($AC$6:$AC$850-$H57),0))),$AC$6:$AD$850,2,FALSE),"")))*111.32 -> 325.9134193 | N57: 9.441624365 | O57: 31 | P57: 41 | Q57: 10510 | X57: AYACUCHO | Y57: SUCRE | AC57: -4.368166667 | AD57: -81.25031667
A58: 53 | B58: 10511 | C58: AMAZONAS | D58: LUYA | E58: MARIA | F58: 80 | G58: 2757 | H58: -6.4289 | I58: -77.9608 | J58: 738 | K58: 10376.83372 | L58: MARIA | M58: =ABS($I58-(IFERROR(VLOOKUP((INDEX($AC$6:$AC$850,MATCH(MIN(ABS($AC$6:$AC$850-$H58)),ABS($AC$6:$AC$850-$H58),0))),$AC$6:$AD$850,2,FALSE),"")))*111.32 -> 288.1722287 | N58: 2.16802168 | O58: 31 | P58: 41 | Q58: 10511 | X58: AYACUCHO | Y58: VICTOR FAJARDO | AC58: -4.389766667 | AD58: -81.25238333
A59: 54 | B59: 10512 | C59: AMAZONAS | D59: LUYA | E59: OCALLI | F59: 177 | G59: 1757 | H59: -6.2353 | I59: -78.2664 | J59: 3962 | K59: 10350.03489 | L59: OCALLI | M59: =ABS($I59-(IFERROR(VLOOKUP((INDEX($AC$6:$AC$850,MATCH(MIN(ABS($AC$6:$AC$850-$H59)),ABS($AC$6:$AC$850-$H59),0))),$AC$6:$AD$850,2,FALSE),"")))*111.32 -> 287.055318 | O59: 30 | P59: 41 | Q59: 10512 | X59: AYACUCHO | Y59: VILCAS HUAMAN | AC59: -4.421183333 | AD59: -81.26451667
A60: 55 | B60: 10513 | C60: AMAZONAS | D60: LUYA | E60: OCUMAL | F60: 236 | G60: 1898 | H60: -6.2825 | I60: -78.2108 | J60: 3599 | K60: 10356.21983 | L60: OCUMAL | M60: =ABS($I60-(IFERROR(VLOOKUP((INDEX($AC$6:$AC$850,MATCH(MIN(ABS($AC$6:$AC$850-$H60)),ABS($AC$6:$AC$850-$H60),0))),$AC$6:$AD$850,2,FALSE),"")))*111.32 -> 290.0182853 | O60: 30 | P60: 41 | Q60: 10513 | X60: CAJAMARCA | Y60: CAJABAMBA | AC60: -4.4499 | AD60: -81.2757
A61: 56 | B61: 10514 | C61: AMAZONAS | D61: LUYA | E61: PISUQUIA | F61: 307 | G61: 2049 | H61: -6.4533 | I61: -78.0919 | J61: 4862 | K61: 10377.12876 | L61: PISUQUIA | M61: =ABS($I61-(IFERROR(VLOOKUP((INDEX($AC$6:$AC$850,MATCH(MIN(ABS($AC$6:$AC$850-$H61)),ABS($AC$6:$AC$850-$H61),0))),$AC$6:$AD$850,2,FALSE),"")))*111.32 -> 263.5760747 | O61: 31 | P61: 41 | Q61: 10514 | X61: CAJAMARCA | Y61: CAJAMARCA | AC61: -4.4606 | AD61: -81.29213333
A62: 57 | B62: 10515 | C62: AMAZONAS | D62: LUYA | E62: PROVIDENCIA | F62: 71 | G62: 1784 | H62: -6.2972 | I62: -78.2408 | J62: 1339 | K62: 10357.29514 | L62: PROVIDENCIA | M62: =ABS($I62-(IFERROR(VLOOKUP((INDEX($AC$6:$AC$850,MATCH(MIN(ABS($AC$6:$AC$850-$H62)),ABS($AC$6:$AC$850-$H62),0))),$AC$6:$AD$850,2,FALSE),"")))*111.32 -> 283.7472587 | O62: 30 | P62: 41 | Q62: 10515 | X62: CAJAMARCA | Y62: CELENDIN | AC62: -4.456916667 | AD62: -81.30206667
A63: 58 | B63: 10516 | C63: AMAZONAS | D63: LUYA | E63: SAN CRISTOBAL | F63: 33 | G63: 2636 | H63: -6.1017 | I63: -77.9597 | J63: 505 | K63: 10340.9252 | L63: SAN CRISTOBAL | M63: =ABS($I63-(IFERROR(VLOOKUP((INDEX($AC$6:$AC$850,MATCH(MIN(ABS($AC$6:$AC$850-$H63)),ABS($AC$6:$AC$850-$H63),0))),$AC$6:$AD$850,2,FALSE),"")))*111.32 -> 343.9806553 | O63: 31 | P63: 41 | Q63: 10516 | X63: CAJAMARCA | Y63: CHOTA | AC63: -4.468616667 | AD63: -81.30218333
A64: 59 | B64: 10517 | C64: AMAZONAS | D64: LUYA | E64: SAN FRANCISCO DEL YESO | F64: 114 | G64: 2404 | H64: -6.6469 | I64: -77.8117 | J64: 699 | K64: 10403.50389 | L64: SAN FRANCISCO DEL YESO | M64: =ABS($I64-(IFERROR(VLOOKUP((INDEX($AC$6:$AC$850,MATCH(MIN(ABS($AC$6:$AC$850-$H64)),ABS($AC$6:$AC$850-$H64),0))),$AC$6:$AD$850,2,FALSE),"")))*111.32 -> 255.6315373 | O64: 31 | P64: 41 | Q64: 10517 | X64: CAJAMARCA | Y64: CONTUMAZA | AC64: -4.479416667 | AD64: -81.30686667
A65: 60 | B65: 10518 | C65: AMAZONAS | D65: LUYA | E65: SAN JERONIMO | F65: 215 | G65: 2498 | H65: -6.0597 | I65: -77.9744 | J65: 547 | K65: 10336.04409 | L65: SAN JERONIMO | M65: =ABS($I65-(IFERROR(VLOOKUP((INDEX($AC$6:$AC$850,MATCH(MIN(ABS($AC$6:$AC$850-$H65)),ABS($AC$6:$AC$850-$H65),0))),$AC$6:$AD$850,2,FALSE),"")))*111.32 -> 349.23867 | O65: 31 | P65: 41 | Q65: 10518 | X65: CAJAMARCA | Y65: CUTERVO | AC65: -4.49025 | AD65: -81.30335
A66: 61 | B66: 10519 | C66: AMAZONAS | D66: LUYA | E66: SAN JUAN DE LOPECANCHA | F66: 88 | G66: 2164 | H66: -6.4964 | I66: -77.8619 | J66: 399 | K66: 10386.05722 | L66: SAN JUAN DE LOPECANCHA | M66: =ABS($I66-(IFERROR(VLOOKUP((INDEX($AC$6:$AC$850,MATCH(MIN(ABS($AC$6:$AC$850-$H66)),ABS($AC$6:$AC$850-$H66),0))),$AC$6:$AD$850,2,FALSE),"")))*111.32 -> 282.647046 | N66: 1.253132832 | O66: 31 | P66: 41 | Q66: 10519 | X66: CAJAMARCA | Y66: HUALGAYOC | AC66: -4.506533333 | AD66: -81.29905
A67: 62 | B67: 10520 | C67: AMAZONAS | D67: LUYA | E67: SANTA CATALINA | F67: 126 | G67: 2574 | H67: -6.1136 | I67: -78.0608 | J67: 2206 | K67: 10340.38454 | L67: SANTA CATALINA | M67: =ABS($I67-(IFERROR(VLOOKUP((INDEX($AC$6:$AC$850,MATCH(MIN(ABS($AC$6:$AC$850-$H67)),ABS($AC$6:$AC$850-$H67),0))),$AC$6:$AD$850,2,FALSE),"")))*111.32 -> 332.7262033 | O67: 31 | P67: 41 | Q67: 10520 | X67: CAJAMARCA | Y67: JAEN | AC67: -4.518333333 | AD67: -81.29106667
A68: 63 | B68: 10521 | C68: AMAZONAS | D68: LUYA | E68: SANTO TOMAS | F68: 85 | G68: 2837 | H68: -6.5725 | I68: -77.8658 | J68: 2865 | K68: 10394.34113 | L68: SANTO TOMAS | M68: =ABS($I68-(IFERROR(VLOOKUP((INDEX($AC$6:$AC$850,MATCH(MIN(ABS($AC$6:$AC$850-$H68)),ABS($AC$6:$AC$850-$H68),0))),$AC$6:$AD$850,2,FALSE),"")))*111.32 -> 266.5204887 | O68: 31 | P68: 41 | Q68: 10521 | X68: CAJAMARCA | Y68: SAN IGNACIO | AC68: -4.537316667 | AD68: -81.28313333
A69: 64 | B69: 10522 | C69: AMAZONAS | D69: LUYA | E69: TINGO | F69: 103 | G69: 1800 | H69: -6.3797 | I69: -77.9058 | J69: 1385 | K69: 10372.43806 | L69: TINGO | M69: =ABS($I69-(IFERROR(VLOOKUP((INDEX($AC$6:$AC$850,MATCH(MIN(ABS($AC$6:$AC$850-$H69)),ABS($AC$6:$AC$850-$H69),0))),$AC$6:$AD$850,2,FALSE),"")))*111.32 -> 302.3098687 | N69: 0.8664259928 | O69: 30 | P69: 41 | Q69: 10522 | X69: CAJAMARCA | Y69: SAN MARCOS | AC69: -4.5572 | AD69: -81.27885
A70: 65 | B70: 10523 | C70: AMAZONAS | D70: LUYA | E70: TRITA | F70: 13 | G70: 2888 | H70: -6.1519 | I70: -77.9808 | J70: 1461 | K70: 10346.05088 | L70: TRITA | M70: =ABS($I70-(IFERROR(VLOOKUP((INDEX($AC$6:$AC$850,MATCH(MIN(ABS($AC$6:$AC$850-$H70)),ABS($AC$6:$AC$850-$H70),0))),$AC$6:$AD$850,2,FALSE),"")))*111.32 -> 332.6557007 | N70: 0.3285420945 | O70: 31 | P70: 41 | Q70: 10523 | X70: CAJAMARCA | Y70: SAN MIGUEL | AC70: -4.57165 | AD70: -81.27448333
A71: 66 | B71: 10602 | C71: AMAZONAS | D71: RODRIGUEZ DE MENDOZA | E71: CHIRIMOTO | F71: 153 | G71: 1663 | H71: -6.5231 | I71: -77.4425 | J71: 2971 | K71: =SQRT(POWER((H71-$I$3)*111.321,2)+POWER((I71-$J$3)*111.321,2)) -> 10396.793 | L71: CHIRIMOTO | M71: =ABS($I71-(IFERROR(VLOOKUP((INDEX($AC$6:$AC$850,MATCH(MIN(ABS($AC$6:$AC$850-$H71)),ABS($AC$6:$AC$850-$H71),0))),$AC$6:$AD$850,2,FALSE),"")))*111.32 -> 321.4179467 | O71: 30 | P71: 41 | Q71: 10602 | X71: CAJAMARCA | Y71: SAN PABLO | AC71: -4.57615 | AD71: -81.28
A72: =+A71+1 -> 67 | B72: 10603 | C72: AMAZONAS | D72: RODRIGUEZ DE MENDOZA | E72: COCHAMAL | F72: 199 | G72: 1720 | H72: -6.4075 | I72: -77.5853 | J72: 642 | K72: 10381.42697 | L72: COCHAMAL | M72: =ABS($I72-(IFERROR(VLOOKUP((INDEX($AC$6:$AC$850,MATCH(MIN(ABS($AC$6:$AC$850-$H72)),ABS($AC$6:$AC$850-$H72),0))),$AC$6:$AD$850,2,FALSE),"")))*111.32 -> 329.9728887 | N72: 10.90342679 | O72: 30 | P72: 41 | Q72: 10603 | X72: CAJAMARCA | Y72: SANTA CRUZ | AC72: -4.5761 | AD72: -81.28725
A73: 68 | B73: 10604 | C73: AMAZONAS | D73: RODRIGUEZ DE MENDOZA | E73: HUAMBO | F73: 100 | G73: 1731 | H73: -6.4311 | I73: -77.5367 | J73: 2439 | K73: 10384.92717 | L73: HUAMBO | M73: =ABS($I73-(IFERROR(VLOOKUP((INDEX($AC$6:$AC$850,MATCH(MIN(ABS($AC$6:$AC$850-$H73)),ABS($AC$6:$AC$850-$H73),0))),$AC$6:$AD$850,2,FALSE),"")))*111.32 -> 335.3830407 | N73: 3.89503895 | O73: 30 | P73: 41 | Q73: 10604 | X73: CALLAO | Y73: CALLAO | AC73: -4.591 | AD73: -81.28858333
A74: 69 | B74: 10605 | C74: AMAZONAS | D74: RODRIGUEZ DE MENDOZA | E74: LIMABAMBA | F74: 318 | G74: 1677 | H74: -6.4981 | I74: -77.4989 | J74: 2290 | K74: 10392.98854 | L74: LIMABAMBA | M74: =ABS($I74-(IFERROR(VLOOKUP((INDEX($AC$6:$AC$850,MATCH(MIN(ABS($AC$6:$AC$850-$H74)),ABS($AC$6:$AC$850-$H74),0))),$AC$6:$AD$850,2,FALSE),"")))*111.32 -> 323.056206 | N74: 0.4366812227 | O74: 30 | P74: 41 | Q74: 10605 | X74: CUSCO | Y74: ACOMAYO | AC74: -4.59825 | AD74: -81.2937
A75: 70 | B75: 10606 | C75: AMAZONAS | D75: RODRIGUEZ DE MENDOZA | E75: LONGAR | F75: 66 | G75: 1623 | H75: -6.3858 | I75: -77.5467 | J75: 1594 | K75: 10379.76885 | L75: LONGAR | M75: =ABS($I75-(IFERROR(VLOOKUP((INDEX($AC$6:$AC$850,MATCH(MIN(ABS($AC$6:$AC$850-$H75)),ABS($AC$6:$AC$850-$H75),0))),$AC$6:$AD$850,2,FALSE),"")))*111.32 -> 342.2848807 | N75: 3.212045169 | O75: 30 | P75: 41 | Q75: 10606 | X75: CUSCO | Y75: ANTA | AC75: -4.603316667 | AD75: -81.29431667
A76: 71 | B76: 10607 | C76: AMAZONAS | D76: RODRIGUEZ DE MENDOZA | E76: MARISCAL BENAVIDES | F76: 176 | G76: 1592 | H76: -6.3861 | I76: -77.5044 | J76: 1498 | K76: 10380.59625 | L76: MARISCAL BENAVIDES | M76: =ABS($I76-(IFERROR(VLOOKUP((INDEX($AC$6:$AC$850,MATCH(MIN(ABS($AC$6:$AC$850-$H76)),ABS($AC$6:$AC$850-$H76),0))),$AC$6:$AD$850,2,FALSE),"")))*111.32 -> 346.9937167 | N76: 0.7343124166 | O76: 30 | P76: 41 | Q76: 10607 | X76: CUSCO | Y76: CALCA | AC76: -4.608916667 | AD76: -81.29551667
A77: 72 | B77: 10608 | C77: AMAZONAS | D77: RODRIGUEZ DE MENDOZA | E77: MILPUC | F77: 27 | G77: 1665 | H77: -6.5 | I77: -77.4364 | J77: 399 | K77: 10394.37368 | L77: MILPUC | M77: =ABS($I77-(IFERROR(VLOOKUP((INDEX($AC$6:$AC$850,MATCH(MIN(ABS($AC$6:$AC$850-$H77)),ABS($AC$6:$AC$850-$H77),0))),$AC$6:$AD$850,2,FALSE),"")))*111.32 -> 330.013706 | N77: 5.012531328 | O77: 30 | P77: 41 | Q77: 10608 | X77: CUSCO | Y77: CANAS | AC77: -4.618483333 | AD77: -81.29505
A78: 73 | B78: 10609 | C78: AMAZONAS | D78: RODRIGUEZ DE MENDOZA | E78: OMIA | F78: 175 | G78: 1368 | H78: -6.4678 | I78: -77.3956 | J78: 10273 | K78: 10391.61182 | L78: OMIA | M78: =ABS($I78-(IFERROR(VLOOKUP((INDEX($AC$6:$AC$850,MATCH(MIN(ABS($AC$6:$AC$850-$H78)),ABS($AC$6:$AC$850-$H78),0))),$AC$6:$AD$850,2,FALSE),"")))*111.32 -> 341.0881907 | N78: 0.0009734254843 | O78: 33 | P78: 41 | Q78: 10609 | X78: CUSCO | Y78: CANCHIS | AC78: -4.624633333 | AD78: -81.29731667
A79: 74 | B79: 10601 | C79: AMAZONAS | D79: RODRIGUEZ DE MENDOZA | E79: SAN NICOLAS | F79: 206 | G79: 1616 | H79: -6.3953 | I79: -77.4822 | J79: 6629 | K79: 10382.02344 | L79: SAN NICOLAS | M79: =ABS($I79-(IFERROR(VLOOKUP((INDEX($AC$6:$AC$850,MATCH(MIN(ABS($AC$6:$AC$850-$H79)),ABS($AC$6:$AC$850-$H79),0))),$AC$6:$AD$850,2,FALSE),"")))*111.32 -> 341.4499807 | N79: 0.6637501886 | O79: 30 | P79: 41 | Q79: 10601 | X79: CUSCO | Y79: CHUMBIVILCAS | AC79: -4.630816667 | AD79: -81.2985
A80: 75 | B80: 10610 | C80: AMAZONAS | D80: RODRIGUEZ DE MENDOZA | E80: SANTA ROSA | F80: 34 | G80: 1770 | H80: -6.4536 | I80: -77.4553 | J80: 525 | K80: 10388.92664 | L80: SANTA ROSA | M80: =ABS($I80-(IFERROR(VLOOKUP((INDEX($AC$6:$AC$850,MATCH(MIN(ABS($AC$6:$AC$850-$H80)),ABS($AC$6:$AC$850-$H80),0))),$AC$6:$AD$850,2,FALSE),"")))*111.32 -> 334.4423867 | N80: 4.761904762 | O80: 30 | P80: 41 | Q80: 10610 | X80: CUSCO | Y80: CUSCO | AC80: -4.6353 | AD80: -81.29845
A81: 76 | B81: 10611 | C81: AMAZONAS | D81: RODRIGUEZ DE MENDOZA | E81: TOTORA | F81: 6 | G81: 1674 | H81: -6.4931 | I81: -77.4717 | J81: 285 | K81: 10392.95149 | L81: TOTORA | M81: =ABS($I81-(IFERROR(VLOOKUP((INDEX($AC$6:$AC$850,MATCH(MIN(ABS($AC$6:$AC$850-$H81)),ABS($AC$6:$AC$850-$H81),0))),$AC$6:$AD$850,2,FALSE),"")))*111.32 -> 326.08411 | O81: 30 | P81: 41 | Q81: 10611 | X81: CUSCO | Y81: ESPINAR | AC81: -4.64145 | AD81: -81.3026
A82: 77 | B82: 10612 | C82: AMAZONAS | D82: RODRIGUEZ DE MENDOZA | E82: VISTA ALEGRE | F82: 899 | G82: 1504 | H82: -6.1508 | I82: -77.3039 | J82: 4729 | K82: 10358.58335 | L82: VISTA ALEGRE | M82: =ABS($I82-(IFERROR(VLOOKUP((INDEX($AC$6:$AC$850,MATCH(MIN(ABS($AC$6:$AC$850-$H82)),ABS($AC$6:$AC$850-$H82),0))),$AC$6:$AD$850,2,FALSE),"")))*111.32 -> 408.0082087 | N82: 0.08469020935 | O82: 30 | P82: 41 | Q82: 10612 | X82: CUSCO | Y82: LA CONVENCION | AC82: -4.647616667 | AD82: -81.30555
A83: 78 | B83: 10701 | C83: AMAZONAS | D83: UTCUBAMBA | E83: BAGUA GRANDE | F83: 747 | G83: 444 | H83: -5.7547 | I83: -78.4428 | J83: 59466 | K83: 10294.07337 | L83: BAGUA GRANDE | M83: =ABS($I83-(IFERROR(VLOOKUP((INDEX($AC$6:$AC$850,MATCH(MIN(ABS($AC$6:$AC$850-$H83)),ABS($AC$6:$AC$850-$H83),0))),$AC$6:$AD$850,2,FALSE),"")))*111.32 -> 270.6003667 | N83: 0.2949181045 | O83: 34 | P83: 43 | Q83: 10701 | X83: CUSCO | Y83: PARURO | AC83: -4.6538 | AD83: -81.305
A84: 79 | B84: 10702 | C84: AMAZONAS | D84: UTCUBAMBA | E84: CAJARURO | F84: 1746 | G84: 469 | H84: -5.7364 | I84: -78.4267 | J84: 23574 | K84: 10292.34986 | L84: CAJARURO | M84: =ABS($I84-(IFERROR(VLOOKUP((INDEX($AC$6:$AC$850,MATCH(MIN(ABS($AC$6:$AC$850-$H84)),ABS($AC$6:$AC$850-$H84),0))),$AC$6:$AD$850,2,FALSE),"")))*111.32 -> 270.4222547 | N84: 0.869602104 | O84: 34 | P84: 43 | Q84: 10702 | X84: CUSCO | Y84: PAUCARTAMBO | AC84: -4.662216667 | AD84: -81.30795
A85: 80 | B85: 10703 | C85: AMAZONAS | D85: UTCUBAMBA | E85: CUMBA | F85: 293 | G85: 477 | H85: -5.9356 | I85: -78.6636 | J85: 8536 | K85: 10310.04988 | L85: CUMBA | M85: =ABS($I85-(IFERROR(VLOOKUP((INDEX($AC$6:$AC$850,MATCH(MIN(ABS($AC$6:$AC$850-$H85)),ABS($AC$6:$AC$850-$H85),0))),$AC$6:$AD$850,2,FALSE),"")))*111.32 -> 276.3667427 | O85: 34 | P85: 43 | Q85: 10703 | X85: CUSCO | Y85: QUISPICANCHI | AC85: -4.667216667 | AD85: -81.31366667
A86: 81 | B86: 10704 | C86: AMAZONAS | D86: UTCUBAMBA | E86: EL MILAGRO | F86: 314 | G86: 392 | H86: -5.6378 | I86: -78.5583 | J86: 6564 | K86: 10279.17357 | L86: EL MILAGRO | M86: =ABS($I86-(IFERROR(VLOOKUP((INDEX($AC$6:$AC$850,MATCH(MIN(ABS($AC$6:$AC$850-$H86)),ABS($AC$6:$AC$850-$H86),0))),$AC$6:$AD$850,2,FALSE),"")))*111.32 -> 255.3755013 | N86: 0.004570383912 | O86: 34 | P86: 43 | Q86: 10704 | X86: CUSCO | Y86: URUBAMBA | AC86: -4.668083333 | AD86: -81.31975
A87: 82 | B87: 10705 | C87: AMAZONAS | D87: UTCUBAMBA | E87: JAMALCA | F87: 358 | G87: 1184 | H87: -5.8942 | I87: -78.2378 | J87: 7012 | K87: 10313.07769 | L87: JAMALCA | M87: =ABS($I87-(IFERROR(VLOOKUP((INDEX($AC$6:$AC$850,MATCH(MIN(ABS($AC$6:$AC$850-$H87)),ABS($AC$6:$AC$850-$H87),0))),$AC$6:$AD$850,2,FALSE),"")))*111.32 -> 324.5961327 | N87: 0.0998288648 | O87: 33 | P87: 41 | Q87: 10705 | X87: HUANCAVELICA | Y87: ACOBAMBA | AC87: -4.667616667 | AD87: -81.33103333
A88: 83 | B88: 10706 | C88: AMAZONAS | D88: UTCUBAMBA | E88: LONYA GRANDE | F88: 328 | G88: 1269 | H88: -6.0964 | I88: -78.4225 | J88: 11598 | K88: 10331.98317 | L88: LONYA GRANDE | M88: =ABS($I88-(IFERROR(VLOOKUP((INDEX($AC$6:$AC$850,MATCH(MIN(ABS($AC$6:$AC$850-$H88)),ABS($AC$6:$AC$850-$H88),0))),$AC$6:$AD$850,2,FALSE),"")))*111.32 -> 296.267048 | N88: 0.1250215554 | O88: 33 | P88: 41 | Q88: 10706 | X88: HUANCAVELICA | Y88: ANGARAES | AC88: -4.671483333 | AD88: -81.33036667
A89: 84 | B89: 10707 | C89: AMAZONAS | D89: UTCUBAMBA | E89: YAMON | F89: 58 | G89: 1052 | H89: -6.0508 | I89: -78.5289 | J89: 3252 | K89: 10325.08466 | L89: YAMON | M89: =ABS($I89-(IFERROR(VLOOKUP((INDEX($AC$6:$AC$850,MATCH(MIN(ABS($AC$6:$AC$850-$H89)),ABS($AC$6:$AC$850-$H89),0))),$AC$6:$AD$850,2,FALSE),"")))*111.32 -> 287.51173 | N89: 1.2300123 | O89: 33 | P89: 41 | Q89: 10707 | X89: HUANCAVELICA | Y89: CASTROVIRREYNA | AC89: -4.677816667 | AD89: -81.32761667
A90: 85 | B90: 20201 | C90: ANCASH | D90: AIJA | E90: AIJA | F90: 160 | G90: 3421 | H90: -9.7803 | I90: -77.6106 | J90: 2178 | K90: 10751.27869 | L90: AIJA | M90: =ABS($I90-(IFERROR(VLOOKUP((INDEX($AC$6:$AC$850,MATCH(MIN(ABS($AC$6:$AC$850-$H90)),ABS($AC$6:$AC$850-$H90),0))),$AC$6:$AD$850,2,FALSE),"")))*111.32 -> 72.65485333 | O90: 31 | P90: 38 | Q90: 20201 | X90: HUANCAVELICA | Y90: CHURCAMPA | AC90: -4.68165 | AD90: -81.33046667
A91: 86 | B91: 20202 | C91: ANCASH | D91: AIJA | E91: CORIS | F91: 267 | G91: 2903 | H91: -9.8206 | I91: -77.7194 | J91: 1480 | K91: 10753.75083 | L91: CORIS | M91: =ABS($I91-(IFERROR(VLOOKUP((INDEX($AC$6:$AC$850,MATCH(MIN(ABS($AC$6:$AC$850-$H91)),ABS($AC$6:$AC$850-$H91),0))),$AC$6:$AD$850,2,FALSE),"")))*111.32 -> 55.253682 | N91: 2.22972973 | O91: 31 | P91: 37 | Q91: 20202 | X91: HUANCAVELICA | Y91: HUANCAVELICA | AC91: -4.686566667 | AD91: -81.32805
A92: 87 | B92: 20203 | C92: ANCASH | D92: AIJA | E92: HUACLLAN | F92: 38 | G92: 3020 | H92: -9.7981 | I92: -77.6753 | J92: 312 | K92: 10752.06967 | L92: HUACLLAN | M92: =ABS($I92-(IFERROR(VLOOKUP((INDEX($AC$6:$AC$850,MATCH(MIN(ABS($AC$6:$AC$850-$H92)),ABS($AC$6:$AC$850-$H92),0))),$AC$6:$AD$850,2,FALSE),"")))*111.32 -> 60.162894 | N92: 0.3205128205 | O92: 31 | P92: 38 | Q92: 20203 | X92: HUANCAVELICA | Y92: HUAYTARA | AC92: -4.829083333 | AD92: -81.20391667
A93: 88 | B93: 20204 | C93: ANCASH | D93: AIJA | E93: LA MERCED | F93: 153 | G93: 3311 | H93: -9.7356 | I93: -77.6161 | J93: 1366 | K93: 10746.26918 | L93: LA MERCED | M93: =ABS($I93-(IFERROR(VLOOKUP((INDEX($AC$6:$AC$850,MATCH(MIN(ABS($AC$6:$AC$850-$H93)),ABS($AC$6:$AC$850-$H93),0))),$AC$6:$AD$850,2,FALSE),"")))*111.32 -> 72.04259333 | O93: 31 | P93: 38 | Q93: 20204 | X93: HUANCAVELICA | Y93: TAYACAJA | AC93: -4.843966667 | AD93: -81.1912
A94: 89 | B94: 20205 | C94: ANCASH | D94: AIJA | E94: SUCCHA | F94: 79 | G94: 3167 | H94: -9.8231 | I94: -77.6497 | J94: 688 | K94: 10755.27627 | L94: SUCCHA | M94: =ABS($I94-(IFERROR(VLOOKUP((INDEX($AC$6:$AC$850,MATCH(MIN(ABS($AC$6:$AC$850-$H94)),ABS($AC$6:$AC$850-$H94),0))),$AC$6:$AD$850,2,FALSE),"")))*111.32 -> 63.012686 | N94: 0.7703488372 | O94: 31 | P94: 38 | Q94: 20205 | X94: HUANUCO | Y94: AMBO | AC94: -4.865766667 | AD94: -81.1725
A95: 90 | B95: 20302 | C95: ANCASH | D95: ANTONIO RAYMONDI | E95: ACZO | F95: 69 | G95: 2680 | H95: -9.1519 | I95: -76.9889 | J95: 1809 | K95: 10693.7581 | L95: ACZO | M95: =ABS($I95-(IFERROR(VLOOKUP((INDEX($AC$6:$AC$850,MATCH(MIN(ABS($AC$6:$AC$850-$H95)),ABS($AC$6:$AC$850-$H95),0))),$AC$6:$AD$850,2,FALSE),"")))*111.32 -> 175.0989387 | N95: 0.4423438364 | O95: 31 | P95: 37 | Q95: 20302 | X95: HUANUCO | Y95: DOS DE MAYO | AC95: -4.884533333 | AD95: -81.15836667
A96: 91 | B96: 20303 | C96: ANCASH | D96: ANTONIO RAYMONDI | E96: CHACCHO | F96: 74 | G96: 3371 | H96: -9.0597 | I96: -77.0583 | J96: 1254 | K96: 10682.33577 | L96: CHACCHO | M96: =ABS($I96-(IFERROR(VLOOKUP((INDEX($AC$6:$AC$850,MATCH(MIN(ABS($AC$6:$AC$850-$H96)),ABS($AC$6:$AC$850-$H96),0))),$AC$6:$AD$850,2,FALSE),"")))*111.32 -> 175.0544107 | N96: 0.4385964912 | O96: 31 | P96: 38 | Q96: 20303 | X96: HUANUCO | Y96: HUACAYBAMBA | AC96: -4.89515 | AD96: -81.15286667
A97: 92 | B97: 20304 | C97: ANCASH | D97: ANTONIO RAYMONDI | E97: CHINGAS | F97: 49 | G97: 2866 | H97: -9.1186 | I97: -76.9919 | J97: 1785 | K97: 10690.0481 | L97: CHINGAS | M97: =ABS($I97-(IFERROR(VLOOKUP((INDEX($AC$6:$AC$850,MATCH(MIN(ABS($AC$6:$AC$850-$H97)),ABS($AC$6:$AC$850-$H97),0))),$AC$6:$AD$850,2,FALSE),"")))*111.32 -> 175.0302913 | N97: 0.08403361345 | O97: 31 | P97: 37 | Q97: 20304 | X97: HUANUCO | Y97: HUAMALIES | AC97: -4.904516667 | AD97: -81.14798333
A98: 93 | B98: 20301 | C98: ANCASH | D98: ANTONIO RAYMONDI | E98: LLAMELLIN | F98: 91 | G98: 3400 | H98: -9.1008 | I98: -77.0169 | J98: 3272 | K98: 10687.62409 | L98: LLAMELLIN | M98: =ABS($I98-(IFERROR(VLOOKUP((INDEX($AC$6:$AC$850,MATCH(MIN(ABS($AC$6:$AC$850-$H98)),ABS($AC$6:$AC$850-$H98),0))),$AC$6:$AD$850,2,FALSE),"")))*111.32 -> 173.0395187 | N98: 0.08743887531 | O98: 31 | P98: 38 | Q98: 20301 | X98: HUANUCO | Y98: HUANUCO | AC98: -4.9127 | AD98: -81.13746667
A99: 94 | B99: 20305 | C99: ANCASH | D99: ANTONIO RAYMONDI | E99: MIRGAS | F99: 176 | G99: 3147 | H99: -9.0786 | I99: -77.0925 | J99: 3910 | K99: 10683.76761 | L99: MIRGAS | M99: =ABS($I99-(IFERROR(VLOOKUP((INDEX($AC$6:$AC$850,MATCH(MIN(ABS($AC$6:$AC$850-$H99)),ABS($AC$6:$AC$850-$H99),0))),$AC$6:$AD$850,2,FALSE),"")))*111.32 -> 169.1043567 | N99: 0.05115089514 | O99: 31 | P99: 38 | Q99: 20305 | X99: HUANUCO | Y99: LAURICOCHA | AC99: -4.930883333 | AD99: -81.12021667
A100: 95 | B100: 20306 | C100: ANCASH | D100: ANTONIO RAYMONDI | E100: SAN JUAN DE RONTOY | F100: 103 | G100: 3503 | H100: -9.1753 | I100: -77.0028 | J100: 1078 | K100: 10696.0635 | L100: SAN JUAN DE RONTOY | M100: =ABS($I100-(IFERROR(VLOOKUP((INDEX($AC$6:$AC$850,MATCH(MIN(ABS($AC$6:$AC$850-$H100)),ABS($AC$6:$AC$850-$H100),0))),$AC$6:$AD$850,2,FALSE),"")))*111.32 -> 171.8465393 | N100: 0.1391465677 | O100: 32 | P100: 38 | Q100: 20306 | X100: HUANUCO | Y100: LEONCIO PRADO | AC100: -4.947216667 | AD100: -81.10168333
A101: 96 | B101: 20402 | C101: ANCASH | D101: ASUNCION | E101: ACOCHACA | F101: 81 | G101: 2864 | H101: -9.1147 | I101: -77.3683 | J101: 2720 | K101: 10682.60225 | L101: ACOCHACA | M101: =ABS($I101-(IFERROR(VLOOKUP((INDEX($AC$6:$AC$850,MATCH(MIN(ABS($AC$6:$AC$850-$H101)),ABS($AC$6:$AC$850-$H101),0))),$AC$6:$AD$850,2,FALSE),"")))*111.32 -> 133.1294433 | N101: 0.02205882353 | O101: 31 | P101: 37 | Q101: 20402 | X101: HUANUCO | Y101: MARAÑON | AC101: -4.968516667 | AD101: -81.0857
A102: 97 | B102: 20401 | C102: ANCASH | D102: ASUNCION | E102: CHACAS | F102: 448 | G102: 3387 | H102: -9.1622 | I102: -77.3658 | J102: 4596 | K102: 10687.8631 | L102: CHACAS | M102: =ABS($I102-(IFERROR(VLOOKUP((INDEX($AC$6:$AC$850,MATCH(MIN(ABS($AC$6:$AC$850-$H102)),ABS($AC$6:$AC$850-$H102),0))),$AC$6:$AD$850,2,FALSE),"")))*111.32 -> 138.1277113 | N102: 0.2175805048 | O102: 31 | P102: 38 | Q102: 20401 | X102: HUANUCO | Y102: PACHITEA | AC102: -4.982916667 | AD102: -81.07773333
A103: 98 | B103: 20502 | C103: ANCASH | D103: BOLOGNESI | E103: ABELARDO PARDO LEZAMETA | F103: 11 | G103: 2108 | H103: -10.2992 | I103: -77.1464 | J103: 196 | K103: 10816.73231 | L103: ABELARDO PARDO LEZAMETA | M103: =ABS($I103-(IFERROR(VLOOKUP((INDEX($AC$6:$AC$850,MATCH(MIN(ABS($AC$6:$AC$850-$H103)),ABS($AC$6:$AC$850-$H103),0))),$AC$6:$AD$850,2,FALSE),"")))*111.32 -> 103.3698967 | N103: 3.06122449 | O103: 31 | P103: 37 | Q103: 20502 | X103: HUANUCO | Y103: PUERTO INCA | AC103: -5.005966667 | AD103: -81.0688
A104: 99 | B104: 20503 | C104: ANCASH | D104: BOLOGNESI | E104: ANTONIO RAYMONDI | F104: 119 | G104: 2139 | H104: -10.1572 | I104: -77.4706 | J104: 927 | K104: 10795.20966 | L104: ANTONIO RAYMONDI | M104: =ABS($I104-(IFERROR(VLOOKUP((INDEX($AC$6:$AC$850,MATCH(MIN(ABS($AC$6:$AC$850-$H104)),ABS($AC$6:$AC$850-$H104),0))),$AC$6:$AD$850,2,FALSE),"")))*111.32 -> 78.57151133 | N104: 0.3236245955 | O104: 31 | P104: 37 | Q104: 20503 | X104: HUANUCO | Y104: YAROWILCA | AC104: -5.031033333 | AD104: -81.06245
A105: 100 | B105: 20504 | C105: ANCASH | D105: BOLOGNESI | E105: AQUIA | F105: 435 | G105: 3356 | H105: -10.0744 | I105: -77.145 | J105: 1853 | K105: 10792.08046 | L105: AQUIA | M105: =ABS($I105-(IFERROR(VLOOKUP((INDEX($AC$6:$AC$850,MATCH(MIN(ABS($AC$6:$AC$850-$H105)),ABS($AC$6:$AC$850-$H105),0))),$AC$6:$AD$850,2,FALSE),"")))*111.32 -> 114.8173033 | N105: 0.01618996222 | O105: 31 | P105: 38 | Q105: 20504 | X105: ICA | Y105: CHINCHA | AC105: -5.059966667 | AD105: -81.06275
A106: 101 | B106: 20505 | C106: ANCASH | D106: BOLOGNESI | E106: CAJACAY | F106: 193 | G106: 2616 | H106: -10.1553 | I106: -77.4397 | J106: 1904 | K106: 10795.56152 | L106: CAJACAY | M106: =ABS($I106-(IFERROR(VLOOKUP((INDEX($AC$6:$AC$850,MATCH(MIN(ABS($AC$6:$AC$850-$H106)),ABS($AC$6:$AC$850-$H106),0))),$AC$6:$AD$850,2,FALSE),"")))*111.32 -> 82.01129933 | O106: 31 | P106: 37 | Q106: 20505 | X106: ICA | Y106: ICA | AC106: -5.080883333 | AD106: -81.07483333
A107: 102 | B107: 20506 | C107: ANCASH | D107: BOLOGNESI | E107: CANIS | F107: 19 | G107: 2465 | H107: -10.3389 | I107: -77.1689 | J107: 232 | K107: 10820.67573 | L107: CANIS | M107: =ABS($I107-(IFERROR(VLOOKUP((INDEX($AC$6:$AC$850,MATCH(MIN(ABS($AC$6:$AC$850-$H107)),ABS($AC$6:$AC$850-$H107),0))),$AC$6:$AD$850,2,FALSE),"")))*111.32 -> 97.677734 | N107: 2.588362069 | O107: 31 | P107: 37 | Q107: 20506 | X107: ICA | Y107: NAZCA | AC107: -5.087233333 | AD107: -81.09735
A108: 103 | B108: 20501 | C108: ANCASH | D108: BOLOGNESI | E108: CHIQUIAN | F108: 184 | G108: 3410 | H108: -10.1519 | I108: -77.1564 | J108: 3924 | K108: 10800.37725 | L108: CHIQUIAN | M108: =ABS($I108-(IFERROR(VLOOKUP((INDEX($AC$6:$AC$850,MATCH(MIN(ABS($AC$6:$AC$850-$H108)),ABS($AC$6:$AC$850-$H108),0))),$AC$6:$AD$850,2,FALSE),"")))*111.32 -> 113.5482553 | N108: 0.4008664628 | O108: 31 | P108: 38 | Q108: 20501 | X108: ICA | Y108: PALPA | AC108: -5.08705 | AD108: -81.11318333
A109: 104 | B109: 20507 | C109: ANCASH | D109: BOLOGNESI | E109: COLQUIOC | F109: 275 | G109: 772 | H109: -10.3122 | I109: -77.6153 | J109: 2104 | K109: 10809.62799 | L109: COLQUIOC | M109: =ABS($I109-(IFERROR(VLOOKUP((INDEX($AC$6:$AC$850,MATCH(MIN(ABS($AC$6:$AC$850-$H109)),ABS($AC$6:$AC$850-$H109),0))),$AC$6:$AD$850,2,FALSE),"")))*111.32 -> 51.17194867 | N109: 0.7129277567 | O109: 31 | P109: 36 | Q109: 20507 | X109: ICA | Y109: PISCO | AC109: -5.080416667 | AD109: -81.12103333
A110: 105 | B110: 20508 | C110: ANCASH | D110: BOLOGNESI | E110: HUALLANCA | F110: 873 | G110: 3563 | H110: -9.8994 | I110: -76.9417 | J110: 6193 | K110: 10776.66205 | L110: HUALLANCA | M110: =ABS($I110-(IFERROR(VLOOKUP((INDEX($AC$6:$AC$850,MATCH(MIN(ABS($AC$6:$AC$850-$H110)),ABS($AC$6:$AC$850-$H110),0))),$AC$6:$AD$850,2,FALSE),"")))*111.32 -> 144.716 | O110: 32 | P110: 38 | Q110: 20508 | X110: JUNIN | Y110: CHANCHAMAYO | AC110: -5.068516667 | AD110: -81.1315
A111: 106 | B111: 20509 | C111: ANCASH | D111: BOLOGNESI | E111: HUASTA | F111: 388 | G111: 3382 | H111: -10.1233 | I111: -77.1467 | J111: 1153 | K111: 10797.41695 | L111: HUASTA | M111: =ABS($I111-(IFERROR(VLOOKUP((INDEX($AC$6:$AC$850,MATCH(MIN(ABS($AC$6:$AC$850-$H111)),ABS($AC$6:$AC$850-$H111),0))),$AC$6:$AD$850,2,FALSE),"")))*111.32 -> 114.6280593 | N111: 0.3946227233 | O111: 31 | P111: 38 | Q111: 20509 | X111: JUNIN | Y111: CHUPACA | AC111: -5.074983333 | AD111: -81.1408
A112: 107 | B112: 20510 | C112: ANCASH | D112: BOLOGNESI | E112: HUAYLLACAYAN | F112: 128 | G112: 3287 | H112: -10.245 | I112: -77.4347 | J112: 1256 | K112: 10805.50413 | L112: HUAYLLACAYAN | M112: =ABS($I112-(IFERROR(VLOOKUP((INDEX($AC$6:$AC$850,MATCH(MIN(ABS($AC$6:$AC$850-$H112)),ABS($AC$6:$AC$850-$H112),0))),$AC$6:$AD$850,2,FALSE),"")))*111.32 -> 73.57880933 | O112: 31 | P112: 38 | Q112: 20510 | X112: JUNIN | Y112: CONCEPCION | AC112: -5.080166667 | AD112: -81.14876667
A113: 108 | B113: 20511 | C113: ANCASH | D113: BOLOGNESI | E113: LA PRIMAVERA | F113: 69 | G113: 2658 | H113: -10.3356 | I113: -77.1253 | J113: 378 | K113: 10821.1179 | L113: LA PRIMAVERA | M113: =ABS($I113-(IFERROR(VLOOKUP((INDEX($AC$6:$AC$850,MATCH(MIN(ABS($AC$6:$AC$850-$H113)),ABS($AC$6:$AC$850-$H113),0))),$AC$6:$AD$850,2,FALSE),"")))*111.32 -> 102.531286 | N113: 1.851851852 | O113: 31 | P113: 37 | Q113: 20511 | X113: JUNIN | Y113: HUANCAYO | AC113: -5.0735 | AD113: -81.15928333
A114: 109 | B114: 20512 | C114: ANCASH | D114: BOLOGNESI | E114: MANGAS | F114: 116 | G114: 3492 | H114: -10.3694 | I114: -77.1033 | J114: 471 | K114: 10825.23497 | L114: MANGAS | M114: =ABS($I114-(IFERROR(VLOOKUP((INDEX($AC$6:$AC$850,MATCH(MIN(ABS($AC$6:$AC$850-$H114)),ABS($AC$6:$AC$850-$H114),0))),$AC$6:$AD$850,2,FALSE),"")))*111.32 -> 99.698192 | N114: 0.04246284501 | O114: 31 | P114: 38 | Q114: 20512 | X114: JUNIN | Y114: JAUJA | AC114: -5.086583333 | AD114: -81.16866667
A115: 110 | B115: 20513 | C115: ANCASH | D115: BOLOGNESI | E115: PACLLON | F115: 212 | G115: 3296 | H115: -10.2344 | I115: -77.0717 | J115: 755 | K115: 10811.00149 | L115: PACLLON | M115: =ABS($I115-(IFERROR(VLOOKUP((INDEX($AC$6:$AC$850,MATCH(MIN(ABS($AC$6:$AC$850-$H115)),ABS($AC$6:$AC$850-$H115),0))),$AC$6:$AD$850,2,FALSE),"")))*111.32 -> 113.9879693 | N115: 0.222781457 | O115: 31 | P115: 38 | Q115: 20513 | X115: JUNIN | Y115: JUNIN | AC115: -5.0998 | AD115: -81.16485
A116: 111 | B116: 20514 | C116: ANCASH | D116: BOLOGNESI | E116: SAN MIGUEL DE CORPANQUI | F116: 44 | G116: 3405 | H116: -10.285 | I116: -77.1989 | J116: 410 | K116: 10814.20576 | L116: SAN MIGUEL DE CORPANQUI | M116: =ABS($I116-(IFERROR(VLOOKUP((INDEX($AC$6:$AC$850,MATCH(MIN(ABS($AC$6:$AC$850-$H116)),ABS($AC$6:$AC$850-$H116),0))),$AC$6:$AD$850,2,FALSE),"")))*111.32 -> 97.52559667 | N116: 1.219512195 | O116: 31 | P116: 38 | Q116: 20514 | X116: JUNIN | Y116: SATIPO | AC116: -5.112966667 | AD116: -81.16101667
A117: 112 | B117: 20515 | C117: ANCASH | D117: BOLOGNESI | E117: TICLLOS | F117: 89 | G117: 3665 | H117: -10.2531 | I117: -77.1908 | J117: 556 | K117: 10810.85264 | L117: TICLLOS | M117: =ABS($I117-(IFERROR(VLOOKUP((INDEX($AC$6:$AC$850,MATCH(MIN(ABS($AC$6:$AC$850-$H117)),ABS($AC$6:$AC$850-$H117),0))),$AC$6:$AD$850,2,FALSE),"")))*111.32 -> 98.42728867 | N117: 0.8992805755 | O117: 32 | P117: 38 | Q117: 20515 | X117: JUNIN | Y117: TARMA | AC117: -5.1222 | AD117: -81.15713333
A118: 113 | B118: 20602 | C118: ANCASH | D118: CARHUAZ | E118: ACOPAMPA | F118: 14 | G118: 2692 | H118: -9.2947 | I118: -77.6253 | J118: 2823 | K118: 10697.67267 | L118: ACOPAMPA | M118: =ABS($I118-(IFERROR(VLOOKUP((INDEX($AC$6:$AC$850,MATCH(MIN(ABS($AC$6:$AC$850-$H118)),ABS($AC$6:$AC$850-$H118),0))),$AC$6:$AD$850,2,FALSE),"")))*111.32 -> 97.11185733 | N118: 0.7793127878 | O118: 31 | P118: 37 | Q118: 20602 | X118: JUNIN | Y118: YAULI | AC118: -5.12875 | AD118: -81.16381667
A119: 114 | B119: 20603 | C119: ANCASH | D119: CARHUAZ | E119: AMASHCA | F119: 12 | G119: 2905 | H119: -9.2392 | I119: -77.6467 | J119: 1473 | K119: 10691.1892 | L119: AMASHCA | M119: =ABS($I119-(IFERROR(VLOOKUP((INDEX($AC$6:$AC$850,MATCH(MIN(ABS($AC$6:$AC$850-$H119)),ABS($AC$6:$AC$850-$H119),0))),$AC$6:$AD$850,2,FALSE),"")))*111.32 -> 93.77967867 | N119: 0.06788866259 | O119: 31 | P119: 37 | Q119: 20603 | X119: LA LIBERTAD | Y119: ASCOPE | AC119: -5.139133333 | AD119: -81.18243333
A120: 115 | B120: 20604 | C120: ANCASH | D120: CARHUAZ | E120: ANTA | F120: 41 | G120: 2800 | H120: -9.3578 | I120: -77.5989 | J120: 2615 | K120: 10705.08168 | L120: ANTA | M120: =ABS($I120-(IFERROR(VLOOKUP((INDEX($AC$6:$AC$850,MATCH(MIN(ABS($AC$6:$AC$850-$H120)),ABS($AC$6:$AC$850-$H120),0))),$AC$6:$AD$850,2,FALSE),"")))*111.32 -> 90.39369533 | N120: 0.04971319312 | O120: 31 | P120: 37 | Q120: 20604 | X120: LA LIBERTAD | Y120: BOLIVAR | AC120: -5.1511 | AD120: -81.16935
A121: 116 | B121: 20605 | C121: ANCASH | D121: CARHUAZ | E121: ATAQUERO | F121: 47 | G121: 2749 | H121: -9.2622 | I121: -77.6917 | J121: 1632 | K121: 10692.90258 | L121: ATAQUERO | M121: =ABS($I121-(IFERROR(VLOOKUP((INDEX($AC$6:$AC$850,MATCH(MIN(ABS($AC$6:$AC$850-$H121)),ABS($AC$6:$AC$850-$H121),0))),$AC$6:$AD$850,2,FALSE),"")))*111.32 -> 90.83897533 | N121: 0.07089460784 | O121: 31 | P121: 37 | Q121: 20605 | X121: LA LIBERTAD | Y121: CHEPEN | AC121: -5.1708 | AD121: -81.16953333
A122: 117 | B122: 20601 | C122: ANCASH | D122: CARHUAZ | E122: CARHUAZ | F122: 195 | G122: 2663 | H122: -9.2814 | I122: -77.6467 | J122: 17006 | K122: 10695.82449 | L122: CARHUAZ | M122: =ABS($I122-(IFERROR(VLOOKUP((INDEX($AC$6:$AC$850,MATCH(MIN(ABS($AC$6:$AC$850-$H122)),ABS($AC$6:$AC$850-$H122),0))),$AC$6:$AD$850,2,FALSE),"")))*111.32 -> 96.31777467 | N122: 0.4266176644 | O122: 31 | P122: 37 | Q122: 20601 | X122: LA LIBERTAD | Y122: GRAN CHIMU | AC122: -5.1866 | AD122: -81.17766667
A123: 118 | B123: 20606 | C123: ANCASH | D123: CARHUAZ | E123: MARCARA | F123: 157 | G123: 2767 | H123: -9.3228 | I123: -77.6036 | J123: 11167 | K123: 10701.15225 | L123: MARCARA | M123: =ABS($I123-(IFERROR(VLOOKUP((INDEX($AC$6:$AC$850,MATCH(MIN(ABS($AC$6:$AC$850-$H123)),ABS($AC$6:$AC$850-$H123),0))),$AC$6:$AD$850,2,FALSE),"")))*111.32 -> 96.83541267 | N123: 0.03402883496 | O123: 31 | P123: 37 | Q123: 20606 | X123: LA LIBERTAD | Y123: JULCAN | AC123: -5.2036 | AD123: -81.19503333
A124: 119 | B124: 20607 | C124: ANCASH | D124: CARHUAZ | E124: PARIAHUANCA | F124: 12 | G124: 2830 | H124: -9.3653 | I124: -77.5808 | J124: 1450 | K124: 10706.23371 | L124: PARIAHUANCA | M124: =ABS($I124-(IFERROR(VLOOKUP((INDEX($AC$6:$AC$850,MATCH(MIN(ABS($AC$6:$AC$850-$H124)),ABS($AC$6:$AC$850-$H124),0))),$AC$6:$AD$850,2,FALSE),"")))*111.32 -> 92.40858733 | N124: 0.1448896552 | O124: 31 | P124: 37 | Q124: 20607 | X124: LA LIBERTAD | Y124: OTUZCO | AC124: -5.21875 | AD124: -81.19213333
A125: 120 | B125: 20608 | C125: ANCASH | D125: CARHUAZ | E125: SAN MIGUEL DE ACO | F125: 134 | G125: 2956 | H125: -9.3683 | I125: -77.5644 | J125: 2493 | K125: 10706.86094 | L125: SAN MIGUEL DE ACO | M125: =ABS($I125-(IFERROR(VLOOKUP((INDEX($AC$6:$AC$850,MATCH(MIN(ABS($AC$6:$AC$850-$H125)),ABS($AC$6:$AC$850-$H125),0))),$AC$6:$AD$850,2,FALSE),"")))*111.32 -> 94.23423533 | N125: 0.2005615724 | O125: 31 | P125: 37 | Q125: 20608 | X125: LA LIBERTAD | Y125: PACASMAYO | AC125: -5.23975 | AD125: -81.16635
A126: 121 | B126: 20609 | C126: ANCASH | D126: CARHUAZ | E126: SHILLA | F126: 130 | G126: 3036 | H126: -9.2317 | I126: -77.625 | J126: 2872 | K126: 10690.75836 | L126: SHILLA | M126: =ABS($I126-(IFERROR(VLOOKUP((INDEX($AC$6:$AC$850,MATCH(MIN(ABS($AC$6:$AC$850-$H126)),ABS($AC$6:$AC$850-$H126),0))),$AC$6:$AD$850,2,FALSE),"")))*111.32 -> 103.3736073 | O126: 31 | P126: 38 | Q126: 20609 | X126: LA LIBERTAD | Y126: PATAZ | AC126: -5.251116667 | AD126: -81.15605
A127: 122 | B127: 20610 | C127: ANCASH | D127: CARHUAZ | E127: TINCO | F127: 15 | G127: 2606 | H127: -9.2708 | I127: -77.6775 | J127: 4050 | K127: 10694.10355 | L127: TINCO | M127: =ABS($I127-(IFERROR(VLOOKUP((INDEX($AC$6:$AC$850,MATCH(MIN(ABS($AC$6:$AC$850-$H127)),ABS($AC$6:$AC$850-$H127),0))),$AC$6:$AD$850,2,FALSE),"")))*111.32 -> 93.51065533 | O127: 31 | P127: 37 | Q127: 20610 | X127: LA LIBERTAD | Y127: SANCHEZ CARRION | AC127: -5.256366667 | AD127: -81.14948333
A128: 123 | B128: 20611 | C128: ANCASH | D128: CARHUAZ | E128: YUNGAR | F128: 46 | G128: 2836 | H128: -9.3775 | I128: -77.5922 | J128: 3302 | K128: 10707.36689 | L128: YUNGAR | M128: =ABS($I128-(IFERROR(VLOOKUP((INDEX($AC$6:$AC$850,MATCH(MIN(ABS($AC$6:$AC$850-$H128)),ABS($AC$6:$AC$850-$H128),0))),$AC$6:$AD$850,2,FALSE),"")))*111.32 -> 93.06166467 | O128: 31 | P128: 37 | Q128: 20611 | X128: LA LIBERTAD | Y128: SANTIAGO DE CHUCO | AC128: -5.26305 | AD128: -81.13725
A129: 124 | B129: 20701 | C129: ANCASH | D129: CARLOS FERMIN FITZCARRALD | E129: SAN LUIS | F129: 256 | G129: 3145 | H129: -9.0942 | I129: -77.3289 | J129: 10694 | K129: 10681.07896 | L129: SAN LUIS | M129: =ABS($I129-(IFERROR(VLOOKUP((INDEX($AC$6:$AC$850,MATCH(MIN(ABS($AC$6:$AC$850-$H129)),ABS($AC$6:$AC$850-$H129),0))),$AC$6:$AD$850,2,FALSE),"")))*111.32 -> 138.3076787 | N129: 0.08696465308 | O129: 31 | P129: 38 | Q129: 20701 | X129: LA LIBERTAD | Y129: TRUJILLO | AC129: -5.270683333 | AD129: -81.13356667
A130: 125 | B130: 20702 | C130: ANCASH | D130: CARLOS FERMIN FITZCARRALD | E130: SAN NICOLAS | F130: 197 | G130: 2890 | H130: -8.9758 | I130: -77.1892 | J130: 3025 | K130: 10670.67766 | L130: SAN NICOLAS | M130: =ABS($I130-(IFERROR(VLOOKUP((INDEX($AC$6:$AC$850,MATCH(MIN(ABS($AC$6:$AC$850-$H130)),ABS($AC$6:$AC$850-$H130),0))),$AC$6:$AD$850,2,FALSE),"")))*111.32 -> 162.170976 | N130: 0.6446280992 | O130: 31 | P130: 37 | Q130: 20702 | X130: LA LIBERTAD | Y130: VIRU | AC130: -5.276816667 | AD130: -81.13031667
A131: 126 | B131: 20703 | C131: ANCASH | D131: CARLOS FERMIN FITZCARRALD | E131: YAUYA | F131: 170 | G131: 3257 | H131: -8.9911 | I131: -77.2914 | J131: 3872 | K131: 10670.45577 | L131: YAUYA | M131: =ABS($I131-(IFERROR(VLOOKUP((INDEX($AC$6:$AC$850,MATCH(MIN(ABS($AC$6:$AC$850-$H131)),ABS($AC$6:$AC$850-$H131),0))),$AC$6:$AD$850,2,FALSE),"")))*111.32 -> 152.0649753 | N131: 0.05165289256 | O131: 31 | P131: 38 | Q131: 20703 | X131: LAMBAYEQUE | Y131: CHICLAYO | AC131: -5.285833333 | AD131: -81.129
A132: 127 | B132: 20802 | C132: ANCASH | D132: CASMA | E132: BUENA VISTA ALTA | F132: 477 | G132: 225 | H132: -9.4325 | I132: -78.2069 | J132: 5751 | K132: 10702.48194 | L132: BUENA VISTA ALTA | M132: =ABS($I132-(IFERROR(VLOOKUP((INDEX($AC$6:$AC$850,MATCH(MIN(ABS($AC$6:$AC$850-$H132)),ABS($AC$6:$AC$850-$H132),0))),$AC$6:$AD$850,2,FALSE),"")))*111.32 -> 20.505144 | N132: 0.01912710833 | O132: 23 | P132: 35 | Q132: 20802 | X132: LAMBAYEQUE | Y132: FERREÑAFE | AC132: -5.28965 | AD132: -81.121
A133: 128 | B133: 20801 | C133: ANCASH | D133: CASMA | E133: CASMA | F133: 1205 | G133: 59 | H133: -9.4758 | I133: -78.3064 | J133: 43067 | K133: 10705.51505 | L133: CASMA | M133: =ABS($I133-(IFERROR(VLOOKUP((INDEX($AC$6:$AC$850,MATCH(MIN(ABS($AC$6:$AC$850-$H133)),ABS($AC$6:$AC$850-$H133),0))),$AC$6:$AD$850,2,FALSE),"")))*111.32 -> 10.28782333 | N133: 0.7693361506 | O133: 23 | P133: 35 | Q133: 20801 | X133: LAMBAYEQUE | Y133: LAMBAYEQUE | AC133: -5.293433333 | AD133: -81.11725
A134: 129 | B134: 20803 | C134: ANCASH | D134: CASMA | E134: COMANDANTE NOEL | F134: 222 | G134: 14 | H134: -9.4625 | I134: -78.3847 | J134: 2387 | K134: 10702.70059 | L134: COMANDANTE NOEL | M134: =ABS($I134-(IFERROR(VLOOKUP((INDEX($AC$6:$AC$850,MATCH(MIN(ABS($AC$6:$AC$850-$H134)),ABS($AC$6:$AC$850-$H134),0))),$AC$6:$AD$850,2,FALSE),"")))*111.32 -> 1.571467333 | N134: 3.142019271 | O134: 23 | P134: 35 | Q134: 20803 | X134: LIMA | Y134: BARRANCA | AC134: -5.298633333 | AD134: -81.11635
A135: 130 | B135: 20804 | C135: ANCASH | D135: CASMA | E135: YAUTAN | F135: 357 | G135: 831 | H135: -9.5114 | I135: -77.9964 | J135: 9483 | K135: =SQRT(POWER((H135-$I$3)*111.321,2)+POWER((I135-$J$3)*111.321,2)) -> 10714.84748 | L135: YAUTAN | M135: =ABS($I135-(IFERROR(VLOOKUP((INDEX($AC$6:$AC$850,MATCH(MIN(ABS($AC$6:$AC$850-$H135)),ABS($AC$6:$AC$850-$H135),0))),$AC$6:$AD$850,2,FALSE),"")))*111.32 -> 44.24042333 | O135: 28 | P135: 36 | Q135: 20804 | X135: LIMA | Y135: CAJATAMBO | AC135: -5.306216667 | AD135: -81.1117
A136: =+A135+1 -> 131 | B136: 20902 | C136: ANCASH | D136: CORONGO | E136: ACO | F136: 57 | G136: 3118 | H136: -8.5231 | I136: -77.8778 | J136: 336 | K136: 10608.3579 | L136: ACO | M136: =ABS($I136-(IFERROR(VLOOKUP((INDEX($AC$6:$AC$850,MATCH(MIN(ABS($AC$6:$AC$850-$H136)),ABS($AC$6:$AC$850-$H136),0))),$AC$6:$AD$850,2,FALSE),"")))*111.32 -> 103.2363127 | N136: 0.119047619 | O136: 31 | P136: 38 | Q136: 20902 | X136: LIMA | Y136: CANTA | AC136: -5.313366667 | AD136: -81.1061
A137: 132 | B137: 20903 | C137: ANCASH | D137: CORONGO | E137: BAMBAS | F137: 151 | G137: 2943 | H137: -8.6025 | I137: -77.9969 | J137: 453 | K137: 10614.951 | L137: BAMBAS | M137: =ABS($I137-(IFERROR(VLOOKUP((INDEX($AC$6:$AC$850,MATCH(MIN(ABS($AC$6:$AC$850-$H137)),ABS($AC$6:$AC$850-$H137),0))),$AC$6:$AD$850,2,FALSE),"")))*111.32 -> 86.41957133 | N137: 1.270860927 | O137: 31 | P137: 37 | Q137: 20903 | X137: LIMA | Y137: CAÑETE | AC137: -5.315783333 | AD137: -81.10235
A138: 133 | B138: 20901 | C138: ANCASH | D138: CORONGO | E138: CORONGO | F138: 143 | G138: 3172 | H138: -8.5708 | I138: -77.8989 | J138: 1796 | K138: 10613.21968 | L138: CORONGO | M138: =ABS($I138-(IFERROR(VLOOKUP((INDEX($AC$6:$AC$850,MATCH(MIN(ABS($AC$6:$AC$850-$H138)),ABS($AC$6:$AC$850-$H138),0))),$AC$6:$AD$850,2,FALSE),"")))*111.32 -> 97.32893133 | O138: 31 | P138: 38 | Q138: 20901 | X138: LIMA | Y138: HUARAL | AC138: -5.31065 | AD138: -81.09566667
A139: 134 | B139: 20904 | C139: ANCASH | D139: CORONGO | E139: CUSCA | F139: 412 | G139: 3196 | H139: -8.5133 | I139: -77.8647 | J139: 2903 | K139: 10607.51675 | L139: CUSCA | M139: =ABS($I139-(IFERROR(VLOOKUP((INDEX($AC$6:$AC$850,MATCH(MIN(ABS($AC$6:$AC$850-$H139)),ABS($AC$6:$AC$850-$H139),0))),$AC$6:$AD$850,2,FALSE),"")))*111.32 -> 109.683596 | O139: 31 | P139: 38 | Q139: 20904 | X139: LIMA | Y139: HUAROCHIRI | AC139: -5.309733333 | AD139: -81.08715
A140: 135 | B140: 20905 | C140: ANCASH | D140: CORONGO | E140: LA PAMPA | F140: 94 | G140: 1803 | H140: -8.6611 | I140: -77.9008 | J140: 1024 | K140: 10623.10675 | L140: LA PAMPA | M140: =ABS($I140-(IFERROR(VLOOKUP((INDEX($AC$6:$AC$850,MATCH(MIN(ABS($AC$6:$AC$850-$H140)),ABS($AC$6:$AC$850-$H140),0))),$AC$6:$AD$850,2,FALSE),"")))*111.32 -> 93.60713267 | O140: 29 | P140: 37 | Q140: 20905 | X140: LIMA | Y140: HUAURA | AC140: -5.3127 | AD140: -81.08008333
A141: 136 | B141: 20906 | C141: ANCASH | D141: CORONGO | E141: YANAC | F141: 46 | G141: 2877 | H141: -8.6186 | I141: -77.8647 | J141: 622 | K141: 10619.08505 | L141: YANAC | M141: =ABS($I141-(IFERROR(VLOOKUP((INDEX($AC$6:$AC$850,MATCH(MIN(ABS($AC$6:$AC$850-$H141)),ABS($AC$6:$AC$850-$H141),0))),$AC$6:$AD$850,2,FALSE),"")))*111.32 -> 97.62578467 | N141: 0.2733118971 | O141: 31 | P141: 37 | Q141: 20906 | X141: LIMA | Y141: LIMA METROPOLITANA | AC141: -5.330516667 | AD141: -81.0567
A142: 137 | B142: 20907 | C142: ANCASH | D142: CORONGO | E142: YUPAN | F142: 86 | G142: 2781 | H142: -8.6144 | I142: -77.9686 | J142: 697 | K142: 10616.76325 | L142: YUPAN | M142: =ABS($I142-(IFERROR(VLOOKUP((INDEX($AC$6:$AC$850,MATCH(MIN(ABS($AC$6:$AC$850-$H142)),ABS($AC$6:$AC$850-$H142),0))),$AC$6:$AD$850,2,FALSE),"")))*111.32 -> 89.56992733 | N142: 0.5308464849 | O142: 31 | P142: 37 | Q142: 20907 | X142: LIMA | Y142: OYON | AC142: -5.34935 | AD142: -81.03296667
A143: 138 | B143: 20102 | C143: ANCASH | D143: HUARAZ | E143: COCHABAMBA | F143: 136 | G143: 2135 | H143: -9.495 | I143: -77.8594 | J143: 1658 | K143: 10715.47408 | L143: COCHABAMBA | M143: =ABS($I143-(IFERROR(VLOOKUP((INDEX($AC$6:$AC$850,MATCH(MIN(ABS($AC$6:$AC$850-$H143)),ABS($AC$6:$AC$850-$H143),0))),$AC$6:$AD$850,2,FALSE),"")))*111.32 -> 59.49126333 | O143: 31 | P143: 37 | Q143: 20102 | X143: LIMA | Y143: YAUYOS | AC143: -5.3802 | AD143: -81.00135
A144: 139 | B144: 20103 | C144: ANCASH | D144: HUARAZ | E144: COLCABAMBA | F144: 51 | G144: 3154 | H144: -9.5947 | I144: -77.8086 | J144: 245 | K144: 10727.33518 | L144: COLCABAMBA | M144: =ABS($I144-(IFERROR(VLOOKUP((INDEX($AC$6:$AC$850,MATCH(MIN(ABS($AC$6:$AC$850-$H144)),ABS($AC$6:$AC$850-$H144),0))),$AC$6:$AD$850,2,FALSE),"")))*111.32 -> 61.45235067 | N144: 0.4081632653 | O144: 31 | P144: 38 | Q144: 20103 | X144: LORETO | Y144: ALTO AMAZONAS | AC144: -5.408266667 | AD144: -80.97505
A145: 140 | B145: 20104 | C145: ANCASH | D145: HUARAZ | E145: HUANCHAY | F145: 209 | G145: 2592 | H145: -9.7236 | I145: -77.8186 | J145: 1593 | K145: 10741.32091 | L145: HUANCHAY | M145: =ABS($I145-(IFERROR(VLOOKUP((INDEX($AC$6:$AC$850,MATCH(MIN(ABS($AC$6:$AC$850-$H145)),ABS($AC$6:$AC$850-$H145),0))),$AC$6:$AD$850,2,FALSE),"")))*111.32 -> 53.76384933 | N145: 0.7532956685 | O145: 31 | P145: 37 | Q145: 20104 | X145: LORETO | Y145: DATEM DEL MARAÑON | AC145: -5.433683333 | AD145: -80.95005
A146: 141 | B146: 20101 | C146: ANCASH | D146: HUARAZ | E146: HUARAZ | F146: 433 | G146: 3073 | H146: -9.5297 | I146: -77.5292 | J146: 70410 | K146: 10725.22678 | L146: HUARAZ | M146: =ABS($I146-(IFERROR(VLOOKUP((INDEX($AC$6:$AC$850,MATCH(MIN(ABS($AC$6:$AC$850-$H146)),ABS($AC$6:$AC$850-$H146),0))),$AC$6:$AD$850,2,FALSE),"")))*111.32 -> 95.08768867 | N146: 0.4303365999 | O146: 31 | P146: 38 | Q146: 20101 | X146: LORETO | Y146: LORETO | AC146: -5.452383333 | AD146: -80.93428333
A147: 142 | B147: 20105 | C147: ANCASH | D147: HUARAZ | E147: INDEPENDENCIA ancash | F147: 343 | G147: 3047 | H147: -9.5144 | I147: -77.5325 | J147: 92336 | K147: 10723.48644 | L147: INDEPENDENCIA ancash | M147: =ABS($I147-(IFERROR(VLOOKUP((INDEX($AC$6:$AC$850,MATCH(MIN(ABS($AC$6:$AC$850-$H147)),ABS($AC$6:$AC$850-$H147),0))),$AC$6:$AD$850,2,FALSE),"")))*111.32 -> 95.88177133 | N147: 0.3354054757 | O147: 31 | P147: 38 | Q147: 20105 | X147: LORETO | Y147: MARISCAL RAMON CASTILLA | AC147: -5.47905 | AD147: -80.91463333
A148: 143 | B148: 20106 | C148: ANCASH | D148: HUARAZ | E148: JANGAS | F148: 60 | G148: 2824 | H148: -9.4006 | I148: -77.5775 | J148: 5320 | K148: 10710.17066 | L148: JANGAS | M148: =ABS($I148-(IFERROR(VLOOKUP((INDEX($AC$6:$AC$850,MATCH(MIN(ABS($AC$6:$AC$850-$H148)),ABS($AC$6:$AC$850-$H148),0))),$AC$6:$AD$850,2,FALSE),"")))*111.32 -> 94.95224933 | N148: 0.1691729323 | O148: 31 | P148: 37 | Q148: 20106 | X148: LORETO | Y148: MAYNAS | AC148: -5.510966667 | AD148: -80.89766667
A149: 144 | B149: 20107 | C149: ANCASH | D149: HUARAZ | E149: LA LIBERTAD | F149: 164 | G149: 3343 | H149: -9.6331 | I149: -77.7414 | J149: 1090 | K149: 10732.75604 | L149: LA LIBERTAD | M149: =ABS($I149-(IFERROR(VLOOKUP((INDEX($AC$6:$AC$850,MATCH(MIN(ABS($AC$6:$AC$850-$H149)),ABS($AC$6:$AC$850-$H149),0))),$AC$6:$AD$850,2,FALSE),"")))*111.32 -> 68.93305467 | O149: 31 | P149: 38 | Q149: 20107 | X149: LORETO | Y149: PUTUMAYO | AC149: -5.541516667 | AD149: -80.88468333
A150: 145 | B150: 20108 | C150: ANCASH | D150: HUARAZ | E150: OLLEROS | F150: 223 | G150: 3443 | H150: -9.6667 | I150: -77.4656 | J150: 2493 | K150: 10741.42993 | L150: OLLEROS | M150: =ABS($I150-(IFERROR(VLOOKUP((INDEX($AC$6:$AC$850,MATCH(MIN(ABS($AC$6:$AC$850-$H150)),ABS($AC$6:$AC$850-$H150),0))),$AC$6:$AD$850,2,FALSE),"")))*111.32 -> 93.05980933 | O150: 31 | P150: 38 | Q150: 20108 | X150: LORETO | Y150: REQUENA | AC150: -5.566766667 | AD150: -80.87165
A151: 146 | B151: 20109 | C151: ANCASH | D151: HUARAZ | E151: PAMPAS | F151: 358 | G151: 3698 | H151: -9.6553 | I151: -77.8261 | J151: 964 | K151: 10733.68206 | L151: PAMPAS | M151: =ABS($I151-(IFERROR(VLOOKUP((INDEX($AC$6:$AC$850,MATCH(MIN(ABS($AC$6:$AC$850-$H151)),ABS($AC$6:$AC$850-$H151),0))),$AC$6:$AD$850,2,FALSE),"")))*111.32 -> 59.50425067 | O151: 32 | P151: 38 | Q151: 20109 | X151: LORETO | Y151: UCAYALI | AC151: -5.601233333 | AD151: -80.86136667
A152: 147 | B152: 20110 | C152: ANCASH | D152: HUARAZ | E152: PARIACOTO | F152: 163 | G152: 1264 | H152: -9.5594 | I152: -77.8906 | J152: 5361 | K152: 10721.99618 | L152: PARIACOTO | M152: =ABS($I152-(IFERROR(VLOOKUP((INDEX($AC$6:$AC$850,MATCH(MIN(ABS($AC$6:$AC$850-$H152)),ABS($AC$6:$AC$850-$H152),0))),$AC$6:$AD$850,2,FALSE),"")))*111.32 -> 52.77495667 | N152: 0.7461294535 | O152: 29 | P152: 36 | Q152: 20110 | X152: MADRE DE DIOS | Y152: MANU | AC152: -5.63305 | AD152: -80.85236667
A153: 148 | B153: 20111 | C153: ANCASH | D153: HUARAZ | E153: PIRA | F153: 244 | G153: 3602 | H153: -9.5811 | I153: -77.7072 | J153: 3442 | K153: 10727.65656 | L153: PIRA | M153: =ABS($I153-(IFERROR(VLOOKUP((INDEX($AC$6:$AC$850,MATCH(MIN(ABS($AC$6:$AC$850-$H153)),ABS($AC$6:$AC$850-$H153),0))),$AC$6:$AD$850,2,FALSE),"")))*111.32 -> 73.19104467 | N153: 0.1946542708 | O153: 32 | P153: 38 | Q153: 20111 | X153: MADRE DE DIOS | Y153: TAHUAMANU | AC153: -5.655533333 | AD153: -80.8486
A154: 149 | B154: 20112 | C154: ANCASH | D154: HUARAZ | E154: TARICA | F154: 110 | G154: 2832 | H154: -9.3936 | I154: -77.575 | J154: 7992 | K154: 10709.4472 | L154: TARICA | M154: =ABS($I154-(IFERROR(VLOOKUP((INDEX($AC$6:$AC$850,MATCH(MIN(ABS($AC$6:$AC$850-$H154)),ABS($AC$6:$AC$850-$H154),0))),$AC$6:$AD$850,2,FALSE),"")))*111.32 -> 95.23054933 | N154: 0.1013513514 | O154: 31 | P154: 37 | Q154: 20112 | X154: MADRE DE DIOS | Y154: TAMBOPATA | AC154: -5.6912 | AD154: -80.84895
A155: 150 | B155: 21002 | C155: ANCASH | D155: HUARI | E155: ANRA | F155: 80 | G155: 3197 | H155: -9.2347 | I155: -76.9264 | J155: 1344 | K155: 10704.02197 | L155: ANRA | M155: =ABS($I155-(IFERROR(VLOOKUP((INDEX($AC$6:$AC$850,MATCH(MIN(ABS($AC$6:$AC$850-$H155)),ABS($AC$6:$AC$850-$H155),0))),$AC$6:$AD$850,2,FALSE),"")))*111.32 -> 173.9634747 | N155: 1.5309375 | O155: 31 | P155: 38 | Q155: 21002 | X155: MOQUEGUA | Y155: GENERAL SANCHEZ CERRO | AC155: -5.728116667 | AD155: -80.85593333
A156: 151 | B156: 21003 | C156: ANCASH | D156: HUARI | E156: CAJAY | F156: 159 | G156: 3175 | H156: -9.3258 | I156: -77.1575 | J156: 2619 | K156: 10709.68066 | L156: CAJAY | M156: =ABS($I156-(IFERROR(VLOOKUP((INDEX($AC$6:$AC$850,MATCH(MIN(ABS($AC$6:$AC$850-$H156)),ABS($AC$6:$AC$850-$H156),0))),$AC$6:$AD$850,2,FALSE),"")))*111.32 -> 143.3319213 | N156: 0.2989690722 | O156: 31 | P156: 38 | Q156: 21003 | X156: MOQUEGUA | Y156: ILO | AC156: -5.774166667 | AD156: -80.87363333
A157: 152 | B157: 21004 | C157: ANCASH | D157: HUARI | E157: CHAVIN DE HUANTAR | F157: 434 | G157: 3115 | H157: -9.5886 | I157: -77.1783 | J157: 8453 | K157: 10738.13811 | L157: CHAVIN DE HUANTAR | M157: =ABS($I157-(IFERROR(VLOOKUP((INDEX($AC$6:$AC$850,MATCH(MIN(ABS($AC$6:$AC$850-$H157)),ABS($AC$6:$AC$850-$H157),0))),$AC$6:$AD$850,2,FALSE),"")))*111.32 -> 132.0681927 | N157: 0.3743049805 | O157: 31 | P157: 38 | Q157: 21004 | X157: MOQUEGUA | Y157: MARISCAL NIETO | AC157: -5.791266667 | AD157: -80.88043333
A158: 153 | B158: 21005 | C158: ANCASH | D158: HUARI | E158: HUACACHI | F158: 87 | G158: 3498 | H158: -9.3156 | I158: -76.9386 | J158: 1825 | K158: 10712.6667 | L158: HUACACHI | M158: =ABS($I158-(IFERROR(VLOOKUP((INDEX($AC$6:$AC$850,MATCH(MIN(ABS($AC$6:$AC$850-$H158)),ABS($AC$6:$AC$850-$H158),0))),$AC$6:$AD$850,2,FALSE),"")))*111.32 -> 172.507038 | O158: 31 | P158: 38 | Q158: 21005 | X158: PASCO | Y158: DANIEL ALCIDES CARRION | AC158: -5.8123 | AD158: -80.88993333
A159: 154 | B159: 21006 | C159: ANCASH | D159: HUARI | E159: HUACCHIS | F159: 72 | G159: 3491 | H159: -9.2006 | I159: -76.7869 | J159: 1294 | K159: 10702.93056 | L159: HUACCHIS | M159: =ABS($I159-(IFERROR(VLOOKUP((INDEX($AC$6:$AC$850,MATCH(MIN(ABS($AC$6:$AC$850-$H159)),ABS($AC$6:$AC$850-$H159),0))),$AC$6:$AD$850,2,FALSE),"")))*111.32 -> 197.0364 | N159: 5.795981453 | O159: 31 | P159: 38 | Q159: 21006 | X159: PASCO | Y159: OXAPAMPA | AC159: -5.83185 | AD159: -80.91666667
A160: 155 | B160: 21007 | C160: ANCASH | D160: HUARI | E160: HUACHIS | F160: 154 | G160: 3275 | H160: -9.41 | I160: -77.1 | J160: 3625 | K160: 10719.99397 | L160: HUACHIS | M160: =ABS($I160-(IFERROR(VLOOKUP((INDEX($AC$6:$AC$850,MATCH(MIN(ABS($AC$6:$AC$850-$H160)),ABS($AC$6:$AC$850-$H160),0))),$AC$6:$AD$850,2,FALSE),"")))*111.32 -> 147.059286 | N160: 1.075862069 | O160: 31 | P160: 38 | Q160: 21007 | X160: PASCO | Y160: PASCO | AC160: -5.846166667 | AD160: -80.93805
A161: 156 | B161: 21008 | C161: ANCASH | D161: HUARI | E161: HUANTAR | F161: 156 | G161: 3363 | H161: -9.4519 | I161: -77.1767 | J161: 2728 | K161: 10723.16349 | L161: HUANTAR | M161: =ABS($I161-(IFERROR(VLOOKUP((INDEX($AC$6:$AC$850,MATCH(MIN(ABS($AC$6:$AC$850-$H161)),ABS($AC$6:$AC$850-$H161),0))),$AC$6:$AD$850,2,FALSE),"")))*111.32 -> 133.9717647 | O161: 31 | P161: 38 | Q161: 21008 | X161: PIURA | Y161: AYABACA | AC161: -5.841833333 | AD161: -80.97518333
A162: 157 | B162: 21001 | C162: ANCASH | D162: HUARI | E162: HUARI | F162: 399 | G162: 3114 | H162: -9.3472 | I162: -77.1708 | J162: 9776 | K162: 10711.78171 | L162: HUARI | M162: =ABS($I162-(IFERROR(VLOOKUP((INDEX($AC$6:$AC$850,MATCH(MIN(ABS($AC$6:$AC$850-$H162)),ABS($AC$6:$AC$850-$H162),0))),$AC$6:$AD$850,2,FALSE),"")))*111.32 -> 139.5025133 | N162: 0.3899345336 | O162: 31 | P162: 38 | Q162: 21001 | X162: PIURA | Y162: HUANCABAMBA | AC162: -5.832316667 | AD162: -81.00296667
A163: 158 | B163: 21009 | C163: ANCASH | D163: HUARI | E163: MASIN | F163: 75 | G163: 2547 | H163: -9.3658 | I163: -77.0964 | J163: 1264 | K163: 10715.21065 | L163: MASIN | M163: =ABS($I163-(IFERROR(VLOOKUP((INDEX($AC$6:$AC$850,MATCH(MIN(ABS($AC$6:$AC$850-$H163)),ABS($AC$6:$AC$850-$H163),0))),$AC$6:$AD$850,2,FALSE),"")))*111.32 -> 146.3319953 | N163: 0.07911392405 | O163: 31 | P163: 37 | Q163: 21009 | X163: PIURA | Y163: MORROPON | AC163: -5.825483333 | AD163: -81.0268
A164: 159 | B164: 21010 | C164: ANCASH | D164: HUARI | E164: PAUCAS | F164: 135 | G164: 3433 | H164: -9.1525 | I164: -76.8994 | J164: 1479 | K164: 10695.51579 | L164: PAUCAS | M164: =ABS($I164-(IFERROR(VLOOKUP((INDEX($AC$6:$AC$850,MATCH(MIN(ABS($AC$6:$AC$850-$H164)),ABS($AC$6:$AC$850-$H164),0))),$AC$6:$AD$850,2,FALSE),"")))*111.32 -> 185.0620787 | O164: 31 | P164: 38 | Q164: 21010 | X164: PIURA | Y164: PAITA | AC164: -5.810783333 | AD164: -81.04391667
A165: 160 | B165: 21011 | C165: ANCASH | D165: HUARI | E165: PONTO | F165: 118 | G165: 3142 | H165: -9.3261 | I165: -77.0044 | J165: 2602 | K165: 10712.57902 | L165: PONTO | M165: =ABS($I165-(IFERROR(VLOOKUP((INDEX($AC$6:$AC$850,MATCH(MIN(ABS($AC$6:$AC$850-$H165)),ABS($AC$6:$AC$850-$H165),0))),$AC$6:$AD$850,2,FALSE),"")))*111.32 -> 160.3750133 | O165: 31 | P165: 38 | Q165: 21011 | X165: PIURA | Y165: PIURA | AC165: -5.794816667 | AD165: -81.05828333
A166: 161 | B166: 21012 | C166: ANCASH | D166: HUARI | E166: RAHUAPAMPA | F166: 9 | G166: 2521 | H166: -9.3592 | I166: -77.0786 | J166: 767 | K166: 10714.81927 | L166: RAHUAPAMPA | M166: =ABS($I166-(IFERROR(VLOOKUP((INDEX($AC$6:$AC$850,MATCH(MIN(ABS($AC$6:$AC$850-$H166)),ABS($AC$6:$AC$850-$H166),0))),$AC$6:$AD$850,2,FALSE),"")))*111.32 -> 148.3134913 | N166: 0.7561929596 | O166: 31 | P166: 37 | Q166: 21012 | X166: PIURA | Y166: SECHURA | AC166: -5.782766667 | AD166: -81.07153333
A167: 162 | B167: 21013 | C167: ANCASH | D167: HUARI | E167: RAPAYAN | F167: 143 | G167: 3233 | H167: -9.2025 | I167: -76.7594 | J167: 1415 | K167: 10703.66381 | L167: RAPAYAN | M167: =ABS($I167-(IFERROR(VLOOKUP((INDEX($AC$6:$AC$850,MATCH(MIN(ABS($AC$6:$AC$850-$H167)),ABS($AC$6:$AC$850-$H167),0))),$AC$6:$AD$850,2,FALSE),"")))*111.32 -> 200.0977 | N167: 0.3886925795 | O167: 31 | P167: 38 | Q167: 21013 | X167: PIURA | Y167: SULLANA | AC167: -5.793216667 | AD167: -81.08356667
A168: 163 | B168: 21014 | C168: ANCASH | D168: HUARI | E168: SAN MARCOS | F168: 557 | G168: 2988 | H168: -9.5242 | I168: -77.1569 | J168: 20237 | K168: 10731.46705 | L168: SAN MARCOS | M168: =ABS($I168-(IFERROR(VLOOKUP((INDEX($AC$6:$AC$850,MATCH(MIN(ABS($AC$6:$AC$850-$H168)),ABS($AC$6:$AC$850-$H168),0))),$AC$6:$AD$850,2,FALSE),"")))*111.32 -> 136.5321247 | N168: 0.2124820873 | O168: 31 | P168: 37 | Q168: 21014 | X168: PIURA | Y168: TALARA | AC168: -5.818283333 | AD168: -81.08648333
A169: 164 | B169: 21015 | C169: ANCASH | D169: HUARI | E169: SAN PEDRO DE CHANA | F169: 139 | G169: 3439 | H169: -9.4031 | I169: -77.0111 | J169: 2734 | K169: 10720.90184 | L169: SAN PEDRO DE CHANA | M169: =ABS($I169-(IFERROR(VLOOKUP((INDEX($AC$6:$AC$850,MATCH(MIN(ABS($AC$6:$AC$850-$H169)),ABS($AC$6:$AC$850-$H169),0))),$AC$6:$AD$850,2,FALSE),"")))*111.32 -> 158.0038973 | O169: 31 | P169: 38 | Q169: 21015 | X169: PUNO | Y169: AZANGARO | AC169: -5.835366667 | AD169: -81.09461667
A170: 165 | B170: 21016 | C170: ANCASH | D170: HUARI | E170: UCO | F170: 54 | G170: 3347 | H170: -9.1883 | I170: -76.9283 | J170: 1223 | K170: 10698.89582 | L170: UCO | M170: =ABS($I170-(IFERROR(VLOOKUP((INDEX($AC$6:$AC$850,MATCH(MIN(ABS($AC$6:$AC$850-$H170)),ABS($AC$6:$AC$850-$H170),0))),$AC$6:$AD$850,2,FALSE),"")))*111.32 -> 185.7411307 | N170: 0.2452984464 | O170: 31 | P170: 38 | Q170: 21016 | X170: PUNO | Y170: CARABAYA | AC170: -5.841883333 | AD170: -81.10398333
A171: 166 | B171: 21102 | C171: ANCASH | D171: HUARMEY | E171: COCHAPETI | F171: 100 | G171: 3529 | H171: -9.9872 | I171: -77.6461 | J171: 786 | K171: 10773.36913 | L171: COCHAPETI | M171: =ABS($I171-(IFERROR(VLOOKUP((INDEX($AC$6:$AC$850,MATCH(MIN(ABS($AC$6:$AC$850-$H171)),ABS($AC$6:$AC$850-$H171),0))),$AC$6:$AD$850,2,FALSE),"")))*111.32 -> 63.858718 | N171: 0.1017811705 | O171: 32 | P171: 38 | Q171: 21102 | X171: PUNO | Y171: CHUCUITO | AC171: -5.845716667 | AD171: -81.11601667
A172: 167 | B172: 21103 | C172: ANCASH | D172: HUARMEY | E172: CULEBRAS | F172: 630 | G172: 41 | H172: -9.9503 | I172: -78.2222 | J172: 3431 | K172: 10759.15189 | L172: CULEBRAS | M172: =ABS($I172-(IFERROR(VLOOKUP((INDEX($AC$6:$AC$850,MATCH(MIN(ABS($AC$6:$AC$850-$H172)),ABS($AC$6:$AC$850-$H172),0))),$AC$6:$AD$850,2,FALSE),"")))*111.32 -> 0.272734 | N172: 0.6413582046 | O172: 23 | P172: 35 | Q172: 21103 | X172: PUNO | Y172: EL COLLAO | AC172: -5.849583333 | AD172: -81.12536667
A173: 168 | B173: 21101 | C173: ANCASH | D173: HUARMEY | E173: HUARMEY | F173: 2894 | G173: 30 | H173: -10.0689 | I173: -78.1517 | J173: 28067 | K173: 10773.41626 | L173: HUARMEY | M173: =ABS($I173-(IFERROR(VLOOKUP((INDEX($AC$6:$AC$850,MATCH(MIN(ABS($AC$6:$AC$850-$H173)),ABS($AC$6:$AC$850-$H173),0))),$AC$6:$AD$850,2,FALSE),"")))*111.32 -> 3.063155333 | N173: 1.135190793 | O173: 23 | P173: 35 | Q173: 21101 | X173: PUNO | Y173: HUANCANE | AC173: -5.865416667 | AD173: -81.12815
A174: 169 | B174: 21104 | C174: ANCASH | D174: HUARMEY | E174: HUAYAN | F174: 59 | G174: 2702 | H174: -9.8753 | I174: -77.7083 | J174: 945 | K174: 10759.95956 | L174: HUAYAN | M174: =ABS($I174-(IFERROR(VLOOKUP((INDEX($AC$6:$AC$850,MATCH(MIN(ABS($AC$6:$AC$850-$H174)),ABS($AC$6:$AC$850-$H174),0))),$AC$6:$AD$850,2,FALSE),"")))*111.32 -> 59.378088 | N174: 0.4232804233 | O174: 31 | P174: 37 | Q174: 21104 | X174: PUNO | Y174: LAMPA | AC174: -5.87715 | AD174: -81.14291667
A175: 170 | B175: 21105 | C175: ANCASH | D175: HUARMEY | E175: MALVAS | F175: 220 | G175: 3132 | H175: -9.9297 | I175: -77.6578 | J175: 734 | K175: 10766.84191 | L175: MALVAS | M175: =ABS($I175-(IFERROR(VLOOKUP((INDEX($AC$6:$AC$850,MATCH(MIN(ABS($AC$6:$AC$850-$H175)),ABS($AC$6:$AC$850-$H175),0))),$AC$6:$AD$850,2,FALSE),"")))*111.32 -> 62.556274 | N175: 0.05449591281 | O175: 31 | P175: 38 | Q175: 21105 | X175: PUNO | Y175: MELGAR | AC175: -5.888933333 | AD175: -81.15368333
A176: 171 | B176: 21201 | C176: ANCASH | D176: HUAYLAS | E176: CARAZ | F176: 247 | G176: 2273 | H176: -9.0486 | I176: -77.8047 | J176: 27376 | K176: 10667.40361 | L176: CARAZ | M176: =ABS($I176-(IFERROR(VLOOKUP((INDEX($AC$6:$AC$850,MATCH(MIN(ABS($AC$6:$AC$850-$H176)),ABS($AC$6:$AC$850-$H176),0))),$AC$6:$AD$850,2,FALSE),"")))*111.32 -> 92.829748 | N176: 0.3141437756 | O176: 31 | P176: 37 | Q176: 21201 | X176: PUNO | Y176: MOHO | AC176: -5.900866667 | AD176: -81.14981667
A177: 172 | B177: 21202 | C177: ANCASH | D177: HUAYLAS | E177: HUALLANCA | F177: 179 | G177: 1391 | H177: -8.8189 | I177: -77.8631 | J177: 1139 | K177: 10641.11971 | L177: HUALLANCA | M177: =ABS($I177-(IFERROR(VLOOKUP((INDEX($AC$6:$AC$850,MATCH(MIN(ABS($AC$6:$AC$850-$H177)),ABS($AC$6:$AC$850-$H177),0))),$AC$6:$AD$850,2,FALSE),"")))*111.32 -> 95.89290333 | O177: 29 | P177: 36 | Q177: 21202 | X177: PUNO | Y177: PUNO | AC177: -5.91675 | AD177: -81.14733333
A178: 173 | B178: 21203 | C178: ANCASH | D178: HUAYLAS | E178: HUATA | F178: 71 | G178: 2712 | H178: -9.0164 | I178: -77.8614 | J178: 1371 | K178: 10662.84961 | L178: HUATA | M178: =ABS($I178-(IFERROR(VLOOKUP((INDEX($AC$6:$AC$850,MATCH(MIN(ABS($AC$6:$AC$850-$H178)),ABS($AC$6:$AC$850-$H178),0))),$AC$6:$AD$850,2,FALSE),"")))*111.32 -> 84.82769533 | N178: 0.0291757841 | O178: 31 | P178: 37 | Q178: 21203 | X178: PUNO | Y178: SAN ANTONIO DE PUTINA | AC178: -5.940533333 | AD178: -81.14623333
A179: 174 | B179: 21204 | C179: ANCASH | D179: HUAYLAS | E179: HUAYLAS | F179: 57 | G179: 2735 | H179: -8.8725 | I179: -77.8928 | J179: 1675 | K179: 10646.47699 | L179: HUAYLAS | M179: =ABS($I179-(IFERROR(VLOOKUP((INDEX($AC$6:$AC$850,MATCH(MIN(ABS($AC$6:$AC$850-$H179)),ABS($AC$6:$AC$850-$H179),0))),$AC$6:$AD$850,2,FALSE),"")))*111.32 -> 88.73688267 | O179: 31 | P179: 37 | Q179: 21204 | X179: PUNO | Y179: SAN ROMAN | AC179: -5.970916667 | AD179: -81.14658333
A180: 175 | B180: 21205 | C180: ANCASH | D180: HUAYLAS | E180: MATO | F180: 107 | G180: 2209 | H180: -8.9614 | I180: -77.8425 | J180: 1905 | K180: 10657.1452 | L180: MATO | M180: =ABS($I180-(IFERROR(VLOOKUP((INDEX($AC$6:$AC$850,MATCH(MIN(ABS($AC$6:$AC$850-$H180)),ABS($AC$6:$AC$850-$H180),0))),$AC$6:$AD$850,2,FALSE),"")))*111.32 -> 89.42706667 | N180: 1.443569554 | O180: 31 | P180: 37 | Q180: 21205 | X180: PUNO | Y180: SANDIA | AC180: -5.996083333 | AD180: -81.13881667
A181: 176 | B181: 21206 | C181: ANCASH | D181: HUAYLAS | E181: PAMPAROMAS | F181: 496 | G181: 2772 | H181: -9.0733 | I181: -77.9817 | J181: 8573 | K181: 10666.95827 | L181: PAMPAROMAS | M181: =ABS($I181-(IFERROR(VLOOKUP((INDEX($AC$6:$AC$850,MATCH(MIN(ABS($AC$6:$AC$850-$H181)),ABS($AC$6:$AC$850-$H181),0))),$AC$6:$AD$850,2,FALSE),"")))*111.32 -> 72.23183733 | N181: 0.11965473 | O181: 31 | P181: 37 | Q181: 21206 | X181: PUNO | Y181: YUNGUYO | AC181: -6.0239 | AD181: -81.13248333
A182: 177 | B182: 21207 | C182: ANCASH | D182: HUAYLAS | E182: PUEBLO LIBRE - ANCASH | F182: 131 | G182: 2485 | H182: -9.11 | I182: -77.8019 | J182: 7003 | K182: 10674.19956 | L182: PUEBLO LIBRE - ANCASH | M182: =ABS($I182-(IFERROR(VLOOKUP((INDEX($AC$6:$AC$850,MATCH(MIN(ABS($AC$6:$AC$850-$H182)),ABS($AC$6:$AC$850-$H182),0))),$AC$6:$AD$850,2,FALSE),"")))*111.32 -> 84.86109133 | N182: 0.6854205341 | O182: 31 | P182: 37 | Q182: 21207 | X182: SAN MARTIN | Y182: BELLAVISTA | AC182: -6.06375 | AD182: -81.11165
A183: 178 | B183: 21208 | C183: ANCASH | D183: HUAYLAS | E183: SANTA CRUZ | F183: 358 | G183: 2890 | H183: -8.9519 | I183: -77.815 | J183: 4559 | K183: 10656.59488 | L183: SANTA CRUZ | M183: =ABS($I183-(IFERROR(VLOOKUP((INDEX($AC$6:$AC$850,MATCH(MIN(ABS($AC$6:$AC$850-$H183)),ABS($AC$6:$AC$850-$H183),0))),$AC$6:$AD$850,2,FALSE),"")))*111.32 -> 92.44198333 | N183: 1.273130072 | O183: 31 | P183: 37 | Q183: 21208 | X183: SAN MARTIN | Y183: EL DORADO | AC183: -6.085116667 | AD183: -81.0839
A184: 179 | B184: 21209 | C184: ANCASH | D184: HUAYLAS | E184: SANTO TORIBIO | F184: 82 | G184: 2926 | H184: -8.8644 | I184: -77.9147 | J184: 1061 | K184: 10645.19556 | L184: SANTO TORIBIO | M184: =ABS($I184-(IFERROR(VLOOKUP((INDEX($AC$6:$AC$850,MATCH(MIN(ABS($AC$6:$AC$850-$H184)),ABS($AC$6:$AC$850-$H184),0))),$AC$6:$AD$850,2,FALSE),"")))*111.32 -> 86.29897467 | N184: 1.291234684 | O184: 31 | P184: 37 | Q184: 21209 | X184: SAN MARTIN | Y184: HUALLAGA | AC184: -6.11325 | AD184: -81.04971667
A185: 180 | B185: 21210 | C185: ANCASH | D185: HUAYLAS | E185: YURACMARCA | F185: 566 | G185: 1484 | H185: -8.7375 | I185: -77.9039 | J185: 2257 | K185: 10631.44542 | L185: YURACMARCA | M185: =ABS($I185-(IFERROR(VLOOKUP((INDEX($AC$6:$AC$850,MATCH(MIN(ABS($AC$6:$AC$850-$H185)),ABS($AC$6:$AC$850-$H185),0))),$AC$6:$AD$850,2,FALSE),"")))*111.32 -> 93.135878 | N185: 0.7975188303 | O185: 29 | P185: 36 | Q185: 21210 | X185: SAN MARTIN | Y185: LAMAS | AC185: -6.13475 | AD185: -81.01271667
A186: 181 | B186: 21302 | C186: ANCASH | D186: MARISCAL LUZURIAGA | E186: CASCA | F186: 77 | G186: 3176 | H186: -8.8556 | I186: -77.3986 | J186: 3840 | K186: 10653.59872 | L186: CASCA | M186: =ABS($I186-(IFERROR(VLOOKUP((INDEX($AC$6:$AC$850,MATCH(MIN(ABS($AC$6:$AC$850-$H186)),ABS($AC$6:$AC$850-$H186),0))),$AC$6:$AD$850,2,FALSE),"")))*111.32 -> 143.7512267 | O186: 31 | P186: 38 | Q186: 21302 | X186: SAN MARTIN | Y186: MARISCAL CACERES | AC186: -6.156316667 | AD186: -80.96908333
A187: 182 | B187: 21303 | C187: ANCASH | D187: MARISCAL LUZURIAGA | E187: ELEAZAR GUZMAN BARRON | F187: 94 | G187: 2845 | H187: -8.9022 | I187: -77.2439 | J187: 1375 | K187: 10661.58061 | L187: ELEAZAR GUZMAN BARRON | M187: =ABS($I187-(IFERROR(VLOOKUP((INDEX($AC$6:$AC$850,MATCH(MIN(ABS($AC$6:$AC$850-$H187)),ABS($AC$6:$AC$850-$H187),0))),$AC$6:$AD$850,2,FALSE),"")))*111.32 -> 157.2042487 | O187: 31 | P187: 37 | Q187: 21303 | X187: SAN MARTIN | Y187: MOYOBAMBA | AC187: -6.2047 | AD187: -80.88716667
A188: 183 | B188: 21304 | C188: ANCASH | D188: MARISCAL LUZURIAGA | E188: FIDEL OLIVAS ESCUDERO | F188: 205 | G188: 2849 | H188: -8.8061 | I188: -77.2797 | J188: 1825 | K188: 10650.36711 | L188: FIDEL OLIVAS ESCUDERO | M188: =ABS($I188-(IFERROR(VLOOKUP((INDEX($AC$6:$AC$850,MATCH(MIN(ABS($AC$6:$AC$850-$H188)),ABS($AC$6:$AC$850-$H188),0))),$AC$6:$AD$850,2,FALSE),"")))*111.32 -> 160.8369913 | N188: 2.739726027 | O188: 31 | P188: 37 | Q188: 21304 | X188: SAN MARTIN | Y188: PICOTA | AC188: -6.2461 | AD188: -80.84505
A189: 184 | B189: 21305 | C189: ANCASH | D189: MARISCAL LUZURIAGA | E189: LLAMA | F189: 48 | G189: 2839 | H189: -8.915 | I189: -77.3014 | J189: 945 | K189: 10661.91717 | L189: LLAMA | M189: =ABS($I189-(IFERROR(VLOOKUP((INDEX($AC$6:$AC$850,MATCH(MIN(ABS($AC$6:$AC$850-$H189)),ABS($AC$6:$AC$850-$H189),0))),$AC$6:$AD$850,2,FALSE),"")))*111.32 -> 150.8033487 | N189: 5.097671958 | O189: 31 | P189: 37 | Q189: 21305 | X189: SAN MARTIN | Y189: RIOJA | AC189: -6.27285 | AD189: -80.81606667
A190: 185 | B190: 21306 | C190: ANCASH | D190: MARISCAL LUZURIAGA | E190: LLUMPA | F190: 143 | G190: 2900 | H190: -8.9608 | I190: -77.3675 | J190: 6416 | K190: 10665.72159 | L190: LLUMPA | M190: =ABS($I190-(IFERROR(VLOOKUP((INDEX($AC$6:$AC$850,MATCH(MIN(ABS($AC$6:$AC$850-$H190)),ABS($AC$6:$AC$850-$H190),0))),$AC$6:$AD$850,2,FALSE),"")))*111.32 -> 142.3040667 | N190: 0.2128273067 | O190: 31 | P190: 37 | Q190: 21306 | X190: SAN MARTIN | Y190: SAN MARTIN | AC190: -6.299583333 | AD190: -80.78973333
A191: 186 | B191: 21307 | C191: ANCASH | D191: MARISCAL LUZURIAGA | E191: LUCMA | F191: 77 | G191: 3096 | H191: -8.9194 | I191: -77.4108 | J191: 2740 | K191: 10660.37803 | L191: LUCMA | M191: =ABS($I191-(IFERROR(VLOOKUP((INDEX($AC$6:$AC$850,MATCH(MIN(ABS($AC$6:$AC$850-$H191)),ABS($AC$6:$AC$850-$H191),0))),$AC$6:$AD$850,2,FALSE),"")))*111.32 -> 138.6249407 | N191: 0.4379562044 | O191: 31 | P191: 38 | Q191: 21307 | X191: SAN MARTIN | Y191: TOCACHE | AC191: -6.318566667 | AD191: -80.74336667
A192: 187 | B192: 21308 | C192: ANCASH | D192: MARISCAL LUZURIAGA | E192: MUSGA | F192: 40 | G192: 3001 | H192: -8.9061 | I192: -77.3392 | J192: 970 | K192: 10660.23996 | L192: MUSGA | M192: =ABS($I192-(IFERROR(VLOOKUP((INDEX($AC$6:$AC$850,MATCH(MIN(ABS($AC$6:$AC$850-$H192)),ABS($AC$6:$AC$850-$H192),0))),$AC$6:$AD$850,2,FALSE),"")))*111.32 -> 146.5954527 | O192: 31 | P192: 38 | Q192: 21308 | X192: TACNA | Y192: CANDARAVE | AC192: -6.336233333 | AD192: -80.69698333
A193: 188 | B193: 21301 | C193: ANCASH | D193: MARISCAL LUZURIAGA | E193: PISCOBAMBA | F193: 46 | G193: 3326 | H193: -8.865 | I193: -77.3578 | J193: 3025 | K193: 10655.3842 | L193: PISCOBAMBA | M193: =ABS($I193-(IFERROR(VLOOKUP((INDEX($AC$6:$AC$850,MATCH(MIN(ABS($AC$6:$AC$850-$H193)),ABS($AC$6:$AC$850-$H193),0))),$AC$6:$AD$850,2,FALSE),"")))*111.32 -> 148.2930827 | N193: 3.966942149 | O193: 31 | P193: 38 | Q193: 21301 | X193: TACNA | Y193: JORGE BASADRE | AC193: -6.34975 | AD193: -80.6705
A194: 189 | B194: 21402 | C194: ANCASH | D194: OCROS | E194: ACAS | F194: 252 | G194: 3712 | H194: -10.4575 | I194: -77.3278 | J194: 566 | K194: 10830.78619 | L194: ACAS | M194: =ABS($I194-(IFERROR(VLOOKUP((INDEX($AC$6:$AC$850,MATCH(MIN(ABS($AC$6:$AC$850-$H194)),ABS($AC$6:$AC$850-$H194),0))),$AC$6:$AD$850,2,FALSE),"")))*111.32 -> 70.95351267 | N194: 9.363957597 | O194: 32 | P194: 38 | Q194: 21402 | X194: TACNA | Y194: TACNA | AC194: -6.37675 | AD194: -80.62148333
A195: 190 | B195: 21403 | C195: ANCASH | D195: OCROS | E195: CAJAMARQUILLA | F195: 76 | G195: 3545 | H195: -10.3542 | I195: -77.1992 | J195: 264 | K195: 10821.79775 | L195: CAJAMARQUILLA | M195: =ABS($I195-(IFERROR(VLOOKUP((INDEX($AC$6:$AC$850,MATCH(MIN(ABS($AC$6:$AC$850-$H195)),ABS($AC$6:$AC$850-$H195),0))),$AC$6:$AD$850,2,FALSE),"")))*111.32 -> 94.304738 | N195: 3.409090909 | O195: 32 | P195: 38 | Q195: 21403 | X195: TACNA | Y195: TARATA | AC195: -6.3768 | AD195: -80.62148333
A196: 191 | B196: 21404 | C196: ANCASH | D196: OCROS | E196: CARHUAPAMPA | F196: 110 | G196: 2250 | H196: -10.4975 | I196: -77.2428 | J196: 374 | K196: 10836.73165 | L196: CARHUAPAMPA | M196: =ABS($I196-(IFERROR(VLOOKUP((INDEX($AC$6:$AC$850,MATCH(MIN(ABS($AC$6:$AC$850-$H196)),ABS($AC$6:$AC$850-$H196),0))),$AC$6:$AD$850,2,FALSE),"")))*111.32 -> 80.41571267 | O196: 31 | P196: 37 | Q196: 21404 | X196: TUMBES | Y196: CONTRALMIRANTE VILLAR | AC196: -6.409666667 | AD196: -80.54948333
A197: 192 | B197: 21405 | C197: ANCASH | D197: OCROS | E197: COCHAS | F197: 409 | G197: 1290 | H197: -10.5367 | I197: -77.4228 | J197: 1589 | K197: 10837.75878 | L197: COCHAS | M197: =ABS($I197-(IFERROR(VLOOKUP((INDEX($AC$6:$AC$850,MATCH(MIN(ABS($AC$6:$AC$850-$H197)),ABS($AC$6:$AC$850-$H197),0))),$AC$6:$AD$850,2,FALSE),"")))*111.32 -> 54.09966467 | N197: 0.1258653241 | O197: 29 | P197: 36 | Q197: 21405 | X197: TUMBES | Y197: TUMBES | AC197: -6.455183333 | AD197: -80.45963333
A198: 193 | B198: 21406 | C198: ANCASH | D198: OCROS | E198: CONGAS | F198: 130 | G198: 3112 | H198: -10.3375 | I198: -77.4428 | J198: 1268 | K198: 10815.51689 | L198: CONGAS | M198: =ABS($I198-(IFERROR(VLOOKUP((INDEX($AC$6:$AC$850,MATCH(MIN(ABS($AC$6:$AC$850-$H198)),ABS($AC$6:$AC$850-$H198),0))),$AC$6:$AD$850,2,FALSE),"")))*111.32 -> 67.187186 | N198: 2.539432177 | O198: 31 | P198: 38 | Q198: 21406 | X198: TUMBES | Y198: ZARUMILLA | AC198: -6.4871 | AD198: -80.40095
A199: 194 | B199: 21407 | C199: ANCASH | D199: OCROS | E199: LLIPA | F199: 34 | G199: 2767 | H199: -10.3925 | I199: -77.1908 | J199: 220 | K199: =SQRT(POWER((H199-$I$3)*111.321,2)+POWER((I199-$J$3)*111.321,2)) -> 10826.15724 | L199: LLIPA | M199: =ABS($I199-(IFERROR(VLOOKUP((INDEX($AC$6:$AC$850,MATCH(MIN(ABS($AC$6:$AC$850-$H199)),ABS($AC$6:$AC$850-$H199),0))),$AC$6:$AD$850,2,FALSE),"")))*111.32 -> 89.957692 | O199: 31 | P199: 37 | Q199: 21407 | X199: UCAYALI | Y199: ATALAYA | AC199: -6.522633333 | AD199: -80.32983333
A200: =+A199+1 -> 195 | B200: 21401 | C200: ANCASH | D200: OCROS | E200: OCROS | F200: 231 | G200: 3238 | H200: -10.4033 | I200: -77.3967 | J200: 1204 | K200: 10823.58018 | L200: OCROS | M200: =ABS($I200-(IFERROR(VLOOKUP((INDEX($AC$6:$AC$850,MATCH(MIN(ABS($AC$6:$AC$850-$H200)),ABS($AC$6:$AC$850-$H200),0))),$AC$6:$AD$850,2,FALSE),"")))*111.32 -> 67.036904 | N200: 1.379568106 | O200: 31 | P200: 38 | Q200: 21401 | X200: UCAYALI | Y200: CORONEL PORTILLO | AC200: -6.559616667 | AD200: -80.25998333
A201: 196 | B201: 21408 | C201: ANCASH | D201: OCROS | E201: SAN CRISTOBAL DE RAJAN | F201: 68 | G201: 3634 | H201: -10.3869 | I201: -77.2194 | J201: 355 | K201: 10825.01683 | L201: SAN CRISTOBAL DE RAJAN | M201: =ABS($I201-(IFERROR(VLOOKUP((INDEX($AC$6:$AC$850,MATCH(MIN(ABS($AC$6:$AC$850-$H201)),ABS($AC$6:$AC$850-$H201),0))),$AC$6:$AD$850,2,FALSE),"")))*111.32 -> 86.77394 | O201: 32 | P201: 38 | Q201: 21408 | X201: UCAYALI | Y201: PADRE ABAD | AC201: -6.590333333 | AD201: -80.20605
A202: 197 | B202: 21409 | C202: ANCASH | D202: OCROS | E202: SAN PEDRO | F202: 531 | G202: 2243 | H202: -10.3719 | I202: -77.4872 | J202: 422 | K202: 10818.49209 | L202: SAN PEDRO | M202: =ABS($I202-(IFERROR(VLOOKUP((INDEX($AC$6:$AC$850,MATCH(MIN(ABS($AC$6:$AC$850-$H202)),ABS($AC$6:$AC$850-$H202),0))),$AC$6:$AD$850,2,FALSE),"")))*111.32 -> 56.962444 | O202: 31 | P202: 37 | Q202: 21409 | X202: UCAYALI | Y202: PURUS | AC202: -6.6243 | AD202: -80.1503
A203: 198 | B203: 21410 | C203: ANCASH | D203: OCROS | E203: SANTIAGO DE CHILCAS | F203: 86 | G203: 3692 | H203: -10.4386 | I203: -77.3658 | J203: 461 | K203: 10828.01867 | L203: SANTIAGO DE CHILCAS | M203: =ABS($I203-(IFERROR(VLOOKUP((INDEX($AC$6:$AC$850,MATCH(MIN(ABS($AC$6:$AC$850-$H203)),ABS($AC$6:$AC$850-$H203),0))),$AC$6:$AD$850,2,FALSE),"")))*111.32 -> 66.72335267 | O203: 32 | P203: 38 | Q203: 21410 | AC203: -6.65405 | AD203: -80.10806667
A204: 199 | B204: 21502 | C204: ANCASH | D204: PALLASCA | E204: BOLOGNESI | F204: 87 | G204: 2931 | H204: -8.3506 | I204: -78.0506 | J204: 928 | K204: 10586.31407 | L204: BOLOGNESI | M204: =ABS($I204-(IFERROR(VLOOKUP((INDEX($AC$6:$AC$850,MATCH(MIN(ABS($AC$6:$AC$850-$H204)),ABS($AC$6:$AC$850-$H204),0))),$AC$6:$AD$850,2,FALSE),"")))*111.32 -> 95.87620533 | N204: 0.6232758621 | O204: 31 | P204: 37 | Q204: 21502 | AC204: -6.682716667 | AD204: -80.06541667
... 1718 more rows

Sheet T (hidden)
A1: INFORMACIÓN TABLAS | AK1: 0
AJ2: 0 | AK2: 0.05
D3: I+ TRADICIONAL | T3: HABIDO | AJ3: 1 | AK3: =AK2+0.05 -> 0.1
D4: II+ TRADICIONAL | H4: ABANCAY | K4: BAJO | N4: 21 | O4: 1 Litoral tropical | P4: C | Q4: 1 2a 3b2 | T4: NO HABIDO | AJ4: 2 | AK4: =AK3+0.05 -> 0.15
D5: III+ TRADICIONAL | H5: ANDAHUAYLAS | K5: MEDIO | N5: 22 | O5: 2a Litoral subtropical Norte | P5: C | Q5: 1 2a 3b2 | T5: NO HALLADO | AJ5: 3 | AK5: 0.2
B6: NO APLICA | D6: I+ INTERNACIONAL | H6: AREQUIPA | K6: ALTO | N6: 23 | O6: 2b Litoral subtropical Centro | P6: B | Q6: 2b | AJ6: 4 | AK6: 0.25
B7: 1 | D7: II+ INTERNACIONAL | H7: AYACUCHO | N7: 24 | O7: 2c Litoral subtropical Sur | P7: B | Q7: 2c | T7: ACTIVO | AJ7: 5 | AK7: 0.3
B8: 2 | D8: III+ INTERNACIONAL | H8: BAGUA | N8: 25 | O8: 3a Desértico Alto | P8: A | Q8: 3a | T8: SUSPENSIÓN TEMPORAL | AJ8: 6 | AK8: 0.35
H9: BARRANCA | K9: Anteproyecto en consulta | N9: 26 | O9: 3b1 Desértico Bajo | P9: A | Q9: 3b1 | T9: BAJA PROVISIONAL | AJ9: 7 | AK9: 0.4
B10: Etapas | H10: CAJAMARCA | K10: Licencia de edificación | N10: 27 | O10: 3b2 Desértico Bajo Norte | P10: C | Q10: 1 2a 3b2 | T10: BAJA DEFINITIVA | AJ10: 8 | AK10: 0.45
B11: Sectores | H11: CALLAO | N11: 28 | O11: 4a1 Continental templado Occidental (entre 500 y 1000 msnm) | P11: B | Q11: 4a | T11: BAJA PROVISIONAL DE OFICIO | AJ11: 9 | AK11: 0.5
B12: Torres | H12: CAMANA | N12: 29 | O12: 4a2 Continental templado Occidental (entre 1000 y 2000 msnm) | P12: B | Q12: 4a | T12: BAJA DEFINITIVA DE OFICIO | AJ12: 10 | AK12: 0.55
B13: Edificios | H13: CASMA | N13: 30 | O13: 4b Continental templado Oriental-Ceja de Selva (entre 1500 y 2000 msnm) | P13: B | Q13: 4b | AJ13: 11 | AK13: 0.6
B14: Otro | H14: CASTILLA _ APLAO | N14: 31 | O14: 5 Continental frío | P14: D | Q14: 5 | T14: DNI | AJ14: 12 | AK14: 0.65
H15: CAÑETE | N15: 32 | O15: 6 Continental muy frío | P15: E | Q15: 6 | T15: CE | AJ15: 13 | AK15: 0.7
B16: SI | H16: CHACHAPOYAS | N16: 33 | O16: 7 Selva tropical alta hasta 1500 msnm | P16: C | Q16: 7 | T16: PASAP. | AJ16: 14 | AK16: 0.75
B17: NO | H17: CHEPEN | N17: 34 | O17: 8 Selva tropical baja | P17: C | Q17: 7 | T17: PTP | AJ17: 15 | AK17: 0.8
H18: CHICLAYO | T18: RUC | AJ18: 16 | AK18: 0.85
H19: CHIMBOTE | N19: 35 | O19: Zona 1: Desértico Costero | AJ19: 17 | AK19: 0.9
B20: Encimera / Cocina a gas propietario | H20: CHINCHA | N20: 36 | O20: Zona 2: Desértico | AJ20: 18 | AK20: 0.95
B21: Encimera eléctrica por inducción | H21: CHOTA | N21: 37 | O21: Zona 3: Interandino Bajo | AJ21: 19 | AK21: 1
H22: CUSCO | N22: 38 | O22: Zona 4: Mesoandino | AJ22: 20
H23: ESPINAR | N23: 39 | O23: Zona 5: Alto Andino | AJ23: 21
B24: X | H24: HUACHO | N24: 40 | O24: Zona 6: Nevado | AJ24: 22
H25: HUAMACHUCO | N25: 41 | O25: Zona 7: Ceja de Montaña | AJ25: 23
H26: HUANCAVELICA | N26: 42 | O26: Zona 8: Subtropical húmedo | AJ26: 24
H27: HUANCAYO | N27: 43 | O27: Zona 9: Tropical húmedo | AJ27: 25
H28: HUANTA | AJ28: 26
H29: HUANUCO | AJ29: 27
H30: HUARAL | AJ30: 28
B31: No aplica porque no tiene área verde o se encuentra fuera de los parámetros mínimos | H31: HUARAZ | AJ31: 29
B32: No, porque contará con un sistema de riego tecnificado. | H32: ICA | AJ32: 30
B33: Si | H33: ILO | AJ33: 31
H34: ISLAY _ MOLLENDO | AJ34: 32
H35: JAEN | AJ35: 33
B36: Si | H36: JUANJUI | AJ36: 34
B37: No | H37: JULIACA | AJ37: 35
H38: LA MERCED (SELVA CENTRAL) | AJ38: 36
H39: LIMA | AJ39: 37
B40: Si, para riego de áreas verdes | H40: MADRE DE DIOS | AJ40: 38
B41: Si, para arrastre hidráulico de excretas | H41: MAYNAS | AJ41: 39
B42: Si, para riego y arrastre hidráulico | H42: MOQUEGUA | AJ42: 40
B43: No aplica porque no tiene área verde o se encuentra fuera de los parámetros mínimos | H43: MOYOBAMBA | AJ43: 41
B44: No, porque contará con un sistema de riego tecnificado. | H44: NAZCA | AJ44: 42
H45: OTUZCO | AJ45: 43
H46: PASCO | AJ46: 44
H47: PISCO | AJ47: 45
H48: PIURA | AJ48: 46
H49: PUCALLPA | AJ49: 47
H50: PUNO | AJ50: 48
H51: QUILLABAMBA | AJ51: 49
H52: SAN PEDRO | AJ52: 50
H53: SATIPO
H54: SICUANI
H55: SULLANA
H56: TACNA
H57: TARAPOTO
H58: TARMA
H59: TINGO MARIA
H60: TRUJILLO
H61: TUMBES
H62: YURIMAGUAS
F65: 111 - CULTIVO DE CEREALES (EXCEPTO ARROZ), LEGUMBRES Y SEMILLAS OLEAGINOSAS
F66: 112 - CULTIVO DE ARROZ
F67: 113 - CULTIVO DE HORTALIZAS Y MELONES, RAÍCES Y TUBÉRCULOS.
F68: 114 - CULTIVO DE CAÑA DE AZÚCAR
F69: 115 - CULTIVO DE TABACO
F70: 116 - CULTIVO DE PLANTAS DE FIBRA
F71: 119 - CULTIVO DE OTRAS PLANTAS NO PERENNES
F72: 121 - CULTIVO DE UVA
F73: 122 - CULTIVO DE FRUTAS TROPICALES Y SUBTROPICALES
F74: 123 - CULTIVO DE CÍTRICOS
F75: 124 - CULTIVO DE FRUTAS DE PEPITA Y DE HUESO
F76: 125 - CULTIVO DE OTROS FRUTOS Y NUECES DE ÁRBOLES Y ARBUSTOS
F77: 126 - CULTIVO DE FRUTOS OLEAGINOSOS
F78: 127 - CULTIVO DE PLANTAS CON LAS QUE SE PREPARAN BEBIDAS
F79: 128 - CULTIVO DE ESPECIAS Y DE PLANTAS AROMÁTICAS, MEDICINALES Y FARMACEUTICAS
F80: 129 - CULTIVO DE OTRAS PLANTAS NO PERENNES
F81: 130 - PROPAGACIÓN DE PLANTAS
F82: 141 - CRÍA DE GANADO BOVINO Y BÚFALOS
F83: 142 - CRÍA DE CABALLOS Y OTROS EQUINOS
F84: 143 - CRÍA DE CAMELLOS Y OTROS CAMÉLIDOS
F85: 144 - CRÍA DE OVEJAS Y CABRAS
F86: 145 - CRÍA DE CERDOS
F87: 146 - CRÍA DE AVES DE CORRAL
F88: 149 - CRÍA DE OTROS ANIMALES
F89: 150 - CULTIVO DE PRODUCTOS AGRÌCOLAS EN COMBINACIÒN CON LA CRÌA DE ANIMALES
F90: 161 - ACTIVIDADES DE APOYO A LA AGRICULTURA
F91: 162 - ACTIVIDADES DE APOYO A LA GANADERÍA
F92: 163 - ACTIVIDADES POSCOSECHA
F93: 164 - TRATAMIENTO DE SEMILLAS PARA PROPAGACIÓN
F94: 170 - CAZA ORDINARIA Y MEDIANTE TRAMPAS Y ACTIVIDADES DE SERVICIOS CONEXAS
F95: 210 - SILVICULTURA Y OTRAS ACTIVIDADES FORESTALES
F96: 220 - EXTRACCIÓN DE MADERA
F97: 230 - RECOLECCIÓN DE PRODUCTOS FORESTALES DISTINTOS DE LA MADERA
F98: 240 - SERVICIOS DE APOYO A LA SILVICULTURA
F99: 311 - PESCA MARÍTIMA
F100: 312 - PESCA DE AGUA DULCE
F101: 321 - ACUICULTURA MARÍTIMA
F102: 322 - ACUICULTURA DE AGUA DULCE
F103: 510 - EXTRACCIÓN DE CARBÓN DE PIEDRA
F104: 520 - EXTRACCIÓN DE LIGNITO
F105: 610 - EXTRACCIÓN DE PETRÓLEO CRUDO
F106: 620 - EXTRACCIÓN DE GAS NATURAL
F107: 710 - EXTRACCIÓN DE MINERALES DE HIERRO
F108: 721 - EXTRACCIÓN DE MINERALES DE URANIO Y TORIO
F109: 729 - EXTRACCIÓN DE OTROS MINERALES METALÍFEROS NO FERROSOS
F110: 810 - EXTRACCIÓN DE PIEDRA, ARENA Y ARCILLA
F111: 891 - EXTRACCIÓN DE MINERALES PARA LA FABRICACIÓN DE ABONOS Y PRODUCTOS QUÍMICOS
F112: 892 - EXTRACCIÓN DE TURBA
F113: 893 - EXTRACCIÓN DE SAL
F114: 899 - EXPLOTACIÓN DE OTRAS MINAS Y CANTERAS N.C.P.
F115: 910 - ACTIVIDADES DE APOYO PARA LA EXTRACCIÓN DE PETRÓLEO Y GAS NATURAL
F116: 990 - ACTIVIDADES DE APOYO PARA OTRAS ACTIVIDADES DE EXPLOTACIÓN DE MINAS Y CANTERAS
F117: 1010 - ELABORACIÒN Y CONSERVACIÓN DE CARNE
F118: 1020 - ELABORACIÒN Y CONSERVACIÓN DE PESCADOS, CRUSTÁCEOS Y MOLUSCOS
F119: 1030 - ELABORACIÒN Y CONSERVACIÓN DE FRUTAS,LEGUMBRES Y HORTALIZAS
F120: 1040 - ELABORACIÓN DE ACEITES Y GRASAS DE ORIGEN VEGETAL Y ANIMAL
F121: 1050 - ELABORACIÓN DE PRODUCTOS LÁCTEOS
F122: 1061 - ELABORACIÓN DE PRODUCTOS DE MOLINERÍA.
F123: 1062 - ELABORACIÓN DE ALMIDONES Y PRODUCTOS DERIVADOS DEL ALMIDÓN.
F124: 1071 - ELABORACIÓN DE PRODUCTOS DE PANADERÍA
F125: 1072 - ELABORACIÓN DE AZÚCAR
F126: 1073 - ELABORACIÓN DE CACAO Y CHOCOLATE Y DE PRODUCTOS DE CONFITERÍA
F127: 1074 - ELABORACIÓN DE MACARRONES, FIDEOS, ALCUZCUS Y PRODUCTOS FARINÁCEOS SIMILARES
F128: 1075 - ELABORACIÓN DE COMIDAS Y PLATOS PREPARADOS
F129: 1079 - ELABORACIÓN DE OTROS PRODUCTOS ALIMENTICIOS N.C.P.
F130: 1080 - ELABORACIÓN DE PIENSOS PREPARADOS PARA ANIMALES
F131: 1101 - DESTILACIÓN, RECTIFICACIÓN Y MEZCLA DE BEBIDAS ALCOHÓLICAS
F132: 1102 - ELABORACIÓN DE VINOS
F133: 1103 - ELABORACIÓN DE BEBIDAS MALTEADAS Y DE MALTA
F134: 1104 - ELABORACIÓN DE BEBIDAS NO ALCOHÓLICAS; PRODUCCIÓN DE AGUAS MINERALES Y OTRAS AGUAS EMBOTELLADAS
F135: 1200 - ELABORACIÓN DE PRODUCTOS DE TABACO
F136: 1311 - PREPARACIÓN E HILATURA DE FIBRAS TEXTILES
F137: 1312 - TEJEDURA DE PRODUCTOS TEXTILES
F138: 1313 - ACABADO DE PRODUCTOS TEXTILES
F139: 1391 - FABRICACIÓN DE TEJIDOS DE PUNTO Y GANCHILLO
F140: 1392 - FABRICACIÓN DE ARTÍCULOS CONFECCIONADOS DE MATERIALES TEXTILES, EXCEPTO PRENDAS DE VESTIR
F141: 1393 - FABRICACIÓN DE TAPICES Y ALFOMBRAS
F142: 1394 - FABRICACIÓN DE CUERDAS, CORDELES, BRAMANTES Y REDES
F143: 1399 - FABRICACIÓN DE OTROS PRODUCTOS TEXTILES N.C.P.
F144: 1410 - FABRICACIÓN DE PRENDAS DE VESTIR, EXCEPTO PRENDAS DE PIEL
F145: 1420 - FABRICACIÓN DE ARTÍCULOS DE PIEL
F146: 1430 - FABRICACIÓN DE ARTICULOS DE PUNTO Y GANCHILLO
F147: 1511 - CURTIDO Y ADOBO DE CUEROS; ADOBO Y TEÑIDO DE PIELES
F148: 1512 - FABRICACIÓN DE MALETAS, BOLSOS DE MANO, Y ARTÍCULOS SIMILARES,Y DE ARTICULOS DE TALABARTERÍA Y GUARNICIONERÍA
F149: 1520 - FABRICACIÓN DE CALZADO
F150: 1610 - ASERRADOS Y ACEPILLADURA DE MADERA
F151: 1621 - FABRICACIÓN DE HOJAS DE MADERA PARA ENCHAPADO Y TABLEROS A BASE DE MADERA
F152: 1622 - FABRICACIÓN DE PARTES Y PIEZAS DE CARPINTERÍA PARA EDIFICIOS Y CONSTRUCCIONES
F153: 1623 - FABRICACIÓN DE RECIPIENTES DE MADERA
F154: 1629 - FABRICACIÓN DE OTROS PRODUCTOS DE MADERA; FABRICACIÓN DE ARTÍCULOS DE CORCHO, PAJA Y MATERIALES TRENZABLES.
F155: 1701 - FABRICACIÓN DE PASTA DE MADERA, PAPEL Y CARTÓN
F156: 1702 - FABRICACIÓN DEL PAPEL Y CARTÓN ONDULADO Y DE ENVASES DE PAPEL Y CARTÓN
F157: 1709 - FABRICACIÓN DE OTROS ARTÍCULOS DEL PAPEL Y CARTÓN
F158: 1811 - IMPRESIÓN
F159: 1812 - ACTIVIDADES DE SERVICIOS RELACIONADAS CON LA IMPRESIÓN
F160: 1820 - REPRODUCCIÓN DE GRABACIONES
F161: 1910 - FABRICACIÓN DE PRODUCTOS DE HORNOS DE COQUE
F162: 1920 - FABRICACIÓN DE PRODUCTOS DE LA REFINACIÓN DEL PETRÓLEO
F163: 2011 - FABRICACIÓN DE SUSTANCIAS QUÍMICAS BÁSICAS
F164: 2012 - FABRICACIÓN ABONOS Y COMPUESTOS DE NITRÓGENO
F165: 2013 - FABRICACIÓN DE PLÁSTICOS Y DE CAUCHO SINTÉTICO EN FORMAS PRIMARIAS
F166: 2021 - FABRICACIÓN DE PLAGUICIDAS Y OTROS PRODUCTOS QUÍMICOS DE USO AGROPECUARIO
F167: 2022 - FABRICACIÓN DE PINTURAS, BARNICES Y PRODUCTOS DE REVESTIMIENTO SIMILARES, TINTAS DE IMPRENTA Y MASILLAS
F168: 2023 - FABRICACIÓN DE JABONES Y DETERGENTES, PREPARADOS PARA LIMPIAR Y PULIR, PERFUMES Y PREPARADOS DE TOCADOR.
F169: 2029 - FABRICACIÓN DE OTROS PRODUCTOS QUÍMICOS N.C.P.
F170: 2030 - FABRICACIÓN DE FIBRAS ARTIFICIALES
F171: 2100 - FABRICACIÓN DE PRODUCTOS FARMACÉUTICOS, SUSTANCIAS QUÍMICAS MEDICINALES Y PRODUCTOS BOTÁNICOS DE USO FARMACÉUTICO
F172: 2211 - FABRICACIÓN DE CUBIERTAS Y CÁMARAS DE CAUCHO; RECAUCHUTADO Y RENOVACIÓN DE CUBIERTAS DE CAUCHO
F173: 2219 - FABRICACIÓN DE OTROS PRODUCTOS DE CAUCHO
F174: 2220 - FABRICACIÓN DE PRODUCTOS DE PLÁSTICO
F175: 2310 - FABRICACIÓN DE VIDRIO Y DE PRODUCTOS DE VIDRIO
F176: 2391 - FABRICACIÓN DE PRODUCTOS REFRACTARIOS
F177: 2392 - FABRICACIÓN DE MATERIALES DE CONSTRUCCIÓN DE ARCILLA
F178: 2393 - FABRICACIÓN DE OTROS PRODUCTOS DE PORCELANA Y DE CERÁMICA
F179: 2394 - FABRICACIÓN DE CEMENTO, CAL Y YESO
F180: 2395 - FABRICACIÓN DE ARTÍCULOS DE HORMIGÓN, DE CEMENTO Y DE YESO
F181: 2396 - CORTE, TALLA Y ACABADO DE LA PIEDRA
F182: 2399 - FABRICACIÓN DE OTROS PRODUCTOS MINERALES NO METÁLICOS N.C.P.
F183: 2410 - INDUSTRIAS BÁSICAS DE HIERRO Y ACERO
F184: 2420 - FABRICACIÓN DE PRODUCTOS PRIMARIOS DE METALES PRECIOSOS Y OTROS METALES NO FERROSOS
F185: 2431 - FUNDICIÓN DE HIERRO Y ACERO
F186: 2432 - FUNDICIÓN DE METALES NO FERROSOS
F187: 2511 - FABRICACIÓN DE PRODUCTOS METÁLICOS PARA USO ESTRUCTURAL
F188: 2512 - FABRICACIÓN DE TANQUES, DEPÓSITOS Y RECIPIENTES DE METAL
F189: 2513 - FABRICACIÓN DE LOS GENERADORES DEL VAPOR, EXCEPTO CALDERAS DE AGUA CALIENTE PARA CALEFACCIÓN CENTRAL
F190: 2520 - FABRICACIÓN DE ARMAS Y MUNICIONES
F191: 2591 - FORJA, PRENSADO, ESTAMPADO Y LAMINADO DE METALES; PULVIMETALURGIA
F192: 2592 - TRATAMIENTO Y REVESTIMIENTO DE METALES; MAQUINADO
F193: 2593 - FABRICACIÓN DE ARTÍCULOS DE CUCHILLERÍA, HERRAMIENTAS DE MANO Y ARTÍCULOS DE FERRETERÍA
F194: 2599 - FABRICACIÓN DE OTROS PRODUCTOS ELABORADOS DE METAL N.C.P.
F195: 2610 - FABRICACIÓN DE COMPONENTES Y TABLEROS ELECTRÓNICOS
F196: 2620 - FABRICACIÓN DE ORDENADORES Y EQUIPO PERIFÉRICO
F197: 2630 - FABRICACIÓN DE EQUIPOS DE COMUNICACIONES
F198: 2640 - FABRICACIÓN DE APARATOS ELECTRÓNICOS DE CONSUMO
F199: 2651 - FABRICACIÓN DE EQUIPO DE MEDICIÓN, PRUEBA, NAVEGACIÓN Y CONTROL
F200: 2652 - FABRICACIÓN DE RELOJES
F201: 2660 - FABRICACIÓN DE EQUIPO DE IRRADIACIÓN Y EQUIPO ELECTRÓNICO DE USO MÉDICO Y TERAPÉUTICO
F202: 2670 - FABRICACIÓN DE INSTRUMENTOS ÓPTICOS Y EQUIPO FOTOGRÁFICO
... 279 more rows
